{"text_format":"1","workbook":"xlsx","n_sheets":12,"sheets":["Registro de cambios","configuracion","DIGITADOR","DATOS","REFERENTES","OTRAS REFERENCIAS","Resumen","AGD_MUESTREOS","AGD_PARAMETRO","AGD_MUESTRAS","AGD_MUESTRAS_VARIABLES","AGD_AUTORIAS"],"not_rendered":{"charts":0,"images":0,"macros":1,"external_links":1,"defined_names":30,"comments":1,"pivot_tables":1},"unopened":[],"bounds":{"document_bytes":16777216,"sheet_cells":100000,"rows_first":2000,"rows_last":500,"rows_between":2000,"halvings":0,"cell_chars":16384,"cell_head_chars":4096},"cells_cut":0,"cells_raw":0,"read":"whole","date_system":"1900"}

{"sheet":"Registro de cambios","index":0,"n_rows":7,"n_cols":7,"rows_kept":7,"cut":false,"hidden":true,"merged":[[1,3,1,6]]}
[]
[null,null,null,"REGISTRO DE CAMBIOS"]
[null,null,null,"VERSIÓN No.","CAMBIO REALIZADO","AUTOR","VIGENTE DESDE"]
[null,null,null,"20241113i","Actualización del código de la macro.\n\nSe eliminó la URL de la antigua API de portete:\n       http://portete.invemar.org.co:7003/ArgosWebServices-RESTWebService-context-root/rest/1.0\n\nFue reemplazada por la URL de la API de ARGOS:\n       https://argos.invemar.org.co/api/\n\nLa API contiene End Points que permiten tener mayor control, facilitan la descarga de referentes (listas de usuarios, estaciones, especies, etc.) que corresponden a criterios específicos como el proyecto usado en la plantilla para evitar descargar data innecesaria.\n\nDel mismo modo, también permite la carga de información a la BDD del INVEMAR.\n\nLa macro toma los Endpoints desde la hoja configuracion de una tabla llamada \"Configuración referentes\", a la que se le puede modificar las rutas de la API o agregar nuevas. cabe resaltar que se puede \"quemar\" directamente en la macro los Endpoints que lo requieran.","Juan Palomino","2024-11-13"]
[null,null,null,"20210810m","Se elimina entidad de la hoja de datos, se eliman clave_sibm, categoria de vida por tomarse de los refrentes en la base de datos.     \nGREMIO columna AC retirado  \nSe organizan las estaciones para que se filtre lo descargado de la BD y se tomen solo los datos de estaciones en otras referencias      \nColumnas qrst borradas (MAR y SUSTRATO)",null,"2021-07-30"]
[null,null,null,"20200130i","Para trazabilididad la hoja se incluye el nombre del archivo fuente y la posibilidad de anotar el DOI principal del metadato\nPor usabilidad las pestañas que son de interes para el usuario son las verdes\nSi se define mas de un proyecto los referentes de estaciones e investigadores se descargan consecutivo en las mismas columnas\nSe controla la versión para la plantilla mediante comparación dato en AGLOV de la BD.",null,"2020-01-30"]
[null,null,null,"20180413i","Se modifica la generación de los ID de muestreo y se agrega macro que genera número aleatorio en la hoja DIGITADOR.",null,"2018-04-13"]

{"sheet":"configuracion","index":1,"n_rows":71,"n_cols":8,"rows_kept":71,"cut":false,"hidden":true,"merged":[[61,0,61,2],[28,0,35,0],[37,0,42,0],[45,0,45,1],[0,0,2,0],[3,0,5,0],[7,0,8,0],[9,0,15,0],[17,0,21,0],[23,0,26,0]]}
["general","urlServicio","https://argos.invemar.org.co/api/"]
[null,"fila de inicio",5]
[null,"fila de fin",150]
["metodologias","Metodologias",22]
[null,"Referentes",150]
[null,"Cantidad maxima de referentes ",150]
["estaciones/investigadores","proyectos",{"$f":"DIGITADOR!B9","v":1480}]
["Lista especies","metodologias",22]
[null,"proyectos",{"$f":"DIGITADOR!B9","v":1480}]
["MUESTREOS","ID_MUESTREO","DATOS,D"]
[null,"ID_ESTACION","DATOS,P"]
[null,"ID_PROYECTO",1480]
[null,"ID_METODOLOGIA",22]
[null,"ID_TEMATICAS",211]
[null,"FECHA","DATOS,G"]
[null,"NOTAS"]
[null,"cantidad",104]
["parametro muestreo","ID_MUESTREO","DATOS,D","DATOS,D","DATOS,D"]
[null,"ID_PARAMETRO",1055,1169,1170]
[null,"ID_METODOLOGIA",22,22,22]
[null,"ID_UNIDAD_MEDIDA",100,100,100]
[null,"VALOR","DIGITADOR,B,5","DIGITADOR,B,12","DIGITADOR,B,11"]
[null,"cantidad",104,104,104]
["muestra","ID_MUESTRA","DATOS,AG"]
[null,"ID_MUESTREO","DATOS,D"]
[null,"NOTAS","DATOS,N"]
[null,"ES_REPLICA",1]
[null,"cantidad",104]
["muestra variable","ID_PARAMETRO",827,585,733,823,828]
[null,"ID_METODOLOGIA",22,22,22,22,22]
[null,"ID_UNIDAD_MEDIDA",100,100,100,19,100]
[null,"ID_MUESTRA","DATOS,AG","DATOS,AG","DATOS,AG","DATOS,AG","DATOS,AG"]
[null,"ID_METODO",732,732,732,732]
[null,"VALOR","DATOS,X","DATOS,Y","DATOS,AD","DATOS,AF","DATOS,M"]
[null,"QUALITY_FLAG"]
[null,"PRECISION"]
[null,"cantidad",104,104,104,104,104]
["autoria","ID_FUNCIONARIO","DIGITADOR,B,2","DATOS,K"]
[null,"ID_TAREA",5,4]
[null,"ORDEN",1,2]
[null,"FECHA","DIGITADOR,B,7","DATOS,G"]
[null,"ID_MUESTREO","DATOS,D","DATOS,D"]
[null,"ENTIDAD","DIGITADOR,B,4","DATOS,M"]
[null,"cantidad",104,104]
[]
["REGISTROS GENERADOS",null,"REGISTROS CARGADOS",null,null,"ID_PARAMETRO","ID_UNIDAD_MEDIDA","NOMBRE_COLUMNA"]
["MUESTREOS",null,null,null,null,585,100,"ESPECIE"]
["parametro muestreo",null,null,null,null,733,100,"RIQUEZA"]
["muestra",null,null,null,null,823,19,"VALOR"]
["muestra variable",null,null,null,null,827,100,"UBICACION_ESPECIFICA"]
["autoria",null,null,null,null,828,100,"ENTIDAD"]
["registros correctos",null,null,null,null,829,100,"REGION"]
["Fecha de carga",null,null,null,null,1055,100,"VERSION_PLANTILLA"]
["json error",null,null,null,null,1169,100,"URL_METADATO"]
["error",null,null,null,null,1170,100,"ARCHIVO_FUENTE"]
[]
[]
["Atributo","Descripción","Código"]
["Tipo Nodo","Estaciones",{"$f":"VLOOKUP(B59,'OTRAS REFERENCIAS'!$A$29:$C$39,2,FALSE)","v":40}]
[]
[]
["CONFIGURACION REFERENTES"]
["Ruta de la API","Endpoint","Descripción"]
["URL - AGM Campo",{"$f":"CONCATENATE(\"parametros/agmcampo/\",$C$4,\"\")","v":"parametros/agmcampo/22"},"Listado de referentes AGM_CAMPO."]
["URL - Especies",{"$f":"IF($C$8=\"\",\"\",CONCATENATE(\"especies/filt/\",$C$9,\",\",$C$8,\"/\"))","v":"especies/filt/1480,22/"},"Especies por proyecto\n(No todos los proyectos tienen asociados una lista de especies)"]
["URL - Estaciones",{"$f":"CONCATENATE(\"estaciones/\", $C$59, \"/\",$C$9,\"\")","v":"estaciones/40/1480"},"Estaciones/parcelas por proyecto, cambia dependiendo del Tipo de Nodo, cuyo estado sea VIGENTE."]
["URL - Usuarios",{"$f":"CONCATENATE(\"parametros/usersByProject/\",$C$7,\"\")","v":"parametros/usersByProject/1480"},"Usuarios por proyecto."]
["URL - Entidades","estaciones/get-entidades","Listado de entidades."]
["Atributos de la API","codigo_in","nombre_in"]
["Rango de atributos de la API","B70:C71","nombre_in"]
["URL - Plantillas","plantillas/","Endpoint para la carga de datos al sistema."]

{"sheet":"DIGITADOR","index":2,"n_rows":27,"n_cols":4,"rows_kept":27,"cut":false,"hidden":false,"merged":[[11,3,13,9],[5,0,6,0],[0,0,0,1],[0,3,5,9],[6,3,8,9],[9,3,10,9]]}
["Recolección de Datos Riqueza Areas Coralinas",null,null,"Recomendaciones generales: \n¡Precaución! No inserte Filas o Columnas.\nEn los casos en que falte un valor a ingresar que provenga de la hoja de referencias, informe para que el administrador del sistema haga las adiciones necesarias.\nEsta es una plantilla programada. Las columnas de color oscuro se llenan automaticamente, principalmente a partir de los contenidos de la hoja de referencias. \nNO UTILICE PUNTO Y COMA (;) en ningun campo, por ser el separador de variables (columnas). Tampoco escriba las unidades de medida, no son necesarias.\nPara el correcto funcionamiento de la hoja debe estar activa la opcion de Excel de ejecutar macros (al abrir la hoja acepte la opcion habilitar macros, mensaje de Excel que aparece en la parte superior de la hoja en un recuadro amarillo). La extensión del archivo debe ser .xlsm\nSe recomienda renombrar el archivo de la siguiente manera: SIMAC_Riqueza_NombreEstacion_FechaMonitoreo.xlsm"]
["Código Digitador",{"$f":"IF(B3=\"\",\"\",INDEX(REFERENTES!$Y:$Z,MATCH(DIGITADOR!B3,REFERENTES!$Z:$Z,0),1))","v":""}]
["Nombre del responsable"]
["ENTIDAD"]
["Versión de la plantilla",{"$f":"'Registro de cambios'!D4","v":"20241113i"}]
["Fecha en la que ingresa los datos en esta hoja","DD/MM/AAAA"]
[null,"3000-12-12",null,"Previamente a iniciar el llenado de la plantilla, debe presionar el botón \"Descargar referentes\" para que los referentes de ésta plantilla sean actualizados. \nLuego de llenar completamente la plantilla, haga clic sobre el botón \"Generar tablas\" para que los datos sean organizados antes de cargarlos al Sistema de Información.\nAntes de presionar el botón \"Generar tablas\" verifique que:\na. No haya celdas con valores como \"#N/A\" o \"#¡REF!\"\nb. No se esten aplicando filtros en la hoja de datos \nPara finalizar, presione el botón \"Cargar datos\"."]
[]
["Cod_Proyecto",1480]
["Nombre del Proyecto","Sistema de Monitoreo de los Arrecifes Coralinos en Colombia",null,"Si requiere ayuda contacte a:\nKevin S. Moreno (kevin.moreno@invemar.org.co)  - Apoyo técnico software"]
["Nombre del archivo",{"$f":"MID(CELL(\"FILENAME\",N50),FIND(\"[\",CELL(\"FILENAME\",N50))+1,   FIND(\"]\",CELL(\"FILENAME\",N50))-FIND(\"[\",CELL(\"FILENAME\",N50))-1)","v":"SIMAC_Riqueza_20241113i.xlsm"}]
["DOI Metadato",null,null,"El custodio de los datos es el único autorizado para distribuir este conjunto de datos. El observador y el digitador se comprometen a tomar las medidas necesarias para salvaguardar este conjunto de datos de modo que copia de los mismos no sean obtenidas y/o usadas por terceros no relacionados con el propósito para la cual se recolectó."]
["Fuente Plantilla","http://cinto.invemar.org.co/download/Plantillas_ARGOS_Plus/"]
[]
[]
[]
[]
[]
[null,"REGISTROS GENERADOS","REGISTROS CARGADOS"]
["Muestreos",{"$f":"IF(configuracion!B47=\"\",\"\",configuracion!B47)","v":""},{"$f":"IF(configuracion!C47=\"\",\"\",configuracion!C47)","v":""}]
["Parámetros del muestreo",{"$f":"IF(configuracion!B48=\"\",\"\",configuracion!B48)","v":""},{"$f":"IF(configuracion!C48=\"\",\"\",configuracion!C48)","v":""}]
["Muestras",{"$f":"IF(configuracion!B49=\"\",\"\",configuracion!B49)","v":""},{"$f":"IF(configuracion!C49=\"\",\"\",configuracion!C49)","v":""}]
["Variables",{"$f":"IF(configuracion!B50=\"\",\"\",configuracion!B50)","v":""},{"$f":"IF(configuracion!C50=\"\",\"\",configuracion!C50)","v":""}]
["Autores",{"$f":"IF(configuracion!B51=\"\",\"\",configuracion!B51)","v":""},{"$f":"IF(configuracion!C51=\"\",\"\",configuracion!C51)","v":""}]
["Registros correctos",{"$f":"IF(configuracion!B52=\"\",\"\",configuracion!B52)","v":""},{"$f":"IF(configuracion!C52=\"\",\"\",configuracion!C52)","v":""}]
["json error",{"$f":"IF(configuracion!B53=\"\",\"\",configuracion!B53)","v":""},{"$f":"IF(configuracion!C53=\"\",\"\",configuracion!C53)","v":""}]
["error",{"$f":"IF(configuracion!B54=\"\",\"\",configuracion!B54)","v":""},{"$f":"IF(configuracion!C54=\"\",\"\",configuracion!C54)","v":""}]

{"sheet":"DATOS","index":3,"n_rows":104,"n_cols":35,"rows_kept":104,"cut":false,"hidden":false,"merged":[[1,1,3,1],[0,3,1,8],[1,11,1,13],[1,34,3,34],[1,2,3,2],[1,9,1,10],[1,32,3,32],[1,33,3,33],[3,18,3,19],[1,24,1,28],[1,29,1,31],[1,14,1,23],[3,16,3,17]]}
[{"$f":"DIGITADOR!B7+F5","v":"3000-12-12"},null,null,"MUESTREO"]
[{"$f":"TEXT(A1,\"yyyymmdd\")","v":"30001212"},null,"CODIGO",null,null,null,null,null,null,"INVESTIGADOR",null,"ENTIDAD + OBSERVACIONES",null,null,"LUGAR",null,null,null,null,null,null,null,null,null,"ESPECIE",null,null,null,null,"RIQUEZA",null,null,"ID MUESTRA","CONSECUTIVO","ID_MUESTREO"]
[null,null,null,null,null,null,"DATE","MES","TEMPO",null,null,"UNIKE_KEY"]
[{"$f":"DIGITADOR!$B$2","v":""},null,null,"COD\nMUESTREO","FECHA","HORA","DATE","MES","AGD MUESTREO","DATOS TOMADOS POR","COD","CONTROL CAMBIO\n SEC. ESTAC-INV-FECHA","ENTIDAD","OBSERVACIONES","ESTACION","ID ESTACION","MAR",null,"SUSTRATO",null,"PROFUNDIDAD","COD\nPROFUNDIDAD","CENSO","UBICACIÓN\nESPECIFICA","ESPECIE","DESCRIPCION","COD SIBM","FAMILIA",null,"DESCRIPCION","VALOR\n(RANGO)","VALOR\n(NUMERICO)"]
[null,null,{"$f":"IF(L5=L4,C4,C4+1)","v":1},{"$f":"IF(AI5=\"\",\"\",IF(COUNTIF($AI5:AI5, AI5)>1, \"\", AI5))","v":""},null,null,{"$f":"IF(E5=\"\",\"\",E5+F5)","v":""},{"$f":"IF(G5<>\"\",MONTH(G5),\"\")","v":""},{"$f":"IF(AI5=\"\",\"\",IF(COUNTIF($AI5:AI5, AI5)>1, \"\", AI5))","v":""},null,{"$f":"IF(J5=\"\",\"\",INDEX(REFERENTES!$Y:$Z,MATCH(J5,REFERENTES!$Z:$Z,0),1))","v":""},{"$f":"IF(G5=\"\",\"\",CONCATENATE(G5,P5,K5))","v":""},null,null,null,{"$f":"IF(O5=\"\",\"\",INDEX('OTRAS REFERENCIAS'!$L$5:$M$149,MATCH(O5,'OTRAS REFERENCIAS'!$L$5:$L$159,0),2))","v":""},"MAR",null,null,null,null,{"$f":"IF(U5=\"\",\"\",VLOOKUP(U5,'OTRAS REFERENCIAS'!$A$7:$B$9,2,FALSE))","v":""},null,{"$f":"CONCATENATE(V5,W5)","v":""},null,{"$f":"IF(Y5=\"\",\"\",INDEX(REFERENTES!J:K,MATCH(Y5,REFERENTES!K:K,0),1))","v":""},{"$f":"IF(Y5=\"\",\"\",INDEX(REFERENTES!$D:$L,MATCH(Y5,REFERENTES!$K:$K,0),9))","v":""},{"$f":"IF(Y5=\"\",\"\",INDEX(REFERENTES!$J:$P,MATCH(Y5,REFERENTES!$K:$K,0),7))","v":""},null,null,{"$f":"IF(AD5=\"\",\"\",INDEX(REFERENTES!$D:$E,MATCH(AD5,REFERENTES!$D:$D,0),2))","v":""},{"$f":"IF(AD5=\"\",\"\",IF(AD5=\"A\",1,IF(AD5=\"B\",2,IF(AD5=\"C\",3,4))))","v":""},{"$f":"IF(AI5=\"\",\"\",CONCATENATE(AI5,ROW()-2))","v":""},1,{"$f":"IF(E5<>\"\",CONCATENATE($A$2,DIGITADOR!$B$2,DIGITADOR!$M$1,ROW()-3),\"\")","v":""}]
[null,null,1,{"$f":"IF(AI6=\"\",\"\",IF(COUNTIF($AI6:AI6, AI6)>1, \"\", AI6))","v":""},null,null,{"$f":"IF(E6=\"\",\"\",E6+F6)","v":""},"",{"$f":"IF(AI6=\"\",\"\",IF(COUNTIF($AI6:AI6, AI6)>1, \"\", AI6))","v":""},null,{"$f":"IF(J6=\"\",\"\",INDEX(REFERENTES!$Y:$Z,MATCH(J6,REFERENTES!$Z:$Z,0),1))","v":""},{"$f":"IF(G6=\"\",\"\",CONCATENATE(G6,P6,K6))","v":""},null,null,null,{"$f":"IF(O6=\"\",\"\",INDEX('OTRAS REFERENCIAS'!$L$5:$M$149,MATCH(O6,'OTRAS REFERENCIAS'!$L$5:$L$159,0),2))","v":""},"MAR",null,null,null,null,{"$f":"IF(U6=\"\",\"\",VLOOKUP(U6,'OTRAS REFERENCIAS'!$A$7:$B$9,2,FALSE))","v":""},null,{"$f":"CONCATENATE(V6,W6)","v":""},null,{"$f":"IF(Y6=\"\",\"\",INDEX(REFERENTES!J:K,MATCH(Y6,REFERENTES!K:K,0),1))","v":""},{"$f":"IF(Y6=\"\",\"\",INDEX(REFERENTES!$D:$L,MATCH(Y6,REFERENTES!$K:$K,0),9))","v":""},{"$f":"IF(Y6=\"\",\"\",INDEX(REFERENTES!$J:$P,MATCH(Y6,REFERENTES!$K:$K,0),7))","v":""},null,null,{"$f":"IF(AD6=\"\",\"\",INDEX(REFERENTES!$D:$E,MATCH(AD6,REFERENTES!$D:$D,0),2))","v":""},{"$f":"IF(AD6=\"\",\"\",IF(AD6=\"A\",1,IF(AD6=\"B\",2,IF(AD6=\"C\",3,4))))","v":""},{"$f":"IF(AI6=\"\",\"\",CONCATENATE(AI6,ROW()-2))","v":""},2,{"$f":"IF(E6<>\"\",CONCATENATE($A$2,DIGITADOR!$B$2,DIGITADOR!$M$1,ROW()-3),\"\")","v":""}]
[null,null,1,{"$f":"IF(AI7=\"\",\"\",IF(COUNTIF($AI7:AI7, AI7)>1, \"\", AI7))","v":""},null,null,"","",{"$f":"IF(AI7=\"\",\"\",IF(COUNTIF($AI7:AI7, AI7)>1, \"\", AI7))","v":""},null,{"$f":"IF(J7=\"\",\"\",INDEX(REFERENTES!$Y:$Z,MATCH(J7,REFERENTES!$Z:$Z,0),1))","v":""},"",null,null,null,{"$f":"IF(O7=\"\",\"\",INDEX('OTRAS REFERENCIAS'!$L$5:$M$149,MATCH(O7,'OTRAS REFERENCIAS'!$L$5:$L$159,0),2))","v":""},"MAR",null,null,null,null,{"$f":"IF(U7=\"\",\"\",VLOOKUP(U7,'OTRAS REFERENCIAS'!$A$7:$B$9,2,FALSE))","v":""},null,"",null,{"$f":"IF(Y7=\"\",\"\",INDEX(REFERENTES!J:K,MATCH(Y7,REFERENTES!K:K,0),1))","v":""},{"$f":"IF(Y7=\"\",\"\",INDEX(REFERENTES!$D:$L,MATCH(Y7,REFERENTES!$K:$K,0),9))","v":""},{"$f":"IF(Y7=\"\",\"\",INDEX(REFERENTES!$J:$P,MATCH(Y7,REFERENTES!$K:$K,0),7))","v":""},null,null,{"$f":"IF(AD7=\"\",\"\",INDEX(REFERENTES!$D:$E,MATCH(AD7,REFERENTES!$D:$D,0),2))","v":""},"","",3,{"$f":"IF(E7<>\"\",CONCATENATE($A$2,DIGITADOR!$B$2,DIGITADOR!$M$1,ROW()-3),\"\")","v":""}]
[null,null,1,{"$f":"IF(AI8=\"\",\"\",IF(COUNTIF($AI8:AI8, AI8)>1, \"\", AI8))","v":""},null,null,"","",{"$f":"IF(AI8=\"\",\"\",IF(COUNTIF($AI8:AI8, AI8)>1, \"\", AI8))","v":""},null,{"$f":"IF(J8=\"\",\"\",INDEX(REFERENTES!$Y:$Z,MATCH(J8,REFERENTES!$Z:$Z,0),1))","v":""},"",null,null,null,{"$f":"IF(O8=\"\",\"\",INDEX('OTRAS REFERENCIAS'!$L$5:$M$149,MATCH(O8,'OTRAS REFERENCIAS'!$L$5:$L$159,0),2))","v":""},"MAR",null,null,null,null,{"$f":"IF(U8=\"\",\"\",VLOOKUP(U8,'OTRAS REFERENCIAS'!$A$7:$B$9,2,FALSE))","v":""},null,"",null,{"$f":"IF(Y8=\"\",\"\",INDEX(REFERENTES!J:K,MATCH(Y8,REFERENTES!K:K,0),1))","v":""},{"$f":"IF(Y8=\"\",\"\",INDEX(REFERENTES!$D:$L,MATCH(Y8,REFERENTES!$K:$K,0),9))","v":""},{"$f":"IF(Y8=\"\",\"\",INDEX(REFERENTES!$J:$P,MATCH(Y8,REFERENTES!$K:$K,0),7))","v":""},null,null,{"$f":"IF(AD8=\"\",\"\",INDEX(REFERENTES!$D:$E,MATCH(AD8,REFERENTES!$D:$D,0),2))","v":""},"","",4,{"$f":"IF(E8<>\"\",CONCATENATE($A$2,DIGITADOR!$B$2,DIGITADOR!$M$1,ROW()-3),\"\")","v":""}]
[null,null,1,{"$f":"IF(AI9=\"\",\"\",IF(COUNTIF($AI9:AI9, AI9)>1, \"\", AI9))","v":""},null,null,"","",{"$f":"IF(AI9=\"\",\"\",IF(COUNTIF($AI9:AI9, AI9)>1, \"\", AI9))","v":""},null,{"$f":"IF(J9=\"\",\"\",INDEX(REFERENTES!$Y:$Z,MATCH(J9,REFERENTES!$Z:$Z,0),1))","v":""},"",null,null,"",{"$f":"IF(O9=\"\",\"\",INDEX('OTRAS REFERENCIAS'!$L$5:$M$149,MATCH(O9,'OTRAS REFERENCIAS'!$L$5:$L$159,0),2))","v":""},null,null,null,null,null,{"$f":"IF(U9=\"\",\"\",VLOOKUP(U9,'OTRAS REFERENCIAS'!$A$7:$B$9,2,FALSE))","v":""},null,"",null,{"$f":"IF(Y9=\"\",\"\",INDEX(REFERENTES!J:K,MATCH(Y9,REFERENTES!K:K,0),1))","v":""},{"$f":"IF(Y9=\"\",\"\",INDEX(REFERENTES!$D:$L,MATCH(Y9,REFERENTES!$K:$K,0),9))","v":""},{"$f":"IF(Y9=\"\",\"\",INDEX(REFERENTES!$J:$P,MATCH(Y9,REFERENTES!$K:$K,0),7))","v":""},null,null,{"$f":"IF(AD9=\"\",\"\",INDEX(REFERENTES!$D:$E,MATCH(AD9,REFERENTES!$D:$D,0),2))","v":""},"","",5,{"$f":"IF(E9<>\"\",CONCATENATE($A$2,DIGITADOR!$B$2,DIGITADOR!$M$1,ROW()-3),\"\")","v":""}]
[null,null,1,{"$f":"IF(AI10=\"\",\"\",IF(COUNTIF($AI10:AI10, AI10)>1, \"\", AI10))","v":""},null,null,"","",{"$f":"IF(AI10=\"\",\"\",IF(COUNTIF($AI10:AI10, AI10)>1, \"\", AI10))","v":""},null,{"$f":"IF(J10=\"\",\"\",INDEX(REFERENTES!$Y:$Z,MATCH(J10,REFERENTES!$Z:$Z,0),1))","v":""},"",null,null,"",{"$f":"IF(O10=\"\",\"\",INDEX('OTRAS REFERENCIAS'!$L$5:$M$149,MATCH(O10,'OTRAS REFERENCIAS'!$L$5:$L$159,0),2))","v":""},null,null,null,null,null,{"$f":"IF(U10=\"\",\"\",VLOOKUP(U10,'OTRAS REFERENCIAS'!$A$7:$B$9,2,FALSE))","v":""},null,"",null,{"$f":"IF(Y10=\"\",\"\",INDEX(REFERENTES!J:K,MATCH(Y10,REFERENTES!K:K,0),1))","v":""},{"$f":"IF(Y10=\"\",\"\",INDEX(REFERENTES!$D:$L,MATCH(Y10,REFERENTES!$K:$K,0),9))","v":""},{"$f":"IF(Y10=\"\",\"\",INDEX(REFERENTES!$J:$P,MATCH(Y10,REFERENTES!$K:$K,0),7))","v":""},null,null,{"$f":"IF(AD10=\"\",\"\",INDEX(REFERENTES!$D:$E,MATCH(AD10,REFERENTES!$D:$D,0),2))","v":""},"","",6,{"$f":"IF(E10<>\"\",CONCATENATE($A$2,DIGITADOR!$B$2,DIGITADOR!$M$1,ROW()-3),\"\")","v":""}]
[null,null,1,{"$f":"IF(AI11=\"\",\"\",IF(COUNTIF($AI11:AI11, AI11)>1, \"\", AI11))","v":""},null,null,"","",{"$f":"IF(AI11=\"\",\"\",IF(COUNTIF($AI11:AI11, AI11)>1, \"\", AI11))","v":""},null,{"$f":"IF(J11=\"\",\"\",INDEX(REFERENTES!$Y:$Z,MATCH(J11,REFERENTES!$Z:$Z,0),1))","v":""},"",null,null,"",{"$f":"IF(O11=\"\",\"\",INDEX('OTRAS REFERENCIAS'!$L$5:$M$149,MATCH(O11,'OTRAS REFERENCIAS'!$L$5:$L$159,0),2))","v":""},null,null,null,null,null,{"$f":"IF(U11=\"\",\"\",VLOOKUP(U11,'OTRAS REFERENCIAS'!$A$7:$B$9,2,FALSE))","v":""},null,"",null,{"$f":"IF(Y11=\"\",\"\",INDEX(REFERENTES!J:K,MATCH(Y11,REFERENTES!K:K,0),1))","v":""},{"$f":"IF(Y11=\"\",\"\",INDEX(REFERENTES!$D:$L,MATCH(Y11,REFERENTES!$K:$K,0),9))","v":""},{"$f":"IF(Y11=\"\",\"\",INDEX(REFERENTES!$J:$P,MATCH(Y11,REFERENTES!$K:$K,0),7))","v":""},null,null,{"$f":"IF(AD11=\"\",\"\",INDEX(REFERENTES!$D:$E,MATCH(AD11,REFERENTES!$D:$D,0),2))","v":""},"","",7,{"$f":"IF(E11<>\"\",CONCATENATE($A$2,DIGITADOR!$B$2,DIGITADOR!$M$1,ROW()-3),\"\")","v":""}]
[null,null,1,{"$f":"IF(AI12=\"\",\"\",IF(COUNTIF($AI12:AI12, AI12)>1, \"\", AI12))","v":""},null,null,"","",{"$f":"IF(AI12=\"\",\"\",IF(COUNTIF($AI12:AI12, AI12)>1, \"\", AI12))","v":""},null,{"$f":"IF(J12=\"\",\"\",INDEX(REFERENTES!$Y:$Z,MATCH(J12,REFERENTES!$Z:$Z,0),1))","v":""},"",null,null,"",{"$f":"IF(O12=\"\",\"\",INDEX('OTRAS REFERENCIAS'!$L$5:$M$149,MATCH(O12,'OTRAS REFERENCIAS'!$L$5:$L$159,0),2))","v":""},null,null,null,null,null,{"$f":"IF(U12=\"\",\"\",VLOOKUP(U12,'OTRAS REFERENCIAS'!$A$7:$B$9,2,FALSE))","v":""},null,"",null,{"$f":"IF(Y12=\"\",\"\",INDEX(REFERENTES!J:K,MATCH(Y12,REFERENTES!K:K,0),1))","v":""},{"$f":"IF(Y12=\"\",\"\",INDEX(REFERENTES!$D:$L,MATCH(Y12,REFERENTES!$K:$K,0),9))","v":""},{"$f":"IF(Y12=\"\",\"\",INDEX(REFERENTES!$J:$P,MATCH(Y12,REFERENTES!$K:$K,0),7))","v":""},null,null,{"$f":"IF(AD12=\"\",\"\",INDEX(REFERENTES!$D:$E,MATCH(AD12,REFERENTES!$D:$D,0),2))","v":""},"","",8,{"$f":"IF(E12<>\"\",CONCATENATE($A$2,DIGITADOR!$B$2,DIGITADOR!$M$1,ROW()-3),\"\")","v":""}]
[null,null,1,{"$f":"IF(AI13=\"\",\"\",IF(COUNTIF($AI13:AI13, AI13)>1, \"\", AI13))","v":""},null,null,"","",{"$f":"IF(AI13=\"\",\"\",IF(COUNTIF($AI13:AI13, AI13)>1, \"\", AI13))","v":""},null,{"$f":"IF(J13=\"\",\"\",INDEX(REFERENTES!$Y:$Z,MATCH(J13,REFERENTES!$Z:$Z,0),1))","v":""},"",null,null,"",{"$f":"IF(O13=\"\",\"\",INDEX('OTRAS REFERENCIAS'!$L$5:$M$149,MATCH(O13,'OTRAS REFERENCIAS'!$L$5:$L$159,0),2))","v":""},null,null,null,null,null,{"$f":"IF(U13=\"\",\"\",VLOOKUP(U13,'OTRAS REFERENCIAS'!$A$7:$B$9,2,FALSE))","v":""},null,"",null,{"$f":"IF(Y13=\"\",\"\",INDEX(REFERENTES!J:K,MATCH(Y13,REFERENTES!K:K,0),1))","v":""},{"$f":"IF(Y13=\"\",\"\",INDEX(REFERENTES!$D:$L,MATCH(Y13,REFERENTES!$K:$K,0),9))","v":""},{"$f":"IF(Y13=\"\",\"\",INDEX(REFERENTES!$J:$P,MATCH(Y13,REFERENTES!$K:$K,0),7))","v":""},null,null,{"$f":"IF(AD13=\"\",\"\",INDEX(REFERENTES!$D:$E,MATCH(AD13,REFERENTES!$D:$D,0),2))","v":""},"","",9,{"$f":"IF(E13<>\"\",CONCATENATE($A$2,DIGITADOR!$B$2,DIGITADOR!$M$1,ROW()-3),\"\")","v":""}]
[null,null,1,{"$f":"IF(AI14=\"\",\"\",IF(COUNTIF($AI14:AI14, AI14)>1, \"\", AI14))","v":""},null,null,"","",{"$f":"IF(AI14=\"\",\"\",IF(COUNTIF($AI14:AI14, AI14)>1, \"\", AI14))","v":""},null,{"$f":"IF(J14=\"\",\"\",INDEX(REFERENTES!$Y:$Z,MATCH(J14,REFERENTES!$Z:$Z,0),1))","v":""},"",null,null,"",{"$f":"IF(O14=\"\",\"\",INDEX('OTRAS REFERENCIAS'!$L$5:$M$149,MATCH(O14,'OTRAS REFERENCIAS'!$L$5:$L$159,0),2))","v":""},null,null,null,null,null,{"$f":"IF(U14=\"\",\"\",VLOOKUP(U14,'OTRAS REFERENCIAS'!$A$7:$B$9,2,FALSE))","v":""},null,"",null,{"$f":"IF(Y14=\"\",\"\",INDEX(REFERENTES!J:K,MATCH(Y14,REFERENTES!K:K,0),1))","v":""},{"$f":"IF(Y14=\"\",\"\",INDEX(REFERENTES!$D:$L,MATCH(Y14,REFERENTES!$K:$K,0),9))","v":""},{"$f":"IF(Y14=\"\",\"\",INDEX(REFERENTES!$J:$P,MATCH(Y14,REFERENTES!$K:$K,0),7))","v":""},null,null,{"$f":"IF(AD14=\"\",\"\",INDEX(REFERENTES!$D:$E,MATCH(AD14,REFERENTES!$D:$D,0),2))","v":""},"","",10,{"$f":"IF(E14<>\"\",CONCATENATE($A$2,DIGITADOR!$B$2,DIGITADOR!$M$1,ROW()-3),\"\")","v":""}]
[null,null,1,{"$f":"IF(AI15=\"\",\"\",IF(COUNTIF($AI15:AI15, AI15)>1, \"\", AI15))","v":""},null,null,"","",{"$f":"IF(AI15=\"\",\"\",IF(COUNTIF($AI15:AI15, AI15)>1, \"\", AI15))","v":""},null,{"$f":"IF(J15=\"\",\"\",INDEX(REFERENTES!$Y:$Z,MATCH(J15,REFERENTES!$Z:$Z,0),1))","v":""},"",null,null,"",{"$f":"IF(O15=\"\",\"\",INDEX('OTRAS REFERENCIAS'!$L$5:$M$149,MATCH(O15,'OTRAS REFERENCIAS'!$L$5:$L$159,0),2))","v":""},null,null,null,null,null,{"$f":"IF(U15=\"\",\"\",VLOOKUP(U15,'OTRAS REFERENCIAS'!$A$7:$B$9,2,FALSE))","v":""},null,"",null,{"$f":"IF(Y15=\"\",\"\",INDEX(REFERENTES!J:K,MATCH(Y15,REFERENTES!K:K,0),1))","v":""},{"$f":"IF(Y15=\"\",\"\",INDEX(REFERENTES!$D:$L,MATCH(Y15,REFERENTES!$K:$K,0),9))","v":""},{"$f":"IF(Y15=\"\",\"\",INDEX(REFERENTES!$J:$P,MATCH(Y15,REFERENTES!$K:$K,0),7))","v":""},null,null,{"$f":"IF(AD15=\"\",\"\",INDEX(REFERENTES!$D:$E,MATCH(AD15,REFERENTES!$D:$D,0),2))","v":""},"","",11,{"$f":"IF(E15<>\"\",CONCATENATE($A$2,DIGITADOR!$B$2,DIGITADOR!$M$1,ROW()-3),\"\")","v":""}]
[null,null,1,{"$f":"IF(AI16=\"\",\"\",IF(COUNTIF($AI16:AI16, AI16)>1, \"\", AI16))","v":""},null,null,"","",{"$f":"IF(AI16=\"\",\"\",IF(COUNTIF($AI16:AI16, AI16)>1, \"\", AI16))","v":""},null,{"$f":"IF(J16=\"\",\"\",INDEX(REFERENTES!$Y:$Z,MATCH(J16,REFERENTES!$Z:$Z,0),1))","v":""},"",null,null,"",{"$f":"IF(O16=\"\",\"\",INDEX('OTRAS REFERENCIAS'!$L$5:$M$149,MATCH(O16,'OTRAS REFERENCIAS'!$L$5:$L$159,0),2))","v":""},null,null,null,null,null,{"$f":"IF(U16=\"\",\"\",VLOOKUP(U16,'OTRAS REFERENCIAS'!$A$7:$B$9,2,FALSE))","v":""},null,"",null,{"$f":"IF(Y16=\"\",\"\",INDEX(REFERENTES!J:K,MATCH(Y16,REFERENTES!K:K,0),1))","v":""},{"$f":"IF(Y16=\"\",\"\",INDEX(REFERENTES!$D:$L,MATCH(Y16,REFERENTES!$K:$K,0),9))","v":""},{"$f":"IF(Y16=\"\",\"\",INDEX(REFERENTES!$J:$P,MATCH(Y16,REFERENTES!$K:$K,0),7))","v":""},null,null,{"$f":"IF(AD16=\"\",\"\",INDEX(REFERENTES!$D:$E,MATCH(AD16,REFERENTES!$D:$D,0),2))","v":""},"","",12,{"$f":"IF(E16<>\"\",CONCATENATE($A$2,DIGITADOR!$B$2,DIGITADOR!$M$1,ROW()-3),\"\")","v":""}]
[null,null,1,{"$f":"IF(AI17=\"\",\"\",IF(COUNTIF($AI17:AI17, AI17)>1, \"\", AI17))","v":""},null,null,"","",{"$f":"IF(AI17=\"\",\"\",IF(COUNTIF($AI17:AI17, AI17)>1, \"\", AI17))","v":""},null,{"$f":"IF(J17=\"\",\"\",INDEX(REFERENTES!$Y:$Z,MATCH(J17,REFERENTES!$Z:$Z,0),1))","v":""},"",null,null,"",{"$f":"IF(O17=\"\",\"\",INDEX('OTRAS REFERENCIAS'!$L$5:$M$149,MATCH(O17,'OTRAS REFERENCIAS'!$L$5:$L$159,0),2))","v":""},null,null,null,null,null,{"$f":"IF(U17=\"\",\"\",VLOOKUP(U17,'OTRAS REFERENCIAS'!$A$7:$B$9,2,FALSE))","v":""},null,"",null,{"$f":"IF(Y17=\"\",\"\",INDEX(REFERENTES!J:K,MATCH(Y17,REFERENTES!K:K,0),1))","v":""},{"$f":"IF(Y17=\"\",\"\",INDEX(REFERENTES!$D:$L,MATCH(Y17,REFERENTES!$K:$K,0),9))","v":""},{"$f":"IF(Y17=\"\",\"\",INDEX(REFERENTES!$J:$P,MATCH(Y17,REFERENTES!$K:$K,0),7))","v":""},null,null,{"$f":"IF(AD17=\"\",\"\",INDEX(REFERENTES!$D:$E,MATCH(AD17,REFERENTES!$D:$D,0),2))","v":""},"","",13,{"$f":"IF(E17<>\"\",CONCATENATE($A$2,DIGITADOR!$B$2,DIGITADOR!$M$1,ROW()-3),\"\")","v":""}]
[null,null,1,{"$f":"IF(AI18=\"\",\"\",IF(COUNTIF($AI18:AI18, AI18)>1, \"\", AI18))","v":""},null,null,"","",{"$f":"IF(AI18=\"\",\"\",IF(COUNTIF($AI18:AI18, AI18)>1, \"\", AI18))","v":""},null,{"$f":"IF(J18=\"\",\"\",INDEX(REFERENTES!$Y:$Z,MATCH(J18,REFERENTES!$Z:$Z,0),1))","v":""},"",null,null,"",{"$f":"IF(O18=\"\",\"\",INDEX('OTRAS REFERENCIAS'!$L$5:$M$149,MATCH(O18,'OTRAS REFERENCIAS'!$L$5:$L$159,0),2))","v":""},null,null,null,null,null,{"$f":"IF(U18=\"\",\"\",VLOOKUP(U18,'OTRAS REFERENCIAS'!$A$7:$B$9,2,FALSE))","v":""},null,"",null,{"$f":"IF(Y18=\"\",\"\",INDEX(REFERENTES!J:K,MATCH(Y18,REFERENTES!K:K,0),1))","v":""},{"$f":"IF(Y18=\"\",\"\",INDEX(REFERENTES!$D:$L,MATCH(Y18,REFERENTES!$K:$K,0),9))","v":""},{"$f":"IF(Y18=\"\",\"\",INDEX(REFERENTES!$J:$P,MATCH(Y18,REFERENTES!$K:$K,0),7))","v":""},null,null,{"$f":"IF(AD18=\"\",\"\",INDEX(REFERENTES!$D:$E,MATCH(AD18,REFERENTES!$D:$D,0),2))","v":""},"","",14,{"$f":"IF(E18<>\"\",CONCATENATE($A$2,DIGITADOR!$B$2,DIGITADOR!$M$1,ROW()-3),\"\")","v":""}]
[null,null,1,{"$f":"IF(AI19=\"\",\"\",IF(COUNTIF($AI19:AI19, AI19)>1, \"\", AI19))","v":""},null,null,"","",{"$f":"IF(AI19=\"\",\"\",IF(COUNTIF($AI19:AI19, AI19)>1, \"\", AI19))","v":""},null,{"$f":"IF(J19=\"\",\"\",INDEX(REFERENTES!$Y:$Z,MATCH(J19,REFERENTES!$Z:$Z,0),1))","v":""},"",null,null,"",{"$f":"IF(O19=\"\",\"\",INDEX('OTRAS REFERENCIAS'!$L$5:$M$149,MATCH(O19,'OTRAS REFERENCIAS'!$L$5:$L$159,0),2))","v":""},null,null,null,null,null,{"$f":"IF(U19=\"\",\"\",VLOOKUP(U19,'OTRAS REFERENCIAS'!$A$7:$B$9,2,FALSE))","v":""},null,"",null,{"$f":"IF(Y19=\"\",\"\",INDEX(REFERENTES!J:K,MATCH(Y19,REFERENTES!K:K,0),1))","v":""},{"$f":"IF(Y19=\"\",\"\",INDEX(REFERENTES!$D:$L,MATCH(Y19,REFERENTES!$K:$K,0),9))","v":""},{"$f":"IF(Y19=\"\",\"\",INDEX(REFERENTES!$J:$P,MATCH(Y19,REFERENTES!$K:$K,0),7))","v":""},null,null,{"$f":"IF(AD19=\"\",\"\",INDEX(REFERENTES!$D:$E,MATCH(AD19,REFERENTES!$D:$D,0),2))","v":""},"","",15,{"$f":"IF(E19<>\"\",CONCATENATE($A$2,DIGITADOR!$B$2,DIGITADOR!$M$1,ROW()-3),\"\")","v":""}]
[null,null,1,{"$f":"IF(AI20=\"\",\"\",IF(COUNTIF($AI20:AI20, AI20)>1, \"\", AI20))","v":""},null,null,"","",{"$f":"IF(AI20=\"\",\"\",IF(COUNTIF($AI20:AI20, AI20)>1, \"\", AI20))","v":""},null,{"$f":"IF(J20=\"\",\"\",INDEX(REFERENTES!$Y:$Z,MATCH(J20,REFERENTES!$Z:$Z,0),1))","v":""},"",null,null,"",{"$f":"IF(O20=\"\",\"\",INDEX('OTRAS REFERENCIAS'!$L$5:$M$149,MATCH(O20,'OTRAS REFERENCIAS'!$L$5:$L$159,0),2))","v":""},null,null,null,null,null,{"$f":"IF(U20=\"\",\"\",VLOOKUP(U20,'OTRAS REFERENCIAS'!$A$7:$B$9,2,FALSE))","v":""},null,"",null,{"$f":"IF(Y20=\"\",\"\",INDEX(REFERENTES!J:K,MATCH(Y20,REFERENTES!K:K,0),1))","v":""},{"$f":"IF(Y20=\"\",\"\",INDEX(REFERENTES!$D:$L,MATCH(Y20,REFERENTES!$K:$K,0),9))","v":""},{"$f":"IF(Y20=\"\",\"\",INDEX(REFERENTES!$J:$P,MATCH(Y20,REFERENTES!$K:$K,0),7))","v":""},null,null,{"$f":"IF(AD20=\"\",\"\",INDEX(REFERENTES!$D:$E,MATCH(AD20,REFERENTES!$D:$D,0),2))","v":""},"","",16,{"$f":"IF(E20<>\"\",CONCATENATE($A$2,DIGITADOR!$B$2,DIGITADOR!$M$1,ROW()-3),\"\")","v":""}]
[null,null,1,{"$f":"IF(AI21=\"\",\"\",IF(COUNTIF($AI21:AI21, AI21)>1, \"\", AI21))","v":""},null,null,"","",{"$f":"IF(AI21=\"\",\"\",IF(COUNTIF($AI21:AI21, AI21)>1, \"\", AI21))","v":""},null,{"$f":"IF(J21=\"\",\"\",INDEX(REFERENTES!$Y:$Z,MATCH(J21,REFERENTES!$Z:$Z,0),1))","v":""},"",null,null,"",{"$f":"IF(O21=\"\",\"\",INDEX('OTRAS REFERENCIAS'!$L$5:$M$149,MATCH(O21,'OTRAS REFERENCIAS'!$L$5:$L$159,0),2))","v":""},null,null,null,null,null,{"$f":"IF(U21=\"\",\"\",VLOOKUP(U21,'OTRAS REFERENCIAS'!$A$7:$B$9,2,FALSE))","v":""},null,"",null,{"$f":"IF(Y21=\"\",\"\",INDEX(REFERENTES!J:K,MATCH(Y21,REFERENTES!K:K,0),1))","v":""},{"$f":"IF(Y21=\"\",\"\",INDEX(REFERENTES!$D:$L,MATCH(Y21,REFERENTES!$K:$K,0),9))","v":""},{"$f":"IF(Y21=\"\",\"\",INDEX(REFERENTES!$J:$P,MATCH(Y21,REFERENTES!$K:$K,0),7))","v":""},null,null,{"$f":"IF(AD21=\"\",\"\",INDEX(REFERENTES!$D:$E,MATCH(AD21,REFERENTES!$D:$D,0),2))","v":""},"","",17,{"$f":"IF(E21<>\"\",CONCATENATE($A$2,DIGITADOR!$B$2,DIGITADOR!$M$1,ROW()-3),\"\")","v":""}]
[null,null,1,{"$f":"IF(AI22=\"\",\"\",IF(COUNTIF($AI22:AI22, AI22)>1, \"\", AI22))","v":""},null,null,"","",{"$f":"IF(AI22=\"\",\"\",IF(COUNTIF($AI22:AI22, AI22)>1, \"\", AI22))","v":""},null,{"$f":"IF(J22=\"\",\"\",INDEX(REFERENTES!$Y:$Z,MATCH(J22,REFERENTES!$Z:$Z,0),1))","v":""},"",null,null,"",{"$f":"IF(O22=\"\",\"\",INDEX('OTRAS REFERENCIAS'!$L$5:$M$149,MATCH(O22,'OTRAS REFERENCIAS'!$L$5:$L$159,0),2))","v":""},null,null,null,null,null,{"$f":"IF(U22=\"\",\"\",VLOOKUP(U22,'OTRAS REFERENCIAS'!$A$7:$B$9,2,FALSE))","v":""},null,"",null,{"$f":"IF(Y22=\"\",\"\",INDEX(REFERENTES!J:K,MATCH(Y22,REFERENTES!K:K,0),1))","v":""},{"$f":"IF(Y22=\"\",\"\",INDEX(REFERENTES!$D:$L,MATCH(Y22,REFERENTES!$K:$K,0),9))","v":""},{"$f":"IF(Y22=\"\",\"\",INDEX(REFERENTES!$J:$P,MATCH(Y22,REFERENTES!$K:$K,0),7))","v":""},null,null,{"$f":"IF(AD22=\"\",\"\",INDEX(REFERENTES!$D:$E,MATCH(AD22,REFERENTES!$D:$D,0),2))","v":""},"","",18,{"$f":"IF(E22<>\"\",CONCATENATE($A$2,DIGITADOR!$B$2,DIGITADOR!$M$1,ROW()-3),\"\")","v":""}]
[null,null,1,{"$f":"IF(AI23=\"\",\"\",IF(COUNTIF($AI23:AI23, AI23)>1, \"\", AI23))","v":""},null,null,"","",{"$f":"IF(AI23=\"\",\"\",IF(COUNTIF($AI23:AI23, AI23)>1, \"\", AI23))","v":""},null,{"$f":"IF(J23=\"\",\"\",INDEX(REFERENTES!$Y:$Z,MATCH(J23,REFERENTES!$Z:$Z,0),1))","v":""},"",null,null,"",{"$f":"IF(O23=\"\",\"\",INDEX('OTRAS REFERENCIAS'!$L$5:$M$149,MATCH(O23,'OTRAS REFERENCIAS'!$L$5:$L$159,0),2))","v":""},null,null,null,null,null,{"$f":"IF(U23=\"\",\"\",VLOOKUP(U23,'OTRAS REFERENCIAS'!$A$7:$B$9,2,FALSE))","v":""},null,"",null,{"$f":"IF(Y23=\"\",\"\",INDEX(REFERENTES!J:K,MATCH(Y23,REFERENTES!K:K,0),1))","v":""},{"$f":"IF(Y23=\"\",\"\",INDEX(REFERENTES!$D:$L,MATCH(Y23,REFERENTES!$K:$K,0),9))","v":""},{"$f":"IF(Y23=\"\",\"\",INDEX(REFERENTES!$J:$P,MATCH(Y23,REFERENTES!$K:$K,0),7))","v":""},null,null,{"$f":"IF(AD23=\"\",\"\",INDEX(REFERENTES!$D:$E,MATCH(AD23,REFERENTES!$D:$D,0),2))","v":""},"","",19,{"$f":"IF(E23<>\"\",CONCATENATE($A$2,DIGITADOR!$B$2,DIGITADOR!$M$1,ROW()-3),\"\")","v":""}]
[null,null,1,{"$f":"IF(AI24=\"\",\"\",IF(COUNTIF($AI24:AI24, AI24)>1, \"\", AI24))","v":""},null,null,"","",{"$f":"IF(AI24=\"\",\"\",IF(COUNTIF($AI24:AI24, AI24)>1, \"\", AI24))","v":""},null,{"$f":"IF(J24=\"\",\"\",INDEX(REFERENTES!$Y:$Z,MATCH(J24,REFERENTES!$Z:$Z,0),1))","v":""},"",null,null,"",{"$f":"IF(O24=\"\",\"\",INDEX('OTRAS REFERENCIAS'!$L$5:$M$149,MATCH(O24,'OTRAS REFERENCIAS'!$L$5:$L$159,0),2))","v":""},null,null,null,null,null,{"$f":"IF(U24=\"\",\"\",VLOOKUP(U24,'OTRAS REFERENCIAS'!$A$7:$B$9,2,FALSE))","v":""},null,"",null,{"$f":"IF(Y24=\"\",\"\",INDEX(REFERENTES!J:K,MATCH(Y24,REFERENTES!K:K,0),1))","v":""},{"$f":"IF(Y24=\"\",\"\",INDEX(REFERENTES!$D:$L,MATCH(Y24,REFERENTES!$K:$K,0),9))","v":""},{"$f":"IF(Y24=\"\",\"\",INDEX(REFERENTES!$J:$P,MATCH(Y24,REFERENTES!$K:$K,0),7))","v":""},null,null,{"$f":"IF(AD24=\"\",\"\",INDEX(REFERENTES!$D:$E,MATCH(AD24,REFERENTES!$D:$D,0),2))","v":""},"","",20,{"$f":"IF(E24<>\"\",CONCATENATE($A$2,DIGITADOR!$B$2,DIGITADOR!$M$1,ROW()-3),\"\")","v":""}]
[null,null,1,{"$f":"IF(AI25=\"\",\"\",IF(COUNTIF($AI25:AI25, AI25)>1, \"\", AI25))","v":""},null,null,"","",{"$f":"IF(AI25=\"\",\"\",IF(COUNTIF($AI25:AI25, AI25)>1, \"\", AI25))","v":""},null,{"$f":"IF(J25=\"\",\"\",INDEX(REFERENTES!$Y:$Z,MATCH(J25,REFERENTES!$Z:$Z,0),1))","v":""},"",null,null,"",{"$f":"IF(O25=\"\",\"\",INDEX('OTRAS REFERENCIAS'!$L$5:$M$149,MATCH(O25,'OTRAS REFERENCIAS'!$L$5:$L$159,0),2))","v":""},null,null,null,null,null,{"$f":"IF(U25=\"\",\"\",VLOOKUP(U25,'OTRAS REFERENCIAS'!$A$7:$B$9,2,FALSE))","v":""},null,"",null,{"$f":"IF(Y25=\"\",\"\",INDEX(REFERENTES!J:K,MATCH(Y25,REFERENTES!K:K,0),1))","v":""},{"$f":"IF(Y25=\"\",\"\",INDEX(REFERENTES!$D:$L,MATCH(Y25,REFERENTES!$K:$K,0),9))","v":""},{"$f":"IF(Y25=\"\",\"\",INDEX(REFERENTES!$J:$P,MATCH(Y25,REFERENTES!$K:$K,0),7))","v":""},null,null,{"$f":"IF(AD25=\"\",\"\",INDEX(REFERENTES!$D:$E,MATCH(AD25,REFERENTES!$D:$D,0),2))","v":""},"","",21,{"$f":"IF(E25<>\"\",CONCATENATE($A$2,DIGITADOR!$B$2,DIGITADOR!$M$1,ROW()-3),\"\")","v":""}]
[null,null,1,{"$f":"IF(AI26=\"\",\"\",IF(COUNTIF($AI26:AI26, AI26)>1, \"\", AI26))","v":""},null,null,"","",{"$f":"IF(AI26=\"\",\"\",IF(COUNTIF($AI26:AI26, AI26)>1, \"\", AI26))","v":""},null,{"$f":"IF(J26=\"\",\"\",INDEX(REFERENTES!$Y:$Z,MATCH(J26,REFERENTES!$Z:$Z,0),1))","v":""},"",null,null,"",{"$f":"IF(O26=\"\",\"\",INDEX('OTRAS REFERENCIAS'!$L$5:$M$149,MATCH(O26,'OTRAS REFERENCIAS'!$L$5:$L$159,0),2))","v":""},null,null,null,null,null,{"$f":"IF(U26=\"\",\"\",VLOOKUP(U26,'OTRAS REFERENCIAS'!$A$7:$B$9,2,FALSE))","v":""},null,"",null,{"$f":"IF(Y26=\"\",\"\",INDEX(REFERENTES!J:K,MATCH(Y26,REFERENTES!K:K,0),1))","v":""},{"$f":"IF(Y26=\"\",\"\",INDEX(REFERENTES!$D:$L,MATCH(Y26,REFERENTES!$K:$K,0),9))","v":""},{"$f":"IF(Y26=\"\",\"\",INDEX(REFERENTES!$J:$P,MATCH(Y26,REFERENTES!$K:$K,0),7))","v":""},null,null,{"$f":"IF(AD26=\"\",\"\",INDEX(REFERENTES!$D:$E,MATCH(AD26,REFERENTES!$D:$D,0),2))","v":""},"","",22,{"$f":"IF(E26<>\"\",CONCATENATE($A$2,DIGITADOR!$B$2,DIGITADOR!$M$1,ROW()-3),\"\")","v":""}]
[null,null,1,{"$f":"IF(AI27=\"\",\"\",IF(COUNTIF($AI27:AI27, AI27)>1, \"\", AI27))","v":""},null,null,"","",{"$f":"IF(AI27=\"\",\"\",IF(COUNTIF($AI27:AI27, AI27)>1, \"\", AI27))","v":""},null,{"$f":"IF(J27=\"\",\"\",INDEX(REFERENTES!$Y:$Z,MATCH(J27,REFERENTES!$Z:$Z,0),1))","v":""},"",null,null,"",{"$f":"IF(O27=\"\",\"\",INDEX('OTRAS REFERENCIAS'!$L$5:$M$149,MATCH(O27,'OTRAS REFERENCIAS'!$L$5:$L$159,0),2))","v":""},null,null,null,null,null,{"$f":"IF(U27=\"\",\"\",VLOOKUP(U27,'OTRAS REFERENCIAS'!$A$7:$B$9,2,FALSE))","v":""},null,"",null,{"$f":"IF(Y27=\"\",\"\",INDEX(REFERENTES!J:K,MATCH(Y27,REFERENTES!K:K,0),1))","v":""},{"$f":"IF(Y27=\"\",\"\",INDEX(REFERENTES!$D:$L,MATCH(Y27,REFERENTES!$K:$K,0),9))","v":""},{"$f":"IF(Y27=\"\",\"\",INDEX(REFERENTES!$J:$P,MATCH(Y27,REFERENTES!$K:$K,0),7))","v":""},null,null,{"$f":"IF(AD27=\"\",\"\",INDEX(REFERENTES!$D:$E,MATCH(AD27,REFERENTES!$D:$D,0),2))","v":""},"","",23,{"$f":"IF(E27<>\"\",CONCATENATE($A$2,DIGITADOR!$B$2,DIGITADOR!$M$1,ROW()-3),\"\")","v":""}]
[null,null,1,{"$f":"IF(AI28=\"\",\"\",IF(COUNTIF($AI28:AI28, AI28)>1, \"\", AI28))","v":""},null,null,"","",{"$f":"IF(AI28=\"\",\"\",IF(COUNTIF($AI28:AI28, AI28)>1, \"\", AI28))","v":""},null,{"$f":"IF(J28=\"\",\"\",INDEX(REFERENTES!$Y:$Z,MATCH(J28,REFERENTES!$Z:$Z,0),1))","v":""},"",null,null,"",{"$f":"IF(O28=\"\",\"\",INDEX('OTRAS REFERENCIAS'!$L$5:$M$149,MATCH(O28,'OTRAS REFERENCIAS'!$L$5:$L$159,0),2))","v":""},null,null,null,null,null,{"$f":"IF(U28=\"\",\"\",VLOOKUP(U28,'OTRAS REFERENCIAS'!$A$7:$B$9,2,FALSE))","v":""},null,"",null,{"$f":"IF(Y28=\"\",\"\",INDEX(REFERENTES!J:K,MATCH(Y28,REFERENTES!K:K,0),1))","v":""},{"$f":"IF(Y28=\"\",\"\",INDEX(REFERENTES!$D:$L,MATCH(Y28,REFERENTES!$K:$K,0),9))","v":""},{"$f":"IF(Y28=\"\",\"\",INDEX(REFERENTES!$J:$P,MATCH(Y28,REFERENTES!$K:$K,0),7))","v":""},null,null,{"$f":"IF(AD28=\"\",\"\",INDEX(REFERENTES!$D:$E,MATCH(AD28,REFERENTES!$D:$D,0),2))","v":""},"","",24,{"$f":"IF(E28<>\"\",CONCATENATE($A$2,DIGITADOR!$B$2,DIGITADOR!$M$1,ROW()-3),\"\")","v":""}]
[null,null,1,{"$f":"IF(AI29=\"\",\"\",IF(COUNTIF($AI29:AI29, AI29)>1, \"\", AI29))","v":""},null,null,"","",{"$f":"IF(AI29=\"\",\"\",IF(COUNTIF($AI29:AI29, AI29)>1, \"\", AI29))","v":""},null,{"$f":"IF(J29=\"\",\"\",INDEX(REFERENTES!$Y:$Z,MATCH(J29,REFERENTES!$Z:$Z,0),1))","v":""},"",null,null,"",{"$f":"IF(O29=\"\",\"\",INDEX('OTRAS REFERENCIAS'!$L$5:$M$149,MATCH(O29,'OTRAS REFERENCIAS'!$L$5:$L$159,0),2))","v":""},null,null,null,null,null,{"$f":"IF(U29=\"\",\"\",VLOOKUP(U29,'OTRAS REFERENCIAS'!$A$7:$B$9,2,FALSE))","v":""},null,"",null,{"$f":"IF(Y29=\"\",\"\",INDEX(REFERENTES!J:K,MATCH(Y29,REFERENTES!K:K,0),1))","v":""},{"$f":"IF(Y29=\"\",\"\",INDEX(REFERENTES!$D:$L,MATCH(Y29,REFERENTES!$K:$K,0),9))","v":""},{"$f":"IF(Y29=\"\",\"\",INDEX(REFERENTES!$J:$P,MATCH(Y29,REFERENTES!$K:$K,0),7))","v":""},null,null,{"$f":"IF(AD29=\"\",\"\",INDEX(REFERENTES!$D:$E,MATCH(AD29,REFERENTES!$D:$D,0),2))","v":""},"","",25,{"$f":"IF(E29<>\"\",CONCATENATE($A$2,DIGITADOR!$B$2,DIGITADOR!$M$1,ROW()-3),\"\")","v":""}]
[null,null,1,{"$f":"IF(AI30=\"\",\"\",IF(COUNTIF($AI30:AI30, AI30)>1, \"\", AI30))","v":""},null,null,"","",{"$f":"IF(AI30=\"\",\"\",IF(COUNTIF($AI30:AI30, AI30)>1, \"\", AI30))","v":""},null,{"$f":"IF(J30=\"\",\"\",INDEX(REFERENTES!$Y:$Z,MATCH(J30,REFERENTES!$Z:$Z,0),1))","v":""},"",null,null,"",{"$f":"IF(O30=\"\",\"\",INDEX('OTRAS REFERENCIAS'!$L$5:$M$149,MATCH(O30,'OTRAS REFERENCIAS'!$L$5:$L$159,0),2))","v":""},null,null,null,null,null,{"$f":"IF(U30=\"\",\"\",VLOOKUP(U30,'OTRAS REFERENCIAS'!$A$7:$B$9,2,FALSE))","v":""},null,"",null,{"$f":"IF(Y30=\"\",\"\",INDEX(REFERENTES!J:K,MATCH(Y30,REFERENTES!K:K,0),1))","v":""},{"$f":"IF(Y30=\"\",\"\",INDEX(REFERENTES!$D:$L,MATCH(Y30,REFERENTES!$K:$K,0),9))","v":""},{"$f":"IF(Y30=\"\",\"\",INDEX(REFERENTES!$J:$P,MATCH(Y30,REFERENTES!$K:$K,0),7))","v":""},null,null,{"$f":"IF(AD30=\"\",\"\",INDEX(REFERENTES!$D:$E,MATCH(AD30,REFERENTES!$D:$D,0),2))","v":""},"","",26,{"$f":"IF(E30<>\"\",CONCATENATE($A$2,DIGITADOR!$B$2,DIGITADOR!$M$1,ROW()-3),\"\")","v":""}]
[null,null,1,{"$f":"IF(AI31=\"\",\"\",IF(COUNTIF($AI31:AI31, AI31)>1, \"\", AI31))","v":""},null,null,"","",{"$f":"IF(AI31=\"\",\"\",IF(COUNTIF($AI31:AI31, AI31)>1, \"\", AI31))","v":""},null,{"$f":"IF(J31=\"\",\"\",INDEX(REFERENTES!$Y:$Z,MATCH(J31,REFERENTES!$Z:$Z,0),1))","v":""},"",null,null,"",{"$f":"IF(O31=\"\",\"\",INDEX('OTRAS REFERENCIAS'!$L$5:$M$149,MATCH(O31,'OTRAS REFERENCIAS'!$L$5:$L$159,0),2))","v":""},null,null,null,null,null,{"$f":"IF(U31=\"\",\"\",VLOOKUP(U31,'OTRAS REFERENCIAS'!$A$7:$B$9,2,FALSE))","v":""},null,"",null,{"$f":"IF(Y31=\"\",\"\",INDEX(REFERENTES!J:K,MATCH(Y31,REFERENTES!K:K,0),1))","v":""},{"$f":"IF(Y31=\"\",\"\",INDEX(REFERENTES!$D:$L,MATCH(Y31,REFERENTES!$K:$K,0),9))","v":""},{"$f":"IF(Y31=\"\",\"\",INDEX(REFERENTES!$J:$P,MATCH(Y31,REFERENTES!$K:$K,0),7))","v":""},null,null,{"$f":"IF(AD31=\"\",\"\",INDEX(REFERENTES!$D:$E,MATCH(AD31,REFERENTES!$D:$D,0),2))","v":""},"","",27,{"$f":"IF(E31<>\"\",CONCATENATE($A$2,DIGITADOR!$B$2,DIGITADOR!$M$1,ROW()-3),\"\")","v":""}]
[null,null,1,{"$f":"IF(AI32=\"\",\"\",IF(COUNTIF($AI32:AI32, AI32)>1, \"\", AI32))","v":""},null,null,"","",{"$f":"IF(AI32=\"\",\"\",IF(COUNTIF($AI32:AI32, AI32)>1, \"\", AI32))","v":""},null,{"$f":"IF(J32=\"\",\"\",INDEX(REFERENTES!$Y:$Z,MATCH(J32,REFERENTES!$Z:$Z,0),1))","v":""},"",null,null,"",{"$f":"IF(O32=\"\",\"\",INDEX('OTRAS REFERENCIAS'!$L$5:$M$149,MATCH(O32,'OTRAS REFERENCIAS'!$L$5:$L$159,0),2))","v":""},null,null,null,null,null,{"$f":"IF(U32=\"\",\"\",VLOOKUP(U32,'OTRAS REFERENCIAS'!$A$7:$B$9,2,FALSE))","v":""},null,"",null,{"$f":"IF(Y32=\"\",\"\",INDEX(REFERENTES!J:K,MATCH(Y32,REFERENTES!K:K,0),1))","v":""},{"$f":"IF(Y32=\"\",\"\",INDEX(REFERENTES!$D:$L,MATCH(Y32,REFERENTES!$K:$K,0),9))","v":""},{"$f":"IF(Y32=\"\",\"\",INDEX(REFERENTES!$J:$P,MATCH(Y32,REFERENTES!$K:$K,0),7))","v":""},null,null,{"$f":"IF(AD32=\"\",\"\",INDEX(REFERENTES!$D:$E,MATCH(AD32,REFERENTES!$D:$D,0),2))","v":""},"","",28,{"$f":"IF(E32<>\"\",CONCATENATE($A$2,DIGITADOR!$B$2,DIGITADOR!$M$1,ROW()-3),\"\")","v":""}]
[null,null,1,{"$f":"IF(AI33=\"\",\"\",IF(COUNTIF($AI33:AI33, AI33)>1, \"\", AI33))","v":""},null,null,"","",{"$f":"IF(AI33=\"\",\"\",IF(COUNTIF($AI33:AI33, AI33)>1, \"\", AI33))","v":""},null,{"$f":"IF(J33=\"\",\"\",INDEX(REFERENTES!$Y:$Z,MATCH(J33,REFERENTES!$Z:$Z,0),1))","v":""},"",null,null,"",{"$f":"IF(O33=\"\",\"\",INDEX('OTRAS REFERENCIAS'!$L$5:$M$149,MATCH(O33,'OTRAS REFERENCIAS'!$L$5:$L$159,0),2))","v":""},null,null,null,null,null,{"$f":"IF(U33=\"\",\"\",VLOOKUP(U33,'OTRAS REFERENCIAS'!$A$7:$B$9,2,FALSE))","v":""},null,"",null,{"$f":"IF(Y33=\"\",\"\",INDEX(REFERENTES!J:K,MATCH(Y33,REFERENTES!K:K,0),1))","v":""},{"$f":"IF(Y33=\"\",\"\",INDEX(REFERENTES!$D:$L,MATCH(Y33,REFERENTES!$K:$K,0),9))","v":""},{"$f":"IF(Y33=\"\",\"\",INDEX(REFERENTES!$J:$P,MATCH(Y33,REFERENTES!$K:$K,0),7))","v":""},null,null,{"$f":"IF(AD33=\"\",\"\",INDEX(REFERENTES!$D:$E,MATCH(AD33,REFERENTES!$D:$D,0),2))","v":""},"","",29,{"$f":"IF(E33<>\"\",CONCATENATE($A$2,DIGITADOR!$B$2,DIGITADOR!$M$1,ROW()-3),\"\")","v":""}]
[null,null,1,{"$f":"IF(AI34=\"\",\"\",IF(COUNTIF($AI34:AI34, AI34)>1, \"\", AI34))","v":""},null,null,"","",{"$f":"IF(AI34=\"\",\"\",IF(COUNTIF($AI34:AI34, AI34)>1, \"\", AI34))","v":""},null,{"$f":"IF(J34=\"\",\"\",INDEX(REFERENTES!$Y:$Z,MATCH(J34,REFERENTES!$Z:$Z,0),1))","v":""},"",null,null,"",{"$f":"IF(O34=\"\",\"\",INDEX('OTRAS REFERENCIAS'!$L$5:$M$149,MATCH(O34,'OTRAS REFERENCIAS'!$L$5:$L$159,0),2))","v":""},null,null,null,null,null,{"$f":"IF(U34=\"\",\"\",VLOOKUP(U34,'OTRAS REFERENCIAS'!$A$7:$B$9,2,FALSE))","v":""},null,"",null,{"$f":"IF(Y34=\"\",\"\",INDEX(REFERENTES!J:K,MATCH(Y34,REFERENTES!K:K,0),1))","v":""},{"$f":"IF(Y34=\"\",\"\",INDEX(REFERENTES!$D:$L,MATCH(Y34,REFERENTES!$K:$K,0),9))","v":""},{"$f":"IF(Y34=\"\",\"\",INDEX(REFERENTES!$J:$P,MATCH(Y34,REFERENTES!$K:$K,0),7))","v":""},null,null,{"$f":"IF(AD34=\"\",\"\",INDEX(REFERENTES!$D:$E,MATCH(AD34,REFERENTES!$D:$D,0),2))","v":""},"","",30,{"$f":"IF(E34<>\"\",CONCATENATE($A$2,DIGITADOR!$B$2,DIGITADOR!$M$1,ROW()-3),\"\")","v":""}]
[null,null,1,{"$f":"IF(AI35=\"\",\"\",IF(COUNTIF($AI35:AI35, AI35)>1, \"\", AI35))","v":""},null,null,"","",{"$f":"IF(AI35=\"\",\"\",IF(COUNTIF($AI35:AI35, AI35)>1, \"\", AI35))","v":""},null,{"$f":"IF(J35=\"\",\"\",INDEX(REFERENTES!$Y:$Z,MATCH(J35,REFERENTES!$Z:$Z,0),1))","v":""},"",null,null,"",{"$f":"IF(O35=\"\",\"\",INDEX('OTRAS REFERENCIAS'!$L$5:$M$149,MATCH(O35,'OTRAS REFERENCIAS'!$L$5:$L$159,0),2))","v":""},null,null,null,null,null,{"$f":"IF(U35=\"\",\"\",VLOOKUP(U35,'OTRAS REFERENCIAS'!$A$7:$B$9,2,FALSE))","v":""},null,"",null,{"$f":"IF(Y35=\"\",\"\",INDEX(REFERENTES!J:K,MATCH(Y35,REFERENTES!K:K,0),1))","v":""},{"$f":"IF(Y35=\"\",\"\",INDEX(REFERENTES!$D:$L,MATCH(Y35,REFERENTES!$K:$K,0),9))","v":""},{"$f":"IF(Y35=\"\",\"\",INDEX(REFERENTES!$J:$P,MATCH(Y35,REFERENTES!$K:$K,0),7))","v":""},null,null,{"$f":"IF(AD35=\"\",\"\",INDEX(REFERENTES!$D:$E,MATCH(AD35,REFERENTES!$D:$D,0),2))","v":""},"","",31,{"$f":"IF(E35<>\"\",CONCATENATE($A$2,DIGITADOR!$B$2,DIGITADOR!$M$1,ROW()-3),\"\")","v":""}]
[null,null,1,{"$f":"IF(AI36=\"\",\"\",IF(COUNTIF($AI36:AI36, AI36)>1, \"\", AI36))","v":""},null,null,"","",{"$f":"IF(AI36=\"\",\"\",IF(COUNTIF($AI36:AI36, AI36)>1, \"\", AI36))","v":""},null,{"$f":"IF(J36=\"\",\"\",INDEX(REFERENTES!$Y:$Z,MATCH(J36,REFERENTES!$Z:$Z,0),1))","v":""},"",null,null,"",{"$f":"IF(O36=\"\",\"\",INDEX('OTRAS REFERENCIAS'!$L$5:$M$149,MATCH(O36,'OTRAS REFERENCIAS'!$L$5:$L$159,0),2))","v":""},null,null,null,null,null,{"$f":"IF(U36=\"\",\"\",VLOOKUP(U36,'OTRAS REFERENCIAS'!$A$7:$B$9,2,FALSE))","v":""},null,"",null,{"$f":"IF(Y36=\"\",\"\",INDEX(REFERENTES!J:K,MATCH(Y36,REFERENTES!K:K,0),1))","v":""},{"$f":"IF(Y36=\"\",\"\",INDEX(REFERENTES!$D:$L,MATCH(Y36,REFERENTES!$K:$K,0),9))","v":""},{"$f":"IF(Y36=\"\",\"\",INDEX(REFERENTES!$J:$P,MATCH(Y36,REFERENTES!$K:$K,0),7))","v":""},null,null,{"$f":"IF(AD36=\"\",\"\",INDEX(REFERENTES!$D:$E,MATCH(AD36,REFERENTES!$D:$D,0),2))","v":""},"","",32,{"$f":"IF(E36<>\"\",CONCATENATE($A$2,DIGITADOR!$B$2,DIGITADOR!$M$1,ROW()-3),\"\")","v":""}]
[null,null,1,{"$f":"IF(AI37=\"\",\"\",IF(COUNTIF($AI37:AI37, AI37)>1, \"\", AI37))","v":""},null,null,"","",{"$f":"IF(AI37=\"\",\"\",IF(COUNTIF($AI37:AI37, AI37)>1, \"\", AI37))","v":""},null,{"$f":"IF(J37=\"\",\"\",INDEX(REFERENTES!$Y:$Z,MATCH(J37,REFERENTES!$Z:$Z,0),1))","v":""},{"$f":"IF(G37=\"\",\"\",CONCATENATE(G37,P37,K37))","v":""},null,null,"",{"$f":"IF(O37=\"\",\"\",INDEX('OTRAS REFERENCIAS'!$L$5:$M$149,MATCH(O37,'OTRAS REFERENCIAS'!$L$5:$L$159,0),2))","v":""},null,null,null,null,null,{"$f":"IF(U37=\"\",\"\",VLOOKUP(U37,'OTRAS REFERENCIAS'!$A$7:$B$9,2,FALSE))","v":""},null,"",null,{"$f":"IF(Y37=\"\",\"\",INDEX(REFERENTES!J:K,MATCH(Y37,REFERENTES!K:K,0),1))","v":""},{"$f":"IF(Y37=\"\",\"\",INDEX(REFERENTES!$D:$L,MATCH(Y37,REFERENTES!$K:$K,0),9))","v":""},{"$f":"IF(Y37=\"\",\"\",INDEX(REFERENTES!$J:$P,MATCH(Y37,REFERENTES!$K:$K,0),7))","v":""},null,null,{"$f":"IF(AD37=\"\",\"\",INDEX(REFERENTES!$D:$E,MATCH(AD37,REFERENTES!$D:$D,0),2))","v":""},"","",33,{"$f":"IF(E37<>\"\",CONCATENATE($A$2,DIGITADOR!$B$2,DIGITADOR!$M$1,ROW()-3),\"\")","v":""}]
[null,null,1,{"$f":"IF(AI38=\"\",\"\",IF(COUNTIF($AI38:AI38, AI38)>1, \"\", AI38))","v":""},null,null,"","",{"$f":"IF(AI38=\"\",\"\",IF(COUNTIF($AI38:AI38, AI38)>1, \"\", AI38))","v":""},null,{"$f":"IF(J38=\"\",\"\",INDEX(REFERENTES!$Y:$Z,MATCH(J38,REFERENTES!$Z:$Z,0),1))","v":""},"",null,null,"",{"$f":"IF(O38=\"\",\"\",INDEX('OTRAS REFERENCIAS'!$L$5:$M$149,MATCH(O38,'OTRAS REFERENCIAS'!$L$5:$L$159,0),2))","v":""},null,null,null,null,null,{"$f":"IF(U38=\"\",\"\",VLOOKUP(U38,'OTRAS REFERENCIAS'!$A$7:$B$9,2,FALSE))","v":""},null,"",null,{"$f":"IF(Y38=\"\",\"\",INDEX(REFERENTES!J:K,MATCH(Y38,REFERENTES!K:K,0),1))","v":""},{"$f":"IF(Y38=\"\",\"\",INDEX(REFERENTES!$D:$L,MATCH(Y38,REFERENTES!$K:$K,0),9))","v":""},{"$f":"IF(Y38=\"\",\"\",INDEX(REFERENTES!$J:$P,MATCH(Y38,REFERENTES!$K:$K,0),7))","v":""},null,null,{"$f":"IF(AD38=\"\",\"\",INDEX(REFERENTES!$D:$E,MATCH(AD38,REFERENTES!$D:$D,0),2))","v":""},"","",34,{"$f":"IF(E38<>\"\",CONCATENATE($A$2,DIGITADOR!$B$2,DIGITADOR!$M$1,ROW()-3),\"\")","v":""}]
[null,null,1,{"$f":"IF(AI39=\"\",\"\",IF(COUNTIF($AI39:AI39, AI39)>1, \"\", AI39))","v":""},null,null,"","",{"$f":"IF(AI39=\"\",\"\",IF(COUNTIF($AI39:AI39, AI39)>1, \"\", AI39))","v":""},null,{"$f":"IF(J39=\"\",\"\",INDEX(REFERENTES!$Y:$Z,MATCH(J39,REFERENTES!$Z:$Z,0),1))","v":""},"",null,null,"",{"$f":"IF(O39=\"\",\"\",INDEX('OTRAS REFERENCIAS'!$L$5:$M$149,MATCH(O39,'OTRAS REFERENCIAS'!$L$5:$L$159,0),2))","v":""},null,null,null,null,null,{"$f":"IF(U39=\"\",\"\",VLOOKUP(U39,'OTRAS REFERENCIAS'!$A$7:$B$9,2,FALSE))","v":""},null,"",null,{"$f":"IF(Y39=\"\",\"\",INDEX(REFERENTES!J:K,MATCH(Y39,REFERENTES!K:K,0),1))","v":""},{"$f":"IF(Y39=\"\",\"\",INDEX(REFERENTES!$D:$L,MATCH(Y39,REFERENTES!$K:$K,0),9))","v":""},{"$f":"IF(Y39=\"\",\"\",INDEX(REFERENTES!$J:$P,MATCH(Y39,REFERENTES!$K:$K,0),7))","v":""},null,null,{"$f":"IF(AD39=\"\",\"\",INDEX(REFERENTES!$D:$E,MATCH(AD39,REFERENTES!$D:$D,0),2))","v":""},"","",35,{"$f":"IF(E39<>\"\",CONCATENATE($A$2,DIGITADOR!$B$2,DIGITADOR!$M$1,ROW()-3),\"\")","v":""}]
[null,null,1,{"$f":"IF(AI40=\"\",\"\",IF(COUNTIF($AI40:AI40, AI40)>1, \"\", AI40))","v":""},null,null,"","",{"$f":"IF(AI40=\"\",\"\",IF(COUNTIF($AI40:AI40, AI40)>1, \"\", AI40))","v":""},null,{"$f":"IF(J40=\"\",\"\",INDEX(REFERENTES!$Y:$Z,MATCH(J40,REFERENTES!$Z:$Z,0),1))","v":""},"",null,null,"",{"$f":"IF(O40=\"\",\"\",INDEX('OTRAS REFERENCIAS'!$L$5:$M$149,MATCH(O40,'OTRAS REFERENCIAS'!$L$5:$L$159,0),2))","v":""},null,null,null,null,null,{"$f":"IF(U40=\"\",\"\",VLOOKUP(U40,'OTRAS REFERENCIAS'!$A$7:$B$9,2,FALSE))","v":""},null,"",null,{"$f":"IF(Y40=\"\",\"\",INDEX(REFERENTES!J:K,MATCH(Y40,REFERENTES!K:K,0),1))","v":""},{"$f":"IF(Y40=\"\",\"\",INDEX(REFERENTES!$D:$L,MATCH(Y40,REFERENTES!$K:$K,0),9))","v":""},{"$f":"IF(Y40=\"\",\"\",INDEX(REFERENTES!$J:$P,MATCH(Y40,REFERENTES!$K:$K,0),7))","v":""},null,null,{"$f":"IF(AD40=\"\",\"\",INDEX(REFERENTES!$D:$E,MATCH(AD40,REFERENTES!$D:$D,0),2))","v":""},"","",36,{"$f":"IF(E40<>\"\",CONCATENATE($A$2,DIGITADOR!$B$2,DIGITADOR!$M$1,ROW()-3),\"\")","v":""}]
[null,null,1,{"$f":"IF(AI41=\"\",\"\",IF(COUNTIF($AI41:AI41, AI41)>1, \"\", AI41))","v":""},null,null,"","",{"$f":"IF(AI41=\"\",\"\",IF(COUNTIF($AI41:AI41, AI41)>1, \"\", AI41))","v":""},null,{"$f":"IF(J41=\"\",\"\",INDEX(REFERENTES!$Y:$Z,MATCH(J41,REFERENTES!$Z:$Z,0),1))","v":""},"",null,null,"",{"$f":"IF(O41=\"\",\"\",INDEX('OTRAS REFERENCIAS'!$L$5:$M$149,MATCH(O41,'OTRAS REFERENCIAS'!$L$5:$L$159,0),2))","v":""},null,null,null,null,null,{"$f":"IF(U41=\"\",\"\",VLOOKUP(U41,'OTRAS REFERENCIAS'!$A$7:$B$9,2,FALSE))","v":""},null,"",null,{"$f":"IF(Y41=\"\",\"\",INDEX(REFERENTES!J:K,MATCH(Y41,REFERENTES!K:K,0),1))","v":""},{"$f":"IF(Y41=\"\",\"\",INDEX(REFERENTES!$D:$L,MATCH(Y41,REFERENTES!$K:$K,0),9))","v":""},{"$f":"IF(Y41=\"\",\"\",INDEX(REFERENTES!$J:$P,MATCH(Y41,REFERENTES!$K:$K,0),7))","v":""},null,null,{"$f":"IF(AD41=\"\",\"\",INDEX(REFERENTES!$D:$E,MATCH(AD41,REFERENTES!$D:$D,0),2))","v":""},"","",37,{"$f":"IF(E41<>\"\",CONCATENATE($A$2,DIGITADOR!$B$2,DIGITADOR!$M$1,ROW()-3),\"\")","v":""}]
[null,null,1,{"$f":"IF(AI42=\"\",\"\",IF(COUNTIF($AI42:AI42, AI42)>1, \"\", AI42))","v":""},null,null,"","",{"$f":"IF(AI42=\"\",\"\",IF(COUNTIF($AI42:AI42, AI42)>1, \"\", AI42))","v":""},null,{"$f":"IF(J42=\"\",\"\",INDEX(REFERENTES!$Y:$Z,MATCH(J42,REFERENTES!$Z:$Z,0),1))","v":""},"",null,null,"",{"$f":"IF(O42=\"\",\"\",INDEX('OTRAS REFERENCIAS'!$L$5:$M$149,MATCH(O42,'OTRAS REFERENCIAS'!$L$5:$L$159,0),2))","v":""},null,null,null,null,null,{"$f":"IF(U42=\"\",\"\",VLOOKUP(U42,'OTRAS REFERENCIAS'!$A$7:$B$9,2,FALSE))","v":""},null,"",null,{"$f":"IF(Y42=\"\",\"\",INDEX(REFERENTES!J:K,MATCH(Y42,REFERENTES!K:K,0),1))","v":""},{"$f":"IF(Y42=\"\",\"\",INDEX(REFERENTES!$D:$L,MATCH(Y42,REFERENTES!$K:$K,0),9))","v":""},{"$f":"IF(Y42=\"\",\"\",INDEX(REFERENTES!$J:$P,MATCH(Y42,REFERENTES!$K:$K,0),7))","v":""},null,null,{"$f":"IF(AD42=\"\",\"\",INDEX(REFERENTES!$D:$E,MATCH(AD42,REFERENTES!$D:$D,0),2))","v":""},"","",38,{"$f":"IF(E42<>\"\",CONCATENATE($A$2,DIGITADOR!$B$2,DIGITADOR!$M$1,ROW()-3),\"\")","v":""}]
[null,null,1,{"$f":"IF(AI43=\"\",\"\",IF(COUNTIF($AI43:AI43, AI43)>1, \"\", AI43))","v":""},null,null,"","",{"$f":"IF(AI43=\"\",\"\",IF(COUNTIF($AI43:AI43, AI43)>1, \"\", AI43))","v":""},null,{"$f":"IF(J43=\"\",\"\",INDEX(REFERENTES!$Y:$Z,MATCH(J43,REFERENTES!$Z:$Z,0),1))","v":""},"",null,null,"",{"$f":"IF(O43=\"\",\"\",INDEX('OTRAS REFERENCIAS'!$L$5:$M$149,MATCH(O43,'OTRAS REFERENCIAS'!$L$5:$L$159,0),2))","v":""},null,null,null,null,null,{"$f":"IF(U43=\"\",\"\",VLOOKUP(U43,'OTRAS REFERENCIAS'!$A$7:$B$9,2,FALSE))","v":""},null,"",null,{"$f":"IF(Y43=\"\",\"\",INDEX(REFERENTES!J:K,MATCH(Y43,REFERENTES!K:K,0),1))","v":""},{"$f":"IF(Y43=\"\",\"\",INDEX(REFERENTES!$D:$L,MATCH(Y43,REFERENTES!$K:$K,0),9))","v":""},{"$f":"IF(Y43=\"\",\"\",INDEX(REFERENTES!$J:$P,MATCH(Y43,REFERENTES!$K:$K,0),7))","v":""},null,null,{"$f":"IF(AD43=\"\",\"\",INDEX(REFERENTES!$D:$E,MATCH(AD43,REFERENTES!$D:$D,0),2))","v":""},"","",39,{"$f":"IF(E43<>\"\",CONCATENATE($A$2,DIGITADOR!$B$2,DIGITADOR!$M$1,ROW()-3),\"\")","v":""}]
[null,null,1,{"$f":"IF(AI44=\"\",\"\",IF(COUNTIF($AI44:AI44, AI44)>1, \"\", AI44))","v":""},null,null,"","",{"$f":"IF(AI44=\"\",\"\",IF(COUNTIF($AI44:AI44, AI44)>1, \"\", AI44))","v":""},null,{"$f":"IF(J44=\"\",\"\",INDEX(REFERENTES!$Y:$Z,MATCH(J44,REFERENTES!$Z:$Z,0),1))","v":""},"",null,null,"",{"$f":"IF(O44=\"\",\"\",INDEX('OTRAS REFERENCIAS'!$L$5:$M$149,MATCH(O44,'OTRAS REFERENCIAS'!$L$5:$L$159,0),2))","v":""},null,null,null,null,null,{"$f":"IF(U44=\"\",\"\",VLOOKUP(U44,'OTRAS REFERENCIAS'!$A$7:$B$9,2,FALSE))","v":""},null,"",null,{"$f":"IF(Y44=\"\",\"\",INDEX(REFERENTES!J:K,MATCH(Y44,REFERENTES!K:K,0),1))","v":""},{"$f":"IF(Y44=\"\",\"\",INDEX(REFERENTES!$D:$L,MATCH(Y44,REFERENTES!$K:$K,0),9))","v":""},{"$f":"IF(Y44=\"\",\"\",INDEX(REFERENTES!$J:$P,MATCH(Y44,REFERENTES!$K:$K,0),7))","v":""},null,null,{"$f":"IF(AD44=\"\",\"\",INDEX(REFERENTES!$D:$E,MATCH(AD44,REFERENTES!$D:$D,0),2))","v":""},"","",40,{"$f":"IF(E44<>\"\",CONCATENATE($A$2,DIGITADOR!$B$2,DIGITADOR!$M$1,ROW()-3),\"\")","v":""}]
[null,null,1,{"$f":"IF(AI45=\"\",\"\",IF(COUNTIF($AI45:AI45, AI45)>1, \"\", AI45))","v":""},null,null,"","",{"$f":"IF(AI45=\"\",\"\",IF(COUNTIF($AI45:AI45, AI45)>1, \"\", AI45))","v":""},null,{"$f":"IF(J45=\"\",\"\",INDEX(REFERENTES!$Y:$Z,MATCH(J45,REFERENTES!$Z:$Z,0),1))","v":""},"",null,null,"",{"$f":"IF(O45=\"\",\"\",INDEX('OTRAS REFERENCIAS'!$L$5:$M$149,MATCH(O45,'OTRAS REFERENCIAS'!$L$5:$L$159,0),2))","v":""},null,null,null,null,null,{"$f":"IF(U45=\"\",\"\",VLOOKUP(U45,'OTRAS REFERENCIAS'!$A$7:$B$9,2,FALSE))","v":""},null,"",null,{"$f":"IF(Y45=\"\",\"\",INDEX(REFERENTES!J:K,MATCH(Y45,REFERENTES!K:K,0),1))","v":""},{"$f":"IF(Y45=\"\",\"\",INDEX(REFERENTES!$D:$L,MATCH(Y45,REFERENTES!$K:$K,0),9))","v":""},{"$f":"IF(Y45=\"\",\"\",INDEX(REFERENTES!$J:$P,MATCH(Y45,REFERENTES!$K:$K,0),7))","v":""},null,null,{"$f":"IF(AD45=\"\",\"\",INDEX(REFERENTES!$D:$E,MATCH(AD45,REFERENTES!$D:$D,0),2))","v":""},"","",41,{"$f":"IF(E45<>\"\",CONCATENATE($A$2,DIGITADOR!$B$2,DIGITADOR!$M$1,ROW()-3),\"\")","v":""}]
[null,null,1,{"$f":"IF(AI46=\"\",\"\",IF(COUNTIF($AI46:AI46, AI46)>1, \"\", AI46))","v":""},null,null,"","",{"$f":"IF(AI46=\"\",\"\",IF(COUNTIF($AI46:AI46, AI46)>1, \"\", AI46))","v":""},null,{"$f":"IF(J46=\"\",\"\",INDEX(REFERENTES!$Y:$Z,MATCH(J46,REFERENTES!$Z:$Z,0),1))","v":""},"",null,null,"",{"$f":"IF(O46=\"\",\"\",INDEX('OTRAS REFERENCIAS'!$L$5:$M$149,MATCH(O46,'OTRAS REFERENCIAS'!$L$5:$L$159,0),2))","v":""},null,null,null,null,null,{"$f":"IF(U46=\"\",\"\",VLOOKUP(U46,'OTRAS REFERENCIAS'!$A$7:$B$9,2,FALSE))","v":""},null,"",null,{"$f":"IF(Y46=\"\",\"\",INDEX(REFERENTES!J:K,MATCH(Y46,REFERENTES!K:K,0),1))","v":""},{"$f":"IF(Y46=\"\",\"\",INDEX(REFERENTES!$D:$L,MATCH(Y46,REFERENTES!$K:$K,0),9))","v":""},{"$f":"IF(Y46=\"\",\"\",INDEX(REFERENTES!$J:$P,MATCH(Y46,REFERENTES!$K:$K,0),7))","v":""},null,null,{"$f":"IF(AD46=\"\",\"\",INDEX(REFERENTES!$D:$E,MATCH(AD46,REFERENTES!$D:$D,0),2))","v":""},"","",42,{"$f":"IF(E46<>\"\",CONCATENATE($A$2,DIGITADOR!$B$2,DIGITADOR!$M$1,ROW()-3),\"\")","v":""}]
[null,null,1,{"$f":"IF(AI47=\"\",\"\",IF(COUNTIF($AI47:AI47, AI47)>1, \"\", AI47))","v":""},null,null,"","",{"$f":"IF(AI47=\"\",\"\",IF(COUNTIF($AI47:AI47, AI47)>1, \"\", AI47))","v":""},null,{"$f":"IF(J47=\"\",\"\",INDEX(REFERENTES!$Y:$Z,MATCH(J47,REFERENTES!$Z:$Z,0),1))","v":""},"",null,null,"",{"$f":"IF(O47=\"\",\"\",INDEX('OTRAS REFERENCIAS'!$L$5:$M$149,MATCH(O47,'OTRAS REFERENCIAS'!$L$5:$L$159,0),2))","v":""},null,null,null,null,null,{"$f":"IF(U47=\"\",\"\",VLOOKUP(U47,'OTRAS REFERENCIAS'!$A$7:$B$9,2,FALSE))","v":""},null,"",null,{"$f":"IF(Y47=\"\",\"\",INDEX(REFERENTES!J:K,MATCH(Y47,REFERENTES!K:K,0),1))","v":""},{"$f":"IF(Y47=\"\",\"\",INDEX(REFERENTES!$D:$L,MATCH(Y47,REFERENTES!$K:$K,0),9))","v":""},{"$f":"IF(Y47=\"\",\"\",INDEX(REFERENTES!$J:$P,MATCH(Y47,REFERENTES!$K:$K,0),7))","v":""},null,null,{"$f":"IF(AD47=\"\",\"\",INDEX(REFERENTES!$D:$E,MATCH(AD47,REFERENTES!$D:$D,0),2))","v":""},"","",43,{"$f":"IF(E47<>\"\",CONCATENATE($A$2,DIGITADOR!$B$2,DIGITADOR!$M$1,ROW()-3),\"\")","v":""}]
[null,null,1,{"$f":"IF(AI48=\"\",\"\",IF(COUNTIF($AI48:AI48, AI48)>1, \"\", AI48))","v":""},null,null,"","",{"$f":"IF(AI48=\"\",\"\",IF(COUNTIF($AI48:AI48, AI48)>1, \"\", AI48))","v":""},null,{"$f":"IF(J48=\"\",\"\",INDEX(REFERENTES!$Y:$Z,MATCH(J48,REFERENTES!$Z:$Z,0),1))","v":""},"",null,null,"",{"$f":"IF(O48=\"\",\"\",INDEX('OTRAS REFERENCIAS'!$L$5:$M$149,MATCH(O48,'OTRAS REFERENCIAS'!$L$5:$L$159,0),2))","v":""},null,null,null,null,null,{"$f":"IF(U48=\"\",\"\",VLOOKUP(U48,'OTRAS REFERENCIAS'!$A$7:$B$9,2,FALSE))","v":""},null,"",null,{"$f":"IF(Y48=\"\",\"\",INDEX(REFERENTES!J:K,MATCH(Y48,REFERENTES!K:K,0),1))","v":""},{"$f":"IF(Y48=\"\",\"\",INDEX(REFERENTES!$D:$L,MATCH(Y48,REFERENTES!$K:$K,0),9))","v":""},{"$f":"IF(Y48=\"\",\"\",INDEX(REFERENTES!$J:$P,MATCH(Y48,REFERENTES!$K:$K,0),7))","v":""},null,null,{"$f":"IF(AD48=\"\",\"\",INDEX(REFERENTES!$D:$E,MATCH(AD48,REFERENTES!$D:$D,0),2))","v":""},"","",44,{"$f":"IF(E48<>\"\",CONCATENATE($A$2,DIGITADOR!$B$2,DIGITADOR!$M$1,ROW()-3),\"\")","v":""}]
[null,null,1,{"$f":"IF(AI49=\"\",\"\",IF(COUNTIF($AI49:AI49, AI49)>1, \"\", AI49))","v":""},null,null,"","",{"$f":"IF(AI49=\"\",\"\",IF(COUNTIF($AI49:AI49, AI49)>1, \"\", AI49))","v":""},null,{"$f":"IF(J49=\"\",\"\",INDEX(REFERENTES!$Y:$Z,MATCH(J49,REFERENTES!$Z:$Z,0),1))","v":""},"",null,null,"",{"$f":"IF(O49=\"\",\"\",INDEX('OTRAS REFERENCIAS'!$L$5:$M$149,MATCH(O49,'OTRAS REFERENCIAS'!$L$5:$L$159,0),2))","v":""},null,null,null,null,null,{"$f":"IF(U49=\"\",\"\",VLOOKUP(U49,'OTRAS REFERENCIAS'!$A$7:$B$9,2,FALSE))","v":""},null,"",null,{"$f":"IF(Y49=\"\",\"\",INDEX(REFERENTES!J:K,MATCH(Y49,REFERENTES!K:K,0),1))","v":""},{"$f":"IF(Y49=\"\",\"\",INDEX(REFERENTES!$D:$L,MATCH(Y49,REFERENTES!$K:$K,0),9))","v":""},{"$f":"IF(Y49=\"\",\"\",INDEX(REFERENTES!$J:$P,MATCH(Y49,REFERENTES!$K:$K,0),7))","v":""},null,null,{"$f":"IF(AD49=\"\",\"\",INDEX(REFERENTES!$D:$E,MATCH(AD49,REFERENTES!$D:$D,0),2))","v":""},"","",45,{"$f":"IF(E49<>\"\",CONCATENATE($A$2,DIGITADOR!$B$2,DIGITADOR!$M$1,ROW()-3),\"\")","v":""}]
[null,null,1,{"$f":"IF(AI50=\"\",\"\",IF(COUNTIF($AI50:AI50, AI50)>1, \"\", AI50))","v":""},null,null,"","",{"$f":"IF(AI50=\"\",\"\",IF(COUNTIF($AI50:AI50, AI50)>1, \"\", AI50))","v":""},null,{"$f":"IF(J50=\"\",\"\",INDEX(REFERENTES!$Y:$Z,MATCH(J50,REFERENTES!$Z:$Z,0),1))","v":""},"",null,null,"",{"$f":"IF(O50=\"\",\"\",INDEX('OTRAS REFERENCIAS'!$L$5:$M$149,MATCH(O50,'OTRAS REFERENCIAS'!$L$5:$L$159,0),2))","v":""},null,null,null,null,null,{"$f":"IF(U50=\"\",\"\",VLOOKUP(U50,'OTRAS REFERENCIAS'!$A$7:$B$9,2,FALSE))","v":""},null,"",null,{"$f":"IF(Y50=\"\",\"\",INDEX(REFERENTES!J:K,MATCH(Y50,REFERENTES!K:K,0),1))","v":""},{"$f":"IF(Y50=\"\",\"\",INDEX(REFERENTES!$D:$L,MATCH(Y50,REFERENTES!$K:$K,0),9))","v":""},{"$f":"IF(Y50=\"\",\"\",INDEX(REFERENTES!$J:$P,MATCH(Y50,REFERENTES!$K:$K,0),7))","v":""},null,null,{"$f":"IF(AD50=\"\",\"\",INDEX(REFERENTES!$D:$E,MATCH(AD50,REFERENTES!$D:$D,0),2))","v":""},"","",46,{"$f":"IF(E50<>\"\",CONCATENATE($A$2,DIGITADOR!$B$2,DIGITADOR!$M$1,ROW()-3),\"\")","v":""}]
[null,null,1,{"$f":"IF(AI51=\"\",\"\",IF(COUNTIF($AI51:AI51, AI51)>1, \"\", AI51))","v":""},null,null,"","",{"$f":"IF(AI51=\"\",\"\",IF(COUNTIF($AI51:AI51, AI51)>1, \"\", AI51))","v":""},null,{"$f":"IF(J51=\"\",\"\",INDEX(REFERENTES!$Y:$Z,MATCH(J51,REFERENTES!$Z:$Z,0),1))","v":""},"",null,null,"",{"$f":"IF(O51=\"\",\"\",INDEX('OTRAS REFERENCIAS'!$L$5:$M$149,MATCH(O51,'OTRAS REFERENCIAS'!$L$5:$L$159,0),2))","v":""},null,null,null,null,null,{"$f":"IF(U51=\"\",\"\",VLOOKUP(U51,'OTRAS REFERENCIAS'!$A$7:$B$9,2,FALSE))","v":""},null,"",null,{"$f":"IF(Y51=\"\",\"\",INDEX(REFERENTES!J:K,MATCH(Y51,REFERENTES!K:K,0),1))","v":""},{"$f":"IF(Y51=\"\",\"\",INDEX(REFERENTES!$D:$L,MATCH(Y51,REFERENTES!$K:$K,0),9))","v":""},{"$f":"IF(Y51=\"\",\"\",INDEX(REFERENTES!$J:$P,MATCH(Y51,REFERENTES!$K:$K,0),7))","v":""},null,null,{"$f":"IF(AD51=\"\",\"\",INDEX(REFERENTES!$D:$E,MATCH(AD51,REFERENTES!$D:$D,0),2))","v":""},"","",47,{"$f":"IF(E51<>\"\",CONCATENATE($A$2,DIGITADOR!$B$2,DIGITADOR!$M$1,ROW()-3),\"\")","v":""}]
[null,null,1,{"$f":"IF(AI52=\"\",\"\",IF(COUNTIF($AI52:AI52, AI52)>1, \"\", AI52))","v":""},null,null,"","",{"$f":"IF(AI52=\"\",\"\",IF(COUNTIF($AI52:AI52, AI52)>1, \"\", AI52))","v":""},null,{"$f":"IF(J52=\"\",\"\",INDEX(REFERENTES!$Y:$Z,MATCH(J52,REFERENTES!$Z:$Z,0),1))","v":""},"",null,null,"",{"$f":"IF(O52=\"\",\"\",INDEX('OTRAS REFERENCIAS'!$L$5:$M$149,MATCH(O52,'OTRAS REFERENCIAS'!$L$5:$L$159,0),2))","v":""},null,null,null,null,null,{"$f":"IF(U52=\"\",\"\",VLOOKUP(U52,'OTRAS REFERENCIAS'!$A$7:$B$9,2,FALSE))","v":""},null,"",null,{"$f":"IF(Y52=\"\",\"\",INDEX(REFERENTES!J:K,MATCH(Y52,REFERENTES!K:K,0),1))","v":""},{"$f":"IF(Y52=\"\",\"\",INDEX(REFERENTES!$D:$L,MATCH(Y52,REFERENTES!$K:$K,0),9))","v":""},{"$f":"IF(Y52=\"\",\"\",INDEX(REFERENTES!$J:$P,MATCH(Y52,REFERENTES!$K:$K,0),7))","v":""},null,null,{"$f":"IF(AD52=\"\",\"\",INDEX(REFERENTES!$D:$E,MATCH(AD52,REFERENTES!$D:$D,0),2))","v":""},"","",48,{"$f":"IF(E52<>\"\",CONCATENATE($A$2,DIGITADOR!$B$2,DIGITADOR!$M$1,ROW()-3),\"\")","v":""}]
[null,null,1,{"$f":"IF(AI53=\"\",\"\",IF(COUNTIF($AI53:AI53, AI53)>1, \"\", AI53))","v":""},null,null,"","",{"$f":"IF(AI53=\"\",\"\",IF(COUNTIF($AI53:AI53, AI53)>1, \"\", AI53))","v":""},null,{"$f":"IF(J53=\"\",\"\",INDEX(REFERENTES!$Y:$Z,MATCH(J53,REFERENTES!$Z:$Z,0),1))","v":""},"",null,null,"",{"$f":"IF(O53=\"\",\"\",INDEX('OTRAS REFERENCIAS'!$L$5:$M$149,MATCH(O53,'OTRAS REFERENCIAS'!$L$5:$L$159,0),2))","v":""},null,null,null,null,null,{"$f":"IF(U53=\"\",\"\",VLOOKUP(U53,'OTRAS REFERENCIAS'!$A$7:$B$9,2,FALSE))","v":""},null,"",null,{"$f":"IF(Y53=\"\",\"\",INDEX(REFERENTES!J:K,MATCH(Y53,REFERENTES!K:K,0),1))","v":""},{"$f":"IF(Y53=\"\",\"\",INDEX(REFERENTES!$D:$L,MATCH(Y53,REFERENTES!$K:$K,0),9))","v":""},{"$f":"IF(Y53=\"\",\"\",INDEX(REFERENTES!$J:$P,MATCH(Y53,REFERENTES!$K:$K,0),7))","v":""},null,null,{"$f":"IF(AD53=\"\",\"\",INDEX(REFERENTES!$D:$E,MATCH(AD53,REFERENTES!$D:$D,0),2))","v":""},"","",49,{"$f":"IF(E53<>\"\",CONCATENATE($A$2,DIGITADOR!$B$2,DIGITADOR!$M$1,ROW()-3),\"\")","v":""}]
[null,null,1,{"$f":"IF(AI54=\"\",\"\",IF(COUNTIF($AI54:AI54, AI54)>1, \"\", AI54))","v":""},null,null,"","",{"$f":"IF(AI54=\"\",\"\",IF(COUNTIF($AI54:AI54, AI54)>1, \"\", AI54))","v":""},null,{"$f":"IF(J54=\"\",\"\",INDEX(REFERENTES!$Y:$Z,MATCH(J54,REFERENTES!$Z:$Z,0),1))","v":""},"",null,null,"",{"$f":"IF(O54=\"\",\"\",INDEX('OTRAS REFERENCIAS'!$L$5:$M$149,MATCH(O54,'OTRAS REFERENCIAS'!$L$5:$L$159,0),2))","v":""},null,null,null,null,null,{"$f":"IF(U54=\"\",\"\",VLOOKUP(U54,'OTRAS REFERENCIAS'!$A$7:$B$9,2,FALSE))","v":""},null,"",null,{"$f":"IF(Y54=\"\",\"\",INDEX(REFERENTES!J:K,MATCH(Y54,REFERENTES!K:K,0),1))","v":""},{"$f":"IF(Y54=\"\",\"\",INDEX(REFERENTES!$D:$L,MATCH(Y54,REFERENTES!$K:$K,0),9))","v":""},{"$f":"IF(Y54=\"\",\"\",INDEX(REFERENTES!$J:$P,MATCH(Y54,REFERENTES!$K:$K,0),7))","v":""},null,null,{"$f":"IF(AD54=\"\",\"\",INDEX(REFERENTES!$D:$E,MATCH(AD54,REFERENTES!$D:$D,0),2))","v":""},"","",50,{"$f":"IF(E54<>\"\",CONCATENATE($A$2,DIGITADOR!$B$2,DIGITADOR!$M$1,ROW()-3),\"\")","v":""}]
[null,null,1,{"$f":"IF(AI55=\"\",\"\",IF(COUNTIF($AI55:AI55, AI55)>1, \"\", AI55))","v":""},null,null,"","",{"$f":"IF(AI55=\"\",\"\",IF(COUNTIF($AI55:AI55, AI55)>1, \"\", AI55))","v":""},null,{"$f":"IF(J55=\"\",\"\",INDEX(REFERENTES!$Y:$Z,MATCH(J55,REFERENTES!$Z:$Z,0),1))","v":""},"",null,null,"",{"$f":"IF(O55=\"\",\"\",INDEX('OTRAS REFERENCIAS'!$L$5:$M$149,MATCH(O55,'OTRAS REFERENCIAS'!$L$5:$L$159,0),2))","v":""},null,null,null,null,null,{"$f":"IF(U55=\"\",\"\",VLOOKUP(U55,'OTRAS REFERENCIAS'!$A$7:$B$9,2,FALSE))","v":""},null,"",null,{"$f":"IF(Y55=\"\",\"\",INDEX(REFERENTES!J:K,MATCH(Y55,REFERENTES!K:K,0),1))","v":""},{"$f":"IF(Y55=\"\",\"\",INDEX(REFERENTES!$D:$L,MATCH(Y55,REFERENTES!$K:$K,0),9))","v":""},{"$f":"IF(Y55=\"\",\"\",INDEX(REFERENTES!$J:$P,MATCH(Y55,REFERENTES!$K:$K,0),7))","v":""},null,null,{"$f":"IF(AD55=\"\",\"\",INDEX(REFERENTES!$D:$E,MATCH(AD55,REFERENTES!$D:$D,0),2))","v":""},"","",51,{"$f":"IF(E55<>\"\",CONCATENATE($A$2,DIGITADOR!$B$2,DIGITADOR!$M$1,ROW()-3),\"\")","v":""}]
[null,null,1,{"$f":"IF(AI56=\"\",\"\",IF(COUNTIF($AI56:AI56, AI56)>1, \"\", AI56))","v":""},null,null,"","",{"$f":"IF(AI56=\"\",\"\",IF(COUNTIF($AI56:AI56, AI56)>1, \"\", AI56))","v":""},null,{"$f":"IF(J56=\"\",\"\",INDEX(REFERENTES!$Y:$Z,MATCH(J56,REFERENTES!$Z:$Z,0),1))","v":""},"",null,null,"",{"$f":"IF(O56=\"\",\"\",INDEX('OTRAS REFERENCIAS'!$L$5:$M$149,MATCH(O56,'OTRAS REFERENCIAS'!$L$5:$L$159,0),2))","v":""},null,null,null,null,null,{"$f":"IF(U56=\"\",\"\",VLOOKUP(U56,'OTRAS REFERENCIAS'!$A$7:$B$9,2,FALSE))","v":""},null,"",null,{"$f":"IF(Y56=\"\",\"\",INDEX(REFERENTES!J:K,MATCH(Y56,REFERENTES!K:K,0),1))","v":""},{"$f":"IF(Y56=\"\",\"\",INDEX(REFERENTES!$D:$L,MATCH(Y56,REFERENTES!$K:$K,0),9))","v":""},{"$f":"IF(Y56=\"\",\"\",INDEX(REFERENTES!$J:$P,MATCH(Y56,REFERENTES!$K:$K,0),7))","v":""},null,null,{"$f":"IF(AD56=\"\",\"\",INDEX(REFERENTES!$D:$E,MATCH(AD56,REFERENTES!$D:$D,0),2))","v":""},"","",52,{"$f":"IF(E56<>\"\",CONCATENATE($A$2,DIGITADOR!$B$2,DIGITADOR!$M$1,ROW()-3),\"\")","v":""}]
[null,null,1,{"$f":"IF(AI57=\"\",\"\",IF(COUNTIF($AI57:AI57, AI57)>1, \"\", AI57))","v":""},null,null,"","",{"$f":"IF(AI57=\"\",\"\",IF(COUNTIF($AI57:AI57, AI57)>1, \"\", AI57))","v":""},null,{"$f":"IF(J57=\"\",\"\",INDEX(REFERENTES!$Y:$Z,MATCH(J57,REFERENTES!$Z:$Z,0),1))","v":""},"",null,null,"",{"$f":"IF(O57=\"\",\"\",INDEX('OTRAS REFERENCIAS'!$L$5:$M$149,MATCH(O57,'OTRAS REFERENCIAS'!$L$5:$L$159,0),2))","v":""},null,null,null,null,null,{"$f":"IF(U57=\"\",\"\",VLOOKUP(U57,'OTRAS REFERENCIAS'!$A$7:$B$9,2,FALSE))","v":""},null,"",null,{"$f":"IF(Y57=\"\",\"\",INDEX(REFERENTES!J:K,MATCH(Y57,REFERENTES!K:K,0),1))","v":""},{"$f":"IF(Y57=\"\",\"\",INDEX(REFERENTES!$D:$L,MATCH(Y57,REFERENTES!$K:$K,0),9))","v":""},{"$f":"IF(Y57=\"\",\"\",INDEX(REFERENTES!$J:$P,MATCH(Y57,REFERENTES!$K:$K,0),7))","v":""},null,null,{"$f":"IF(AD57=\"\",\"\",INDEX(REFERENTES!$D:$E,MATCH(AD57,REFERENTES!$D:$D,0),2))","v":""},"","",53,{"$f":"IF(E57<>\"\",CONCATENATE($A$2,DIGITADOR!$B$2,DIGITADOR!$M$1,ROW()-3),\"\")","v":""}]
[null,null,1,{"$f":"IF(AI58=\"\",\"\",IF(COUNTIF($AI58:AI58, AI58)>1, \"\", AI58))","v":""},null,null,"","",{"$f":"IF(AI58=\"\",\"\",IF(COUNTIF($AI58:AI58, AI58)>1, \"\", AI58))","v":""},null,{"$f":"IF(J58=\"\",\"\",INDEX(REFERENTES!$Y:$Z,MATCH(J58,REFERENTES!$Z:$Z,0),1))","v":""},"",null,null,"",{"$f":"IF(O58=\"\",\"\",INDEX('OTRAS REFERENCIAS'!$L$5:$M$149,MATCH(O58,'OTRAS REFERENCIAS'!$L$5:$L$159,0),2))","v":""},null,null,null,null,null,{"$f":"IF(U58=\"\",\"\",VLOOKUP(U58,'OTRAS REFERENCIAS'!$A$7:$B$9,2,FALSE))","v":""},null,"",null,{"$f":"IF(Y58=\"\",\"\",INDEX(REFERENTES!J:K,MATCH(Y58,REFERENTES!K:K,0),1))","v":""},{"$f":"IF(Y58=\"\",\"\",INDEX(REFERENTES!$D:$L,MATCH(Y58,REFERENTES!$K:$K,0),9))","v":""},{"$f":"IF(Y58=\"\",\"\",INDEX(REFERENTES!$J:$P,MATCH(Y58,REFERENTES!$K:$K,0),7))","v":""},null,null,{"$f":"IF(AD58=\"\",\"\",INDEX(REFERENTES!$D:$E,MATCH(AD58,REFERENTES!$D:$D,0),2))","v":""},"","",54,{"$f":"IF(E58<>\"\",CONCATENATE($A$2,DIGITADOR!$B$2,DIGITADOR!$M$1,ROW()-3),\"\")","v":""}]
[null,null,1,{"$f":"IF(AI59=\"\",\"\",IF(COUNTIF($AI59:AI59, AI59)>1, \"\", AI59))","v":""},null,null,"","",{"$f":"IF(AI59=\"\",\"\",IF(COUNTIF($AI59:AI59, AI59)>1, \"\", AI59))","v":""},null,{"$f":"IF(J59=\"\",\"\",INDEX(REFERENTES!$Y:$Z,MATCH(J59,REFERENTES!$Z:$Z,0),1))","v":""},"",null,null,"",{"$f":"IF(O59=\"\",\"\",INDEX('OTRAS REFERENCIAS'!$L$5:$M$149,MATCH(O59,'OTRAS REFERENCIAS'!$L$5:$L$159,0),2))","v":""},null,null,null,null,null,{"$f":"IF(U59=\"\",\"\",VLOOKUP(U59,'OTRAS REFERENCIAS'!$A$7:$B$9,2,FALSE))","v":""},null,"",null,{"$f":"IF(Y59=\"\",\"\",INDEX(REFERENTES!J:K,MATCH(Y59,REFERENTES!K:K,0),1))","v":""},{"$f":"IF(Y59=\"\",\"\",INDEX(REFERENTES!$D:$L,MATCH(Y59,REFERENTES!$K:$K,0),9))","v":""},{"$f":"IF(Y59=\"\",\"\",INDEX(REFERENTES!$J:$P,MATCH(Y59,REFERENTES!$K:$K,0),7))","v":""},null,null,{"$f":"IF(AD59=\"\",\"\",INDEX(REFERENTES!$D:$E,MATCH(AD59,REFERENTES!$D:$D,0),2))","v":""},"","",55,{"$f":"IF(E59<>\"\",CONCATENATE($A$2,DIGITADOR!$B$2,DIGITADOR!$M$1,ROW()-3),\"\")","v":""}]
[null,null,1,{"$f":"IF(AI60=\"\",\"\",IF(COUNTIF($AI60:AI60, AI60)>1, \"\", AI60))","v":""},null,null,"","",{"$f":"IF(AI60=\"\",\"\",IF(COUNTIF($AI60:AI60, AI60)>1, \"\", AI60))","v":""},null,{"$f":"IF(J60=\"\",\"\",INDEX(REFERENTES!$Y:$Z,MATCH(J60,REFERENTES!$Z:$Z,0),1))","v":""},"",null,null,"",{"$f":"IF(O60=\"\",\"\",INDEX('OTRAS REFERENCIAS'!$L$5:$M$149,MATCH(O60,'OTRAS REFERENCIAS'!$L$5:$L$159,0),2))","v":""},null,null,null,null,null,{"$f":"IF(U60=\"\",\"\",VLOOKUP(U60,'OTRAS REFERENCIAS'!$A$7:$B$9,2,FALSE))","v":""},null,"",null,{"$f":"IF(Y60=\"\",\"\",INDEX(REFERENTES!J:K,MATCH(Y60,REFERENTES!K:K,0),1))","v":""},{"$f":"IF(Y60=\"\",\"\",INDEX(REFERENTES!$D:$L,MATCH(Y60,REFERENTES!$K:$K,0),9))","v":""},{"$f":"IF(Y60=\"\",\"\",INDEX(REFERENTES!$J:$P,MATCH(Y60,REFERENTES!$K:$K,0),7))","v":""},null,null,{"$f":"IF(AD60=\"\",\"\",INDEX(REFERENTES!$D:$E,MATCH(AD60,REFERENTES!$D:$D,0),2))","v":""},"","",56,{"$f":"IF(E60<>\"\",CONCATENATE($A$2,DIGITADOR!$B$2,DIGITADOR!$M$1,ROW()-3),\"\")","v":""}]
[null,null,1,{"$f":"IF(AI61=\"\",\"\",IF(COUNTIF($AI61:AI61, AI61)>1, \"\", AI61))","v":""},null,null,"","",{"$f":"IF(AI61=\"\",\"\",IF(COUNTIF($AI61:AI61, AI61)>1, \"\", AI61))","v":""},null,{"$f":"IF(J61=\"\",\"\",INDEX(REFERENTES!$Y:$Z,MATCH(J61,REFERENTES!$Z:$Z,0),1))","v":""},"",null,null,"",{"$f":"IF(O61=\"\",\"\",INDEX('OTRAS REFERENCIAS'!$L$5:$M$149,MATCH(O61,'OTRAS REFERENCIAS'!$L$5:$L$159,0),2))","v":""},null,null,null,null,null,{"$f":"IF(U61=\"\",\"\",VLOOKUP(U61,'OTRAS REFERENCIAS'!$A$7:$B$9,2,FALSE))","v":""},null,"",null,{"$f":"IF(Y61=\"\",\"\",INDEX(REFERENTES!J:K,MATCH(Y61,REFERENTES!K:K,0),1))","v":""},{"$f":"IF(Y61=\"\",\"\",INDEX(REFERENTES!$D:$L,MATCH(Y61,REFERENTES!$K:$K,0),9))","v":""},{"$f":"IF(Y61=\"\",\"\",INDEX(REFERENTES!$J:$P,MATCH(Y61,REFERENTES!$K:$K,0),7))","v":""},null,null,{"$f":"IF(AD61=\"\",\"\",INDEX(REFERENTES!$D:$E,MATCH(AD61,REFERENTES!$D:$D,0),2))","v":""},"","",57,{"$f":"IF(E61<>\"\",CONCATENATE($A$2,DIGITADOR!$B$2,DIGITADOR!$M$1,ROW()-3),\"\")","v":""}]
[null,null,1,{"$f":"IF(AI62=\"\",\"\",IF(COUNTIF($AI62:AI62, AI62)>1, \"\", AI62))","v":""},null,null,"","",{"$f":"IF(AI62=\"\",\"\",IF(COUNTIF($AI62:AI62, AI62)>1, \"\", AI62))","v":""},null,{"$f":"IF(J62=\"\",\"\",INDEX(REFERENTES!$Y:$Z,MATCH(J62,REFERENTES!$Z:$Z,0),1))","v":""},"",null,null,"",{"$f":"IF(O62=\"\",\"\",INDEX('OTRAS REFERENCIAS'!$L$5:$M$149,MATCH(O62,'OTRAS REFERENCIAS'!$L$5:$L$159,0),2))","v":""},null,null,null,null,null,{"$f":"IF(U62=\"\",\"\",VLOOKUP(U62,'OTRAS REFERENCIAS'!$A$7:$B$9,2,FALSE))","v":""},null,"",null,{"$f":"IF(Y62=\"\",\"\",INDEX(REFERENTES!J:K,MATCH(Y62,REFERENTES!K:K,0),1))","v":""},{"$f":"IF(Y62=\"\",\"\",INDEX(REFERENTES!$D:$L,MATCH(Y62,REFERENTES!$K:$K,0),9))","v":""},{"$f":"IF(Y62=\"\",\"\",INDEX(REFERENTES!$J:$P,MATCH(Y62,REFERENTES!$K:$K,0),7))","v":""},null,null,{"$f":"IF(AD62=\"\",\"\",INDEX(REFERENTES!$D:$E,MATCH(AD62,REFERENTES!$D:$D,0),2))","v":""},"","",58,{"$f":"IF(E62<>\"\",CONCATENATE($A$2,DIGITADOR!$B$2,DIGITADOR!$M$1,ROW()-3),\"\")","v":""}]
[null,null,1,{"$f":"IF(AI63=\"\",\"\",IF(COUNTIF($AI63:AI63, AI63)>1, \"\", AI63))","v":""},null,null,"","",{"$f":"IF(AI63=\"\",\"\",IF(COUNTIF($AI63:AI63, AI63)>1, \"\", AI63))","v":""},null,{"$f":"IF(J63=\"\",\"\",INDEX(REFERENTES!$Y:$Z,MATCH(J63,REFERENTES!$Z:$Z,0),1))","v":""},"",null,null,"",{"$f":"IF(O63=\"\",\"\",INDEX('OTRAS REFERENCIAS'!$L$5:$M$149,MATCH(O63,'OTRAS REFERENCIAS'!$L$5:$L$159,0),2))","v":""},null,null,null,null,null,{"$f":"IF(U63=\"\",\"\",VLOOKUP(U63,'OTRAS REFERENCIAS'!$A$7:$B$9,2,FALSE))","v":""},null,"",null,{"$f":"IF(Y63=\"\",\"\",INDEX(REFERENTES!J:K,MATCH(Y63,REFERENTES!K:K,0),1))","v":""},{"$f":"IF(Y63=\"\",\"\",INDEX(REFERENTES!$D:$L,MATCH(Y63,REFERENTES!$K:$K,0),9))","v":""},{"$f":"IF(Y63=\"\",\"\",INDEX(REFERENTES!$J:$P,MATCH(Y63,REFERENTES!$K:$K,0),7))","v":""},null,null,{"$f":"IF(AD63=\"\",\"\",INDEX(REFERENTES!$D:$E,MATCH(AD63,REFERENTES!$D:$D,0),2))","v":""},"","",59,{"$f":"IF(E63<>\"\",CONCATENATE($A$2,DIGITADOR!$B$2,DIGITADOR!$M$1,ROW()-3),\"\")","v":""}]
[null,null,1,{"$f":"IF(AI64=\"\",\"\",IF(COUNTIF($AI64:AI64, AI64)>1, \"\", AI64))","v":""},null,null,"","",{"$f":"IF(AI64=\"\",\"\",IF(COUNTIF($AI64:AI64, AI64)>1, \"\", AI64))","v":""},null,{"$f":"IF(J64=\"\",\"\",INDEX(REFERENTES!$Y:$Z,MATCH(J64,REFERENTES!$Z:$Z,0),1))","v":""},"",null,null,"",{"$f":"IF(O64=\"\",\"\",INDEX('OTRAS REFERENCIAS'!$L$5:$M$149,MATCH(O64,'OTRAS REFERENCIAS'!$L$5:$L$159,0),2))","v":""},null,null,null,null,null,{"$f":"IF(U64=\"\",\"\",VLOOKUP(U64,'OTRAS REFERENCIAS'!$A$7:$B$9,2,FALSE))","v":""},null,"",null,{"$f":"IF(Y64=\"\",\"\",INDEX(REFERENTES!J:K,MATCH(Y64,REFERENTES!K:K,0),1))","v":""},{"$f":"IF(Y64=\"\",\"\",INDEX(REFERENTES!$D:$L,MATCH(Y64,REFERENTES!$K:$K,0),9))","v":""},{"$f":"IF(Y64=\"\",\"\",INDEX(REFERENTES!$J:$P,MATCH(Y64,REFERENTES!$K:$K,0),7))","v":""},null,null,{"$f":"IF(AD64=\"\",\"\",INDEX(REFERENTES!$D:$E,MATCH(AD64,REFERENTES!$D:$D,0),2))","v":""},"","",60,{"$f":"IF(E64<>\"\",CONCATENATE($A$2,DIGITADOR!$B$2,DIGITADOR!$M$1,ROW()-3),\"\")","v":""}]
[null,null,1,{"$f":"IF(AI65=\"\",\"\",IF(COUNTIF($AI65:AI65, AI65)>1, \"\", AI65))","v":""},null,null,"","",{"$f":"IF(AI65=\"\",\"\",IF(COUNTIF($AI65:AI65, AI65)>1, \"\", AI65))","v":""},null,{"$f":"IF(J65=\"\",\"\",INDEX(REFERENTES!$Y:$Z,MATCH(J65,REFERENTES!$Z:$Z,0),1))","v":""},"",null,null,"",{"$f":"IF(O65=\"\",\"\",INDEX('OTRAS REFERENCIAS'!$L$5:$M$149,MATCH(O65,'OTRAS REFERENCIAS'!$L$5:$L$159,0),2))","v":""},null,null,null,null,null,{"$f":"IF(U65=\"\",\"\",VLOOKUP(U65,'OTRAS REFERENCIAS'!$A$7:$B$9,2,FALSE))","v":""},null,"",null,{"$f":"IF(Y65=\"\",\"\",INDEX(REFERENTES!J:K,MATCH(Y65,REFERENTES!K:K,0),1))","v":""},{"$f":"IF(Y65=\"\",\"\",INDEX(REFERENTES!$D:$L,MATCH(Y65,REFERENTES!$K:$K,0),9))","v":""},{"$f":"IF(Y65=\"\",\"\",INDEX(REFERENTES!$J:$P,MATCH(Y65,REFERENTES!$K:$K,0),7))","v":""},null,null,{"$f":"IF(AD65=\"\",\"\",INDEX(REFERENTES!$D:$E,MATCH(AD65,REFERENTES!$D:$D,0),2))","v":""},"","",61,{"$f":"IF(E65<>\"\",CONCATENATE($A$2,DIGITADOR!$B$2,DIGITADOR!$M$1,ROW()-3),\"\")","v":""}]
[null,null,1,{"$f":"IF(AI66=\"\",\"\",IF(COUNTIF($AI66:AI66, AI66)>1, \"\", AI66))","v":""},null,null,"","",{"$f":"IF(AI66=\"\",\"\",IF(COUNTIF($AI66:AI66, AI66)>1, \"\", AI66))","v":""},null,{"$f":"IF(J66=\"\",\"\",INDEX(REFERENTES!$Y:$Z,MATCH(J66,REFERENTES!$Z:$Z,0),1))","v":""},"",null,null,"",{"$f":"IF(O66=\"\",\"\",INDEX('OTRAS REFERENCIAS'!$L$5:$M$149,MATCH(O66,'OTRAS REFERENCIAS'!$L$5:$L$159,0),2))","v":""},null,null,null,null,null,{"$f":"IF(U66=\"\",\"\",VLOOKUP(U66,'OTRAS REFERENCIAS'!$A$7:$B$9,2,FALSE))","v":""},null,"",null,{"$f":"IF(Y66=\"\",\"\",INDEX(REFERENTES!J:K,MATCH(Y66,REFERENTES!K:K,0),1))","v":""},{"$f":"IF(Y66=\"\",\"\",INDEX(REFERENTES!$D:$L,MATCH(Y66,REFERENTES!$K:$K,0),9))","v":""},{"$f":"IF(Y66=\"\",\"\",INDEX(REFERENTES!$J:$P,MATCH(Y66,REFERENTES!$K:$K,0),7))","v":""},null,null,{"$f":"IF(AD66=\"\",\"\",INDEX(REFERENTES!$D:$E,MATCH(AD66,REFERENTES!$D:$D,0),2))","v":""},"","",62,{"$f":"IF(E66<>\"\",CONCATENATE($A$2,DIGITADOR!$B$2,DIGITADOR!$M$1,ROW()-3),\"\")","v":""}]
[null,null,1,{"$f":"IF(AI67=\"\",\"\",IF(COUNTIF($AI67:AI67, AI67)>1, \"\", AI67))","v":""},null,null,"","",{"$f":"IF(AI67=\"\",\"\",IF(COUNTIF($AI67:AI67, AI67)>1, \"\", AI67))","v":""},null,{"$f":"IF(J67=\"\",\"\",INDEX(REFERENTES!$Y:$Z,MATCH(J67,REFERENTES!$Z:$Z,0),1))","v":""},"",null,null,"",{"$f":"IF(O67=\"\",\"\",INDEX('OTRAS REFERENCIAS'!$L$5:$M$149,MATCH(O67,'OTRAS REFERENCIAS'!$L$5:$L$159,0),2))","v":""},null,null,null,null,null,{"$f":"IF(U67=\"\",\"\",VLOOKUP(U67,'OTRAS REFERENCIAS'!$A$7:$B$9,2,FALSE))","v":""},null,"",null,{"$f":"IF(Y67=\"\",\"\",INDEX(REFERENTES!J:K,MATCH(Y67,REFERENTES!K:K,0),1))","v":""},{"$f":"IF(Y67=\"\",\"\",INDEX(REFERENTES!$D:$L,MATCH(Y67,REFERENTES!$K:$K,0),9))","v":""},{"$f":"IF(Y67=\"\",\"\",INDEX(REFERENTES!$J:$P,MATCH(Y67,REFERENTES!$K:$K,0),7))","v":""},null,null,{"$f":"IF(AD67=\"\",\"\",INDEX(REFERENTES!$D:$E,MATCH(AD67,REFERENTES!$D:$D,0),2))","v":""},"","",63,{"$f":"IF(E67<>\"\",CONCATENATE($A$2,DIGITADOR!$B$2,DIGITADOR!$M$1,ROW()-3),\"\")","v":""}]
[null,null,1,{"$f":"IF(AI68=\"\",\"\",IF(COUNTIF($AI68:AI68, AI68)>1, \"\", AI68))","v":""},null,null,"","",{"$f":"IF(AI68=\"\",\"\",IF(COUNTIF($AI68:AI68, AI68)>1, \"\", AI68))","v":""},null,{"$f":"IF(J68=\"\",\"\",INDEX(REFERENTES!$Y:$Z,MATCH(J68,REFERENTES!$Z:$Z,0),1))","v":""},"",null,null,"",{"$f":"IF(O68=\"\",\"\",INDEX('OTRAS REFERENCIAS'!$L$5:$M$149,MATCH(O68,'OTRAS REFERENCIAS'!$L$5:$L$159,0),2))","v":""},null,null,null,null,null,{"$f":"IF(U68=\"\",\"\",VLOOKUP(U68,'OTRAS REFERENCIAS'!$A$7:$B$9,2,FALSE))","v":""},null,"",null,{"$f":"IF(Y68=\"\",\"\",INDEX(REFERENTES!J:K,MATCH(Y68,REFERENTES!K:K,0),1))","v":""},{"$f":"IF(Y68=\"\",\"\",INDEX(REFERENTES!$D:$L,MATCH(Y68,REFERENTES!$K:$K,0),9))","v":""},{"$f":"IF(Y68=\"\",\"\",INDEX(REFERENTES!$J:$P,MATCH(Y68,REFERENTES!$K:$K,0),7))","v":""},null,null,{"$f":"IF(AD68=\"\",\"\",INDEX(REFERENTES!$D:$E,MATCH(AD68,REFERENTES!$D:$D,0),2))","v":""},"","",64,{"$f":"IF(E68<>\"\",CONCATENATE($A$2,DIGITADOR!$B$2,DIGITADOR!$M$1,ROW()-3),\"\")","v":""}]
[null,null,{"$f":"IF(L69=L68,C68,C68+1)","v":1},{"$f":"IF(AI69=\"\",\"\",IF(COUNTIF($AI69:AI69, AI69)>1, \"\", AI69))","v":""},null,null,"",{"$f":"IF(G69<>\"\",MONTH(G69),\"\")","v":""},{"$f":"IF(AI69=\"\",\"\",IF(COUNTIF($AI69:AI69, AI69)>1, \"\", AI69))","v":""},null,{"$f":"IF(J69=\"\",\"\",INDEX(REFERENTES!$Y:$Z,MATCH(J69,REFERENTES!$Z:$Z,0),1))","v":""},{"$f":"IF(G69=\"\",\"\",CONCATENATE(G69,P69,K69))","v":""},null,null,"",{"$f":"IF(O69=\"\",\"\",INDEX('OTRAS REFERENCIAS'!$L$5:$M$149,MATCH(O69,'OTRAS REFERENCIAS'!$L$5:$L$159,0),2))","v":""},null,null,null,null,null,{"$f":"IF(U69=\"\",\"\",VLOOKUP(U69,'OTRAS REFERENCIAS'!$A$7:$B$9,2,FALSE))","v":""},null,"",null,{"$f":"IF(Y69=\"\",\"\",INDEX(REFERENTES!J:K,MATCH(Y69,REFERENTES!K:K,0),1))","v":""},{"$f":"IF(Y69=\"\",\"\",INDEX(REFERENTES!$D:$L,MATCH(Y69,REFERENTES!$K:$K,0),9))","v":""},{"$f":"IF(Y69=\"\",\"\",INDEX(REFERENTES!$J:$P,MATCH(Y69,REFERENTES!$K:$K,0),7))","v":""},null,null,{"$f":"IF(AD69=\"\",\"\",INDEX(REFERENTES!$D:$E,MATCH(AD69,REFERENTES!$D:$D,0),2))","v":""},"","",65,{"$f":"IF(E69<>\"\",CONCATENATE($A$2,DIGITADOR!$B$2,DIGITADOR!$M$1,ROW()-3),\"\")","v":""}]
[null,null,1,{"$f":"IF(AI70=\"\",\"\",IF(COUNTIF($AI70:AI70, AI70)>1, \"\", AI70))","v":""},null,null,{"$f":"IF(E70=\"\",\"\",E70+F70)","v":""},"",{"$f":"IF(AI70=\"\",\"\",IF(COUNTIF($AI70:AI70, AI70)>1, \"\", AI70))","v":""},null,{"$f":"IF(J70=\"\",\"\",INDEX(REFERENTES!$Y:$Z,MATCH(J70,REFERENTES!$Z:$Z,0),1))","v":""},"",null,null,"",{"$f":"IF(O70=\"\",\"\",INDEX('OTRAS REFERENCIAS'!$L$5:$M$149,MATCH(O70,'OTRAS REFERENCIAS'!$L$5:$L$159,0),2))","v":""},null,null,null,null,null,{"$f":"IF(U70=\"\",\"\",VLOOKUP(U70,'OTRAS REFERENCIAS'!$A$7:$B$9,2,FALSE))","v":""},null,{"$f":"CONCATENATE(V70,W70)","v":""},null,{"$f":"IF(Y70=\"\",\"\",INDEX(REFERENTES!J:K,MATCH(Y70,REFERENTES!K:K,0),1))","v":""},{"$f":"IF(Y70=\"\",\"\",INDEX(REFERENTES!$D:$L,MATCH(Y70,REFERENTES!$K:$K,0),9))","v":""},{"$f":"IF(Y70=\"\",\"\",INDEX(REFERENTES!$J:$P,MATCH(Y70,REFERENTES!$K:$K,0),7))","v":""},null,null,{"$f":"IF(AD70=\"\",\"\",INDEX(REFERENTES!$D:$E,MATCH(AD70,REFERENTES!$D:$D,0),2))","v":""},{"$f":"IF(AD70=\"\",\"\",IF(AD70=\"A\",1,IF(AD70=\"B\",2,IF(AD70=\"C\",3,4))))","v":""},{"$f":"IF(AI70=\"\",\"\",CONCATENATE(AI70,ROW()-2))","v":""},66,{"$f":"IF(E70<>\"\",CONCATENATE($A$2,DIGITADOR!$B$2,DIGITADOR!$M$1,ROW()-3),\"\")","v":""}]
[null,null,1,{"$f":"IF(AI71=\"\",\"\",IF(COUNTIF($AI71:AI71, AI71)>1, \"\", AI71))","v":""},null,null,"","",{"$f":"IF(AI71=\"\",\"\",IF(COUNTIF($AI71:AI71, AI71)>1, \"\", AI71))","v":""},null,{"$f":"IF(J71=\"\",\"\",INDEX(REFERENTES!$Y:$Z,MATCH(J71,REFERENTES!$Z:$Z,0),1))","v":""},"",null,null,"",{"$f":"IF(O71=\"\",\"\",INDEX('OTRAS REFERENCIAS'!$L$5:$M$149,MATCH(O71,'OTRAS REFERENCIAS'!$L$5:$L$159,0),2))","v":""},null,null,null,null,null,{"$f":"IF(U71=\"\",\"\",VLOOKUP(U71,'OTRAS REFERENCIAS'!$A$7:$B$9,2,FALSE))","v":""},null,"",null,{"$f":"IF(Y71=\"\",\"\",INDEX(REFERENTES!J:K,MATCH(Y71,REFERENTES!K:K,0),1))","v":""},{"$f":"IF(Y71=\"\",\"\",INDEX(REFERENTES!$D:$L,MATCH(Y71,REFERENTES!$K:$K,0),9))","v":""},{"$f":"IF(Y71=\"\",\"\",INDEX(REFERENTES!$J:$P,MATCH(Y71,REFERENTES!$K:$K,0),7))","v":""},null,null,{"$f":"IF(AD71=\"\",\"\",INDEX(REFERENTES!$D:$E,MATCH(AD71,REFERENTES!$D:$D,0),2))","v":""},"","",67,{"$f":"IF(E71<>\"\",CONCATENATE($A$2,DIGITADOR!$B$2,DIGITADOR!$M$1,ROW()-3),\"\")","v":""}]
[null,null,1,{"$f":"IF(AI72=\"\",\"\",IF(COUNTIF($AI72:AI72, AI72)>1, \"\", AI72))","v":""},null,null,"","",{"$f":"IF(AI72=\"\",\"\",IF(COUNTIF($AI72:AI72, AI72)>1, \"\", AI72))","v":""},null,{"$f":"IF(J72=\"\",\"\",INDEX(REFERENTES!$Y:$Z,MATCH(J72,REFERENTES!$Z:$Z,0),1))","v":""},"",null,null,"",{"$f":"IF(O72=\"\",\"\",INDEX('OTRAS REFERENCIAS'!$L$5:$M$149,MATCH(O72,'OTRAS REFERENCIAS'!$L$5:$L$159,0),2))","v":""},null,null,null,null,null,{"$f":"IF(U72=\"\",\"\",VLOOKUP(U72,'OTRAS REFERENCIAS'!$A$7:$B$9,2,FALSE))","v":""},null,"",null,{"$f":"IF(Y72=\"\",\"\",INDEX(REFERENTES!J:K,MATCH(Y72,REFERENTES!K:K,0),1))","v":""},{"$f":"IF(Y72=\"\",\"\",INDEX(REFERENTES!$D:$L,MATCH(Y72,REFERENTES!$K:$K,0),9))","v":""},{"$f":"IF(Y72=\"\",\"\",INDEX(REFERENTES!$J:$P,MATCH(Y72,REFERENTES!$K:$K,0),7))","v":""},null,null,{"$f":"IF(AD72=\"\",\"\",INDEX(REFERENTES!$D:$E,MATCH(AD72,REFERENTES!$D:$D,0),2))","v":""},"","",68,{"$f":"IF(E72<>\"\",CONCATENATE($A$2,DIGITADOR!$B$2,DIGITADOR!$M$1,ROW()-3),\"\")","v":""}]
[null,null,1,{"$f":"IF(AI73=\"\",\"\",IF(COUNTIF($AI73:AI73, AI73)>1, \"\", AI73))","v":""},null,null,"","",{"$f":"IF(AI73=\"\",\"\",IF(COUNTIF($AI73:AI73, AI73)>1, \"\", AI73))","v":""},null,{"$f":"IF(J73=\"\",\"\",INDEX(REFERENTES!$Y:$Z,MATCH(J73,REFERENTES!$Z:$Z,0),1))","v":""},"",null,null,"",{"$f":"IF(O73=\"\",\"\",INDEX('OTRAS REFERENCIAS'!$L$5:$M$149,MATCH(O73,'OTRAS REFERENCIAS'!$L$5:$L$159,0),2))","v":""},null,null,null,null,null,{"$f":"IF(U73=\"\",\"\",VLOOKUP(U73,'OTRAS REFERENCIAS'!$A$7:$B$9,2,FALSE))","v":""},null,"",null,{"$f":"IF(Y73=\"\",\"\",INDEX(REFERENTES!J:K,MATCH(Y73,REFERENTES!K:K,0),1))","v":""},{"$f":"IF(Y73=\"\",\"\",INDEX(REFERENTES!$D:$L,MATCH(Y73,REFERENTES!$K:$K,0),9))","v":""},{"$f":"IF(Y73=\"\",\"\",INDEX(REFERENTES!$J:$P,MATCH(Y73,REFERENTES!$K:$K,0),7))","v":""},null,null,{"$f":"IF(AD73=\"\",\"\",INDEX(REFERENTES!$D:$E,MATCH(AD73,REFERENTES!$D:$D,0),2))","v":""},"","",69,{"$f":"IF(E73<>\"\",CONCATENATE($A$2,DIGITADOR!$B$2,DIGITADOR!$M$1,ROW()-3),\"\")","v":""}]
[null,null,1,{"$f":"IF(AI74=\"\",\"\",IF(COUNTIF($AI74:AI74, AI74)>1, \"\", AI74))","v":""},null,null,"","",{"$f":"IF(AI74=\"\",\"\",IF(COUNTIF($AI74:AI74, AI74)>1, \"\", AI74))","v":""},null,{"$f":"IF(J74=\"\",\"\",INDEX(REFERENTES!$Y:$Z,MATCH(J74,REFERENTES!$Z:$Z,0),1))","v":""},"",null,null,"",{"$f":"IF(O74=\"\",\"\",INDEX('OTRAS REFERENCIAS'!$L$5:$M$149,MATCH(O74,'OTRAS REFERENCIAS'!$L$5:$L$159,0),2))","v":""},null,null,null,null,null,{"$f":"IF(U74=\"\",\"\",VLOOKUP(U74,'OTRAS REFERENCIAS'!$A$7:$B$9,2,FALSE))","v":""},null,"",null,{"$f":"IF(Y74=\"\",\"\",INDEX(REFERENTES!J:K,MATCH(Y74,REFERENTES!K:K,0),1))","v":""},{"$f":"IF(Y74=\"\",\"\",INDEX(REFERENTES!$D:$L,MATCH(Y74,REFERENTES!$K:$K,0),9))","v":""},{"$f":"IF(Y74=\"\",\"\",INDEX(REFERENTES!$J:$P,MATCH(Y74,REFERENTES!$K:$K,0),7))","v":""},null,null,{"$f":"IF(AD74=\"\",\"\",INDEX(REFERENTES!$D:$E,MATCH(AD74,REFERENTES!$D:$D,0),2))","v":""},"","",70,{"$f":"IF(E74<>\"\",CONCATENATE($A$2,DIGITADOR!$B$2,DIGITADOR!$M$1,ROW()-3),\"\")","v":""}]
[null,null,1,{"$f":"IF(AI75=\"\",\"\",IF(COUNTIF($AI75:AI75, AI75)>1, \"\", AI75))","v":""},null,null,"","",{"$f":"IF(AI75=\"\",\"\",IF(COUNTIF($AI75:AI75, AI75)>1, \"\", AI75))","v":""},null,{"$f":"IF(J75=\"\",\"\",INDEX(REFERENTES!$Y:$Z,MATCH(J75,REFERENTES!$Z:$Z,0),1))","v":""},"",null,null,"",{"$f":"IF(O75=\"\",\"\",INDEX('OTRAS REFERENCIAS'!$L$5:$M$149,MATCH(O75,'OTRAS REFERENCIAS'!$L$5:$L$159,0),2))","v":""},null,null,null,null,null,{"$f":"IF(U75=\"\",\"\",VLOOKUP(U75,'OTRAS REFERENCIAS'!$A$7:$B$9,2,FALSE))","v":""},null,"",null,{"$f":"IF(Y75=\"\",\"\",INDEX(REFERENTES!J:K,MATCH(Y75,REFERENTES!K:K,0),1))","v":""},{"$f":"IF(Y75=\"\",\"\",INDEX(REFERENTES!$D:$L,MATCH(Y75,REFERENTES!$K:$K,0),9))","v":""},{"$f":"IF(Y75=\"\",\"\",INDEX(REFERENTES!$J:$P,MATCH(Y75,REFERENTES!$K:$K,0),7))","v":""},null,null,{"$f":"IF(AD75=\"\",\"\",INDEX(REFERENTES!$D:$E,MATCH(AD75,REFERENTES!$D:$D,0),2))","v":""},"","",71,{"$f":"IF(E75<>\"\",CONCATENATE($A$2,DIGITADOR!$B$2,DIGITADOR!$M$1,ROW()-3),\"\")","v":""}]
[null,null,1,{"$f":"IF(AI76=\"\",\"\",IF(COUNTIF($AI76:AI76, AI76)>1, \"\", AI76))","v":""},null,null,"","",{"$f":"IF(AI76=\"\",\"\",IF(COUNTIF($AI76:AI76, AI76)>1, \"\", AI76))","v":""},null,{"$f":"IF(J76=\"\",\"\",INDEX(REFERENTES!$Y:$Z,MATCH(J76,REFERENTES!$Z:$Z,0),1))","v":""},"",null,null,"",{"$f":"IF(O76=\"\",\"\",INDEX('OTRAS REFERENCIAS'!$L$5:$M$149,MATCH(O76,'OTRAS REFERENCIAS'!$L$5:$L$159,0),2))","v":""},null,null,null,null,null,{"$f":"IF(U76=\"\",\"\",VLOOKUP(U76,'OTRAS REFERENCIAS'!$A$7:$B$9,2,FALSE))","v":""},null,"",null,{"$f":"IF(Y76=\"\",\"\",INDEX(REFERENTES!J:K,MATCH(Y76,REFERENTES!K:K,0),1))","v":""},{"$f":"IF(Y76=\"\",\"\",INDEX(REFERENTES!$D:$L,MATCH(Y76,REFERENTES!$K:$K,0),9))","v":""},{"$f":"IF(Y76=\"\",\"\",INDEX(REFERENTES!$J:$P,MATCH(Y76,REFERENTES!$K:$K,0),7))","v":""},null,null,{"$f":"IF(AD76=\"\",\"\",INDEX(REFERENTES!$D:$E,MATCH(AD76,REFERENTES!$D:$D,0),2))","v":""},"","",72,{"$f":"IF(E76<>\"\",CONCATENATE($A$2,DIGITADOR!$B$2,DIGITADOR!$M$1,ROW()-3),\"\")","v":""}]
[null,null,1,{"$f":"IF(AI77=\"\",\"\",IF(COUNTIF($AI77:AI77, AI77)>1, \"\", AI77))","v":""},null,null,"","",{"$f":"IF(AI77=\"\",\"\",IF(COUNTIF($AI77:AI77, AI77)>1, \"\", AI77))","v":""},null,{"$f":"IF(J77=\"\",\"\",INDEX(REFERENTES!$Y:$Z,MATCH(J77,REFERENTES!$Z:$Z,0),1))","v":""},"",null,null,"",{"$f":"IF(O77=\"\",\"\",INDEX('OTRAS REFERENCIAS'!$L$5:$M$149,MATCH(O77,'OTRAS REFERENCIAS'!$L$5:$L$159,0),2))","v":""},null,null,null,null,null,{"$f":"IF(U77=\"\",\"\",VLOOKUP(U77,'OTRAS REFERENCIAS'!$A$7:$B$9,2,FALSE))","v":""},null,"",null,{"$f":"IF(Y77=\"\",\"\",INDEX(REFERENTES!J:K,MATCH(Y77,REFERENTES!K:K,0),1))","v":""},{"$f":"IF(Y77=\"\",\"\",INDEX(REFERENTES!$D:$L,MATCH(Y77,REFERENTES!$K:$K,0),9))","v":""},{"$f":"IF(Y77=\"\",\"\",INDEX(REFERENTES!$J:$P,MATCH(Y77,REFERENTES!$K:$K,0),7))","v":""},null,null,{"$f":"IF(AD77=\"\",\"\",INDEX(REFERENTES!$D:$E,MATCH(AD77,REFERENTES!$D:$D,0),2))","v":""},"","",73,{"$f":"IF(E77<>\"\",CONCATENATE($A$2,DIGITADOR!$B$2,DIGITADOR!$M$1,ROW()-3),\"\")","v":""}]
[null,null,1,{"$f":"IF(AI78=\"\",\"\",IF(COUNTIF($AI78:AI78, AI78)>1, \"\", AI78))","v":""},null,null,"","",{"$f":"IF(AI78=\"\",\"\",IF(COUNTIF($AI78:AI78, AI78)>1, \"\", AI78))","v":""},null,{"$f":"IF(J78=\"\",\"\",INDEX(REFERENTES!$Y:$Z,MATCH(J78,REFERENTES!$Z:$Z,0),1))","v":""},"",null,null,"",{"$f":"IF(O78=\"\",\"\",INDEX('OTRAS REFERENCIAS'!$L$5:$M$149,MATCH(O78,'OTRAS REFERENCIAS'!$L$5:$L$159,0),2))","v":""},null,null,null,null,null,{"$f":"IF(U78=\"\",\"\",VLOOKUP(U78,'OTRAS REFERENCIAS'!$A$7:$B$9,2,FALSE))","v":""},null,"",null,{"$f":"IF(Y78=\"\",\"\",INDEX(REFERENTES!J:K,MATCH(Y78,REFERENTES!K:K,0),1))","v":""},{"$f":"IF(Y78=\"\",\"\",INDEX(REFERENTES!$D:$L,MATCH(Y78,REFERENTES!$K:$K,0),9))","v":""},{"$f":"IF(Y78=\"\",\"\",INDEX(REFERENTES!$J:$P,MATCH(Y78,REFERENTES!$K:$K,0),7))","v":""},null,null,{"$f":"IF(AD78=\"\",\"\",INDEX(REFERENTES!$D:$E,MATCH(AD78,REFERENTES!$D:$D,0),2))","v":""},"","",74,{"$f":"IF(E78<>\"\",CONCATENATE($A$2,DIGITADOR!$B$2,DIGITADOR!$M$1,ROW()-3),\"\")","v":""}]
[null,null,1,{"$f":"IF(AI79=\"\",\"\",IF(COUNTIF($AI79:AI79, AI79)>1, \"\", AI79))","v":""},null,null,"","",{"$f":"IF(AI79=\"\",\"\",IF(COUNTIF($AI79:AI79, AI79)>1, \"\", AI79))","v":""},null,{"$f":"IF(J79=\"\",\"\",INDEX(REFERENTES!$Y:$Z,MATCH(J79,REFERENTES!$Z:$Z,0),1))","v":""},"",null,null,"",{"$f":"IF(O79=\"\",\"\",INDEX('OTRAS REFERENCIAS'!$L$5:$M$149,MATCH(O79,'OTRAS REFERENCIAS'!$L$5:$L$159,0),2))","v":""},null,null,null,null,null,{"$f":"IF(U79=\"\",\"\",VLOOKUP(U79,'OTRAS REFERENCIAS'!$A$7:$B$9,2,FALSE))","v":""},null,"",null,{"$f":"IF(Y79=\"\",\"\",INDEX(REFERENTES!J:K,MATCH(Y79,REFERENTES!K:K,0),1))","v":""},{"$f":"IF(Y79=\"\",\"\",INDEX(REFERENTES!$D:$L,MATCH(Y79,REFERENTES!$K:$K,0),9))","v":""},{"$f":"IF(Y79=\"\",\"\",INDEX(REFERENTES!$J:$P,MATCH(Y79,REFERENTES!$K:$K,0),7))","v":""},null,null,{"$f":"IF(AD79=\"\",\"\",INDEX(REFERENTES!$D:$E,MATCH(AD79,REFERENTES!$D:$D,0),2))","v":""},"","",75,{"$f":"IF(E79<>\"\",CONCATENATE($A$2,DIGITADOR!$B$2,DIGITADOR!$M$1,ROW()-3),\"\")","v":""}]
[null,null,1,{"$f":"IF(AI80=\"\",\"\",IF(COUNTIF($AI80:AI80, AI80)>1, \"\", AI80))","v":""},null,null,"","",{"$f":"IF(AI80=\"\",\"\",IF(COUNTIF($AI80:AI80, AI80)>1, \"\", AI80))","v":""},null,{"$f":"IF(J80=\"\",\"\",INDEX(REFERENTES!$Y:$Z,MATCH(J80,REFERENTES!$Z:$Z,0),1))","v":""},"",null,null,"",{"$f":"IF(O80=\"\",\"\",INDEX('OTRAS REFERENCIAS'!$L$5:$M$149,MATCH(O80,'OTRAS REFERENCIAS'!$L$5:$L$159,0),2))","v":""},null,null,null,null,null,{"$f":"IF(U80=\"\",\"\",VLOOKUP(U80,'OTRAS REFERENCIAS'!$A$7:$B$9,2,FALSE))","v":""},null,"",null,{"$f":"IF(Y80=\"\",\"\",INDEX(REFERENTES!J:K,MATCH(Y80,REFERENTES!K:K,0),1))","v":""},{"$f":"IF(Y80=\"\",\"\",INDEX(REFERENTES!$D:$L,MATCH(Y80,REFERENTES!$K:$K,0),9))","v":""},{"$f":"IF(Y80=\"\",\"\",INDEX(REFERENTES!$J:$P,MATCH(Y80,REFERENTES!$K:$K,0),7))","v":""},null,null,{"$f":"IF(AD80=\"\",\"\",INDEX(REFERENTES!$D:$E,MATCH(AD80,REFERENTES!$D:$D,0),2))","v":""},"","",76,{"$f":"IF(E80<>\"\",CONCATENATE($A$2,DIGITADOR!$B$2,DIGITADOR!$M$1,ROW()-3),\"\")","v":""}]
[null,null,1,{"$f":"IF(AI81=\"\",\"\",IF(COUNTIF($AI81:AI81, AI81)>1, \"\", AI81))","v":""},null,null,"","",{"$f":"IF(AI81=\"\",\"\",IF(COUNTIF($AI81:AI81, AI81)>1, \"\", AI81))","v":""},null,{"$f":"IF(J81=\"\",\"\",INDEX(REFERENTES!$Y:$Z,MATCH(J81,REFERENTES!$Z:$Z,0),1))","v":""},"",null,null,"",{"$f":"IF(O81=\"\",\"\",INDEX('OTRAS REFERENCIAS'!$L$5:$M$149,MATCH(O81,'OTRAS REFERENCIAS'!$L$5:$L$159,0),2))","v":""},null,null,null,null,null,{"$f":"IF(U81=\"\",\"\",VLOOKUP(U81,'OTRAS REFERENCIAS'!$A$7:$B$9,2,FALSE))","v":""},null,"",null,{"$f":"IF(Y81=\"\",\"\",INDEX(REFERENTES!J:K,MATCH(Y81,REFERENTES!K:K,0),1))","v":""},{"$f":"IF(Y81=\"\",\"\",INDEX(REFERENTES!$D:$L,MATCH(Y81,REFERENTES!$K:$K,0),9))","v":""},{"$f":"IF(Y81=\"\",\"\",INDEX(REFERENTES!$J:$P,MATCH(Y81,REFERENTES!$K:$K,0),7))","v":""},null,null,{"$f":"IF(AD81=\"\",\"\",INDEX(REFERENTES!$D:$E,MATCH(AD81,REFERENTES!$D:$D,0),2))","v":""},"","",77,{"$f":"IF(E81<>\"\",CONCATENATE($A$2,DIGITADOR!$B$2,DIGITADOR!$M$1,ROW()-3),\"\")","v":""}]
[null,null,1,{"$f":"IF(AI82=\"\",\"\",IF(COUNTIF($AI82:AI82, AI82)>1, \"\", AI82))","v":""},null,null,"","",{"$f":"IF(AI82=\"\",\"\",IF(COUNTIF($AI82:AI82, AI82)>1, \"\", AI82))","v":""},null,{"$f":"IF(J82=\"\",\"\",INDEX(REFERENTES!$Y:$Z,MATCH(J82,REFERENTES!$Z:$Z,0),1))","v":""},"",null,null,"",{"$f":"IF(O82=\"\",\"\",INDEX('OTRAS REFERENCIAS'!$L$5:$M$149,MATCH(O82,'OTRAS REFERENCIAS'!$L$5:$L$159,0),2))","v":""},null,null,null,null,null,{"$f":"IF(U82=\"\",\"\",VLOOKUP(U82,'OTRAS REFERENCIAS'!$A$7:$B$9,2,FALSE))","v":""},null,"",null,{"$f":"IF(Y82=\"\",\"\",INDEX(REFERENTES!J:K,MATCH(Y82,REFERENTES!K:K,0),1))","v":""},{"$f":"IF(Y82=\"\",\"\",INDEX(REFERENTES!$D:$L,MATCH(Y82,REFERENTES!$K:$K,0),9))","v":""},{"$f":"IF(Y82=\"\",\"\",INDEX(REFERENTES!$J:$P,MATCH(Y82,REFERENTES!$K:$K,0),7))","v":""},null,null,{"$f":"IF(AD82=\"\",\"\",INDEX(REFERENTES!$D:$E,MATCH(AD82,REFERENTES!$D:$D,0),2))","v":""},"","",78,{"$f":"IF(E82<>\"\",CONCATENATE($A$2,DIGITADOR!$B$2,DIGITADOR!$M$1,ROW()-3),\"\")","v":""}]
[null,null,1,{"$f":"IF(AI83=\"\",\"\",IF(COUNTIF($AI83:AI83, AI83)>1, \"\", AI83))","v":""},null,null,"","",{"$f":"IF(AI83=\"\",\"\",IF(COUNTIF($AI83:AI83, AI83)>1, \"\", AI83))","v":""},null,{"$f":"IF(J83=\"\",\"\",INDEX(REFERENTES!$Y:$Z,MATCH(J83,REFERENTES!$Z:$Z,0),1))","v":""},"",null,null,"",{"$f":"IF(O83=\"\",\"\",INDEX('OTRAS REFERENCIAS'!$L$5:$M$149,MATCH(O83,'OTRAS REFERENCIAS'!$L$5:$L$159,0),2))","v":""},null,null,null,null,null,{"$f":"IF(U83=\"\",\"\",VLOOKUP(U83,'OTRAS REFERENCIAS'!$A$7:$B$9,2,FALSE))","v":""},null,"",null,{"$f":"IF(Y83=\"\",\"\",INDEX(REFERENTES!J:K,MATCH(Y83,REFERENTES!K:K,0),1))","v":""},{"$f":"IF(Y83=\"\",\"\",INDEX(REFERENTES!$D:$L,MATCH(Y83,REFERENTES!$K:$K,0),9))","v":""},{"$f":"IF(Y83=\"\",\"\",INDEX(REFERENTES!$J:$P,MATCH(Y83,REFERENTES!$K:$K,0),7))","v":""},null,null,{"$f":"IF(AD83=\"\",\"\",INDEX(REFERENTES!$D:$E,MATCH(AD83,REFERENTES!$D:$D,0),2))","v":""},"","",79,{"$f":"IF(E83<>\"\",CONCATENATE($A$2,DIGITADOR!$B$2,DIGITADOR!$M$1,ROW()-3),\"\")","v":""}]
[null,null,1,{"$f":"IF(AI84=\"\",\"\",IF(COUNTIF($AI84:AI84, AI84)>1, \"\", AI84))","v":""},null,null,"","",{"$f":"IF(AI84=\"\",\"\",IF(COUNTIF($AI84:AI84, AI84)>1, \"\", AI84))","v":""},null,{"$f":"IF(J84=\"\",\"\",INDEX(REFERENTES!$Y:$Z,MATCH(J84,REFERENTES!$Z:$Z,0),1))","v":""},"",null,null,"",{"$f":"IF(O84=\"\",\"\",INDEX('OTRAS REFERENCIAS'!$L$5:$M$149,MATCH(O84,'OTRAS REFERENCIAS'!$L$5:$L$159,0),2))","v":""},null,null,null,null,null,{"$f":"IF(U84=\"\",\"\",VLOOKUP(U84,'OTRAS REFERENCIAS'!$A$7:$B$9,2,FALSE))","v":""},null,"",null,{"$f":"IF(Y84=\"\",\"\",INDEX(REFERENTES!J:K,MATCH(Y84,REFERENTES!K:K,0),1))","v":""},{"$f":"IF(Y84=\"\",\"\",INDEX(REFERENTES!$D:$L,MATCH(Y84,REFERENTES!$K:$K,0),9))","v":""},{"$f":"IF(Y84=\"\",\"\",INDEX(REFERENTES!$J:$P,MATCH(Y84,REFERENTES!$K:$K,0),7))","v":""},null,null,{"$f":"IF(AD84=\"\",\"\",INDEX(REFERENTES!$D:$E,MATCH(AD84,REFERENTES!$D:$D,0),2))","v":""},"","",80,{"$f":"IF(E84<>\"\",CONCATENATE($A$2,DIGITADOR!$B$2,DIGITADOR!$M$1,ROW()-3),\"\")","v":""}]
[null,null,1,{"$f":"IF(AI85=\"\",\"\",IF(COUNTIF($AI85:AI85, AI85)>1, \"\", AI85))","v":""},null,null,"","",{"$f":"IF(AI85=\"\",\"\",IF(COUNTIF($AI85:AI85, AI85)>1, \"\", AI85))","v":""},null,{"$f":"IF(J85=\"\",\"\",INDEX(REFERENTES!$Y:$Z,MATCH(J85,REFERENTES!$Z:$Z,0),1))","v":""},"",null,null,"",{"$f":"IF(O85=\"\",\"\",INDEX('OTRAS REFERENCIAS'!$L$5:$M$149,MATCH(O85,'OTRAS REFERENCIAS'!$L$5:$L$159,0),2))","v":""},null,null,null,null,null,{"$f":"IF(U85=\"\",\"\",VLOOKUP(U85,'OTRAS REFERENCIAS'!$A$7:$B$9,2,FALSE))","v":""},null,"",null,{"$f":"IF(Y85=\"\",\"\",INDEX(REFERENTES!J:K,MATCH(Y85,REFERENTES!K:K,0),1))","v":""},{"$f":"IF(Y85=\"\",\"\",INDEX(REFERENTES!$D:$L,MATCH(Y85,REFERENTES!$K:$K,0),9))","v":""},{"$f":"IF(Y85=\"\",\"\",INDEX(REFERENTES!$J:$P,MATCH(Y85,REFERENTES!$K:$K,0),7))","v":""},null,null,{"$f":"IF(AD85=\"\",\"\",INDEX(REFERENTES!$D:$E,MATCH(AD85,REFERENTES!$D:$D,0),2))","v":""},"","",81,{"$f":"IF(E85<>\"\",CONCATENATE($A$2,DIGITADOR!$B$2,DIGITADOR!$M$1,ROW()-3),\"\")","v":""}]
[null,null,1,{"$f":"IF(AI86=\"\",\"\",IF(COUNTIF($AI86:AI86, AI86)>1, \"\", AI86))","v":""},null,null,"","",{"$f":"IF(AI86=\"\",\"\",IF(COUNTIF($AI86:AI86, AI86)>1, \"\", AI86))","v":""},null,{"$f":"IF(J86=\"\",\"\",INDEX(REFERENTES!$Y:$Z,MATCH(J86,REFERENTES!$Z:$Z,0),1))","v":""},"",null,null,"",{"$f":"IF(O86=\"\",\"\",INDEX('OTRAS REFERENCIAS'!$L$5:$M$149,MATCH(O86,'OTRAS REFERENCIAS'!$L$5:$L$159,0),2))","v":""},null,null,null,null,null,{"$f":"IF(U86=\"\",\"\",VLOOKUP(U86,'OTRAS REFERENCIAS'!$A$7:$B$9,2,FALSE))","v":""},null,"",null,{"$f":"IF(Y86=\"\",\"\",INDEX(REFERENTES!J:K,MATCH(Y86,REFERENTES!K:K,0),1))","v":""},{"$f":"IF(Y86=\"\",\"\",INDEX(REFERENTES!$D:$L,MATCH(Y86,REFERENTES!$K:$K,0),9))","v":""},{"$f":"IF(Y86=\"\",\"\",INDEX(REFERENTES!$J:$P,MATCH(Y86,REFERENTES!$K:$K,0),7))","v":""},null,null,{"$f":"IF(AD86=\"\",\"\",INDEX(REFERENTES!$D:$E,MATCH(AD86,REFERENTES!$D:$D,0),2))","v":""},"","",82,{"$f":"IF(E86<>\"\",CONCATENATE($A$2,DIGITADOR!$B$2,DIGITADOR!$M$1,ROW()-3),\"\")","v":""}]
[null,null,1,{"$f":"IF(AI87=\"\",\"\",IF(COUNTIF($AI87:AI87, AI87)>1, \"\", AI87))","v":""},null,null,"","",{"$f":"IF(AI87=\"\",\"\",IF(COUNTIF($AI87:AI87, AI87)>1, \"\", AI87))","v":""},null,{"$f":"IF(J87=\"\",\"\",INDEX(REFERENTES!$Y:$Z,MATCH(J87,REFERENTES!$Z:$Z,0),1))","v":""},"",null,null,"",{"$f":"IF(O87=\"\",\"\",INDEX('OTRAS REFERENCIAS'!$L$5:$M$149,MATCH(O87,'OTRAS REFERENCIAS'!$L$5:$L$159,0),2))","v":""},null,null,null,null,null,{"$f":"IF(U87=\"\",\"\",VLOOKUP(U87,'OTRAS REFERENCIAS'!$A$7:$B$9,2,FALSE))","v":""},null,"",null,{"$f":"IF(Y87=\"\",\"\",INDEX(REFERENTES!J:K,MATCH(Y87,REFERENTES!K:K,0),1))","v":""},{"$f":"IF(Y87=\"\",\"\",INDEX(REFERENTES!$D:$L,MATCH(Y87,REFERENTES!$K:$K,0),9))","v":""},{"$f":"IF(Y87=\"\",\"\",INDEX(REFERENTES!$J:$P,MATCH(Y87,REFERENTES!$K:$K,0),7))","v":""},null,null,{"$f":"IF(AD87=\"\",\"\",INDEX(REFERENTES!$D:$E,MATCH(AD87,REFERENTES!$D:$D,0),2))","v":""},"","",83,{"$f":"IF(E87<>\"\",CONCATENATE($A$2,DIGITADOR!$B$2,DIGITADOR!$M$1,ROW()-3),\"\")","v":""}]
[null,null,1,{"$f":"IF(AI88=\"\",\"\",IF(COUNTIF($AI88:AI88, AI88)>1, \"\", AI88))","v":""},null,null,"","",{"$f":"IF(AI88=\"\",\"\",IF(COUNTIF($AI88:AI88, AI88)>1, \"\", AI88))","v":""},null,{"$f":"IF(J88=\"\",\"\",INDEX(REFERENTES!$Y:$Z,MATCH(J88,REFERENTES!$Z:$Z,0),1))","v":""},"",null,null,"",{"$f":"IF(O88=\"\",\"\",INDEX('OTRAS REFERENCIAS'!$L$5:$M$149,MATCH(O88,'OTRAS REFERENCIAS'!$L$5:$L$159,0),2))","v":""},null,null,null,null,null,{"$f":"IF(U88=\"\",\"\",VLOOKUP(U88,'OTRAS REFERENCIAS'!$A$7:$B$9,2,FALSE))","v":""},null,"",null,{"$f":"IF(Y88=\"\",\"\",INDEX(REFERENTES!J:K,MATCH(Y88,REFERENTES!K:K,0),1))","v":""},{"$f":"IF(Y88=\"\",\"\",INDEX(REFERENTES!$D:$L,MATCH(Y88,REFERENTES!$K:$K,0),9))","v":""},{"$f":"IF(Y88=\"\",\"\",INDEX(REFERENTES!$J:$P,MATCH(Y88,REFERENTES!$K:$K,0),7))","v":""},null,null,{"$f":"IF(AD88=\"\",\"\",INDEX(REFERENTES!$D:$E,MATCH(AD88,REFERENTES!$D:$D,0),2))","v":""},"","",84,{"$f":"IF(E88<>\"\",CONCATENATE($A$2,DIGITADOR!$B$2,DIGITADOR!$M$1,ROW()-3),\"\")","v":""}]
[null,null,1,{"$f":"IF(AI89=\"\",\"\",IF(COUNTIF($AI89:AI89, AI89)>1, \"\", AI89))","v":""},null,null,"","",{"$f":"IF(AI89=\"\",\"\",IF(COUNTIF($AI89:AI89, AI89)>1, \"\", AI89))","v":""},null,{"$f":"IF(J89=\"\",\"\",INDEX(REFERENTES!$Y:$Z,MATCH(J89,REFERENTES!$Z:$Z,0),1))","v":""},"",null,null,"",{"$f":"IF(O89=\"\",\"\",INDEX('OTRAS REFERENCIAS'!$L$5:$M$149,MATCH(O89,'OTRAS REFERENCIAS'!$L$5:$L$159,0),2))","v":""},null,null,null,null,null,{"$f":"IF(U89=\"\",\"\",VLOOKUP(U89,'OTRAS REFERENCIAS'!$A$7:$B$9,2,FALSE))","v":""},null,"",null,{"$f":"IF(Y89=\"\",\"\",INDEX(REFERENTES!J:K,MATCH(Y89,REFERENTES!K:K,0),1))","v":""},{"$f":"IF(Y89=\"\",\"\",INDEX(REFERENTES!$D:$L,MATCH(Y89,REFERENTES!$K:$K,0),9))","v":""},{"$f":"IF(Y89=\"\",\"\",INDEX(REFERENTES!$J:$P,MATCH(Y89,REFERENTES!$K:$K,0),7))","v":""},null,null,{"$f":"IF(AD89=\"\",\"\",INDEX(REFERENTES!$D:$E,MATCH(AD89,REFERENTES!$D:$D,0),2))","v":""},"","",85,{"$f":"IF(E89<>\"\",CONCATENATE($A$2,DIGITADOR!$B$2,DIGITADOR!$M$1,ROW()-3),\"\")","v":""}]
[null,null,1,{"$f":"IF(AI90=\"\",\"\",IF(COUNTIF($AI90:AI90, AI90)>1, \"\", AI90))","v":""},null,null,"","",{"$f":"IF(AI90=\"\",\"\",IF(COUNTIF($AI90:AI90, AI90)>1, \"\", AI90))","v":""},null,{"$f":"IF(J90=\"\",\"\",INDEX(REFERENTES!$Y:$Z,MATCH(J90,REFERENTES!$Z:$Z,0),1))","v":""},"",null,null,"",{"$f":"IF(O90=\"\",\"\",INDEX('OTRAS REFERENCIAS'!$L$5:$M$149,MATCH(O90,'OTRAS REFERENCIAS'!$L$5:$L$159,0),2))","v":""},null,null,null,null,null,{"$f":"IF(U90=\"\",\"\",VLOOKUP(U90,'OTRAS REFERENCIAS'!$A$7:$B$9,2,FALSE))","v":""},null,"",null,{"$f":"IF(Y90=\"\",\"\",INDEX(REFERENTES!J:K,MATCH(Y90,REFERENTES!K:K,0),1))","v":""},{"$f":"IF(Y90=\"\",\"\",INDEX(REFERENTES!$D:$L,MATCH(Y90,REFERENTES!$K:$K,0),9))","v":""},{"$f":"IF(Y90=\"\",\"\",INDEX(REFERENTES!$J:$P,MATCH(Y90,REFERENTES!$K:$K,0),7))","v":""},null,null,{"$f":"IF(AD90=\"\",\"\",INDEX(REFERENTES!$D:$E,MATCH(AD90,REFERENTES!$D:$D,0),2))","v":""},"","",86,{"$f":"IF(E90<>\"\",CONCATENATE($A$2,DIGITADOR!$B$2,DIGITADOR!$M$1,ROW()-3),\"\")","v":""}]
[null,null,1,{"$f":"IF(AI91=\"\",\"\",IF(COUNTIF($AI91:AI91, AI91)>1, \"\", AI91))","v":""},null,null,"","",{"$f":"IF(AI91=\"\",\"\",IF(COUNTIF($AI91:AI91, AI91)>1, \"\", AI91))","v":""},null,{"$f":"IF(J91=\"\",\"\",INDEX(REFERENTES!$Y:$Z,MATCH(J91,REFERENTES!$Z:$Z,0),1))","v":""},"",null,null,"",{"$f":"IF(O91=\"\",\"\",INDEX('OTRAS REFERENCIAS'!$L$5:$M$149,MATCH(O91,'OTRAS REFERENCIAS'!$L$5:$L$159,0),2))","v":""},null,null,null,null,null,{"$f":"IF(U91=\"\",\"\",VLOOKUP(U91,'OTRAS REFERENCIAS'!$A$7:$B$9,2,FALSE))","v":""},null,"",null,{"$f":"IF(Y91=\"\",\"\",INDEX(REFERENTES!J:K,MATCH(Y91,REFERENTES!K:K,0),1))","v":""},{"$f":"IF(Y91=\"\",\"\",INDEX(REFERENTES!$D:$L,MATCH(Y91,REFERENTES!$K:$K,0),9))","v":""},{"$f":"IF(Y91=\"\",\"\",INDEX(REFERENTES!$J:$P,MATCH(Y91,REFERENTES!$K:$K,0),7))","v":""},null,null,{"$f":"IF(AD91=\"\",\"\",INDEX(REFERENTES!$D:$E,MATCH(AD91,REFERENTES!$D:$D,0),2))","v":""},"","",87,{"$f":"IF(E91<>\"\",CONCATENATE($A$2,DIGITADOR!$B$2,DIGITADOR!$M$1,ROW()-3),\"\")","v":""}]
[null,null,1,{"$f":"IF(AI92=\"\",\"\",IF(COUNTIF($AI92:AI92, AI92)>1, \"\", AI92))","v":""},null,null,"","",{"$f":"IF(AI92=\"\",\"\",IF(COUNTIF($AI92:AI92, AI92)>1, \"\", AI92))","v":""},null,{"$f":"IF(J92=\"\",\"\",INDEX(REFERENTES!$Y:$Z,MATCH(J92,REFERENTES!$Z:$Z,0),1))","v":""},"",null,null,"",{"$f":"IF(O92=\"\",\"\",INDEX('OTRAS REFERENCIAS'!$L$5:$M$149,MATCH(O92,'OTRAS REFERENCIAS'!$L$5:$L$159,0),2))","v":""},null,null,null,null,null,{"$f":"IF(U92=\"\",\"\",VLOOKUP(U92,'OTRAS REFERENCIAS'!$A$7:$B$9,2,FALSE))","v":""},null,"",null,{"$f":"IF(Y92=\"\",\"\",INDEX(REFERENTES!J:K,MATCH(Y92,REFERENTES!K:K,0),1))","v":""},{"$f":"IF(Y92=\"\",\"\",INDEX(REFERENTES!$D:$L,MATCH(Y92,REFERENTES!$K:$K,0),9))","v":""},{"$f":"IF(Y92=\"\",\"\",INDEX(REFERENTES!$J:$P,MATCH(Y92,REFERENTES!$K:$K,0),7))","v":""},null,null,{"$f":"IF(AD92=\"\",\"\",INDEX(REFERENTES!$D:$E,MATCH(AD92,REFERENTES!$D:$D,0),2))","v":""},"","",88,{"$f":"IF(E92<>\"\",CONCATENATE($A$2,DIGITADOR!$B$2,DIGITADOR!$M$1,ROW()-3),\"\")","v":""}]
[null,null,1,{"$f":"IF(AI93=\"\",\"\",IF(COUNTIF($AI93:AI93, AI93)>1, \"\", AI93))","v":""},null,null,"","",{"$f":"IF(AI93=\"\",\"\",IF(COUNTIF($AI93:AI93, AI93)>1, \"\", AI93))","v":""},null,{"$f":"IF(J93=\"\",\"\",INDEX(REFERENTES!$Y:$Z,MATCH(J93,REFERENTES!$Z:$Z,0),1))","v":""},"",null,null,"",{"$f":"IF(O93=\"\",\"\",INDEX('OTRAS REFERENCIAS'!$L$5:$M$149,MATCH(O93,'OTRAS REFERENCIAS'!$L$5:$L$159,0),2))","v":""},null,null,null,null,null,{"$f":"IF(U93=\"\",\"\",VLOOKUP(U93,'OTRAS REFERENCIAS'!$A$7:$B$9,2,FALSE))","v":""},null,"",null,{"$f":"IF(Y93=\"\",\"\",INDEX(REFERENTES!J:K,MATCH(Y93,REFERENTES!K:K,0),1))","v":""},{"$f":"IF(Y93=\"\",\"\",INDEX(REFERENTES!$D:$L,MATCH(Y93,REFERENTES!$K:$K,0),9))","v":""},{"$f":"IF(Y93=\"\",\"\",INDEX(REFERENTES!$J:$P,MATCH(Y93,REFERENTES!$K:$K,0),7))","v":""},null,null,{"$f":"IF(AD93=\"\",\"\",INDEX(REFERENTES!$D:$E,MATCH(AD93,REFERENTES!$D:$D,0),2))","v":""},"","",89,{"$f":"IF(E93<>\"\",CONCATENATE($A$2,DIGITADOR!$B$2,DIGITADOR!$M$1,ROW()-3),\"\")","v":""}]
[null,null,1,{"$f":"IF(AI94=\"\",\"\",IF(COUNTIF($AI94:AI94, AI94)>1, \"\", AI94))","v":""},null,null,"","",{"$f":"IF(AI94=\"\",\"\",IF(COUNTIF($AI94:AI94, AI94)>1, \"\", AI94))","v":""},null,{"$f":"IF(J94=\"\",\"\",INDEX(REFERENTES!$Y:$Z,MATCH(J94,REFERENTES!$Z:$Z,0),1))","v":""},"",null,null,"",{"$f":"IF(O94=\"\",\"\",INDEX('OTRAS REFERENCIAS'!$L$5:$M$149,MATCH(O94,'OTRAS REFERENCIAS'!$L$5:$L$159,0),2))","v":""},null,null,null,null,null,{"$f":"IF(U94=\"\",\"\",VLOOKUP(U94,'OTRAS REFERENCIAS'!$A$7:$B$9,2,FALSE))","v":""},null,"",null,{"$f":"IF(Y94=\"\",\"\",INDEX(REFERENTES!J:K,MATCH(Y94,REFERENTES!K:K,0),1))","v":""},{"$f":"IF(Y94=\"\",\"\",INDEX(REFERENTES!$D:$L,MATCH(Y94,REFERENTES!$K:$K,0),9))","v":""},{"$f":"IF(Y94=\"\",\"\",INDEX(REFERENTES!$J:$P,MATCH(Y94,REFERENTES!$K:$K,0),7))","v":""},null,null,{"$f":"IF(AD94=\"\",\"\",INDEX(REFERENTES!$D:$E,MATCH(AD94,REFERENTES!$D:$D,0),2))","v":""},"","",90,{"$f":"IF(E94<>\"\",CONCATENATE($A$2,DIGITADOR!$B$2,DIGITADOR!$M$1,ROW()-3),\"\")","v":""}]
[null,null,1,{"$f":"IF(AI95=\"\",\"\",IF(COUNTIF($AI95:AI95, AI95)>1, \"\", AI95))","v":""},null,null,"","",{"$f":"IF(AI95=\"\",\"\",IF(COUNTIF($AI95:AI95, AI95)>1, \"\", AI95))","v":""},null,{"$f":"IF(J95=\"\",\"\",INDEX(REFERENTES!$Y:$Z,MATCH(J95,REFERENTES!$Z:$Z,0),1))","v":""},"",null,null,"",{"$f":"IF(O95=\"\",\"\",INDEX('OTRAS REFERENCIAS'!$L$5:$M$149,MATCH(O95,'OTRAS REFERENCIAS'!$L$5:$L$159,0),2))","v":""},null,null,null,null,null,{"$f":"IF(U95=\"\",\"\",VLOOKUP(U95,'OTRAS REFERENCIAS'!$A$7:$B$9,2,FALSE))","v":""},null,"",null,{"$f":"IF(Y95=\"\",\"\",INDEX(REFERENTES!J:K,MATCH(Y95,REFERENTES!K:K,0),1))","v":""},{"$f":"IF(Y95=\"\",\"\",INDEX(REFERENTES!$D:$L,MATCH(Y95,REFERENTES!$K:$K,0),9))","v":""},{"$f":"IF(Y95=\"\",\"\",INDEX(REFERENTES!$J:$P,MATCH(Y95,REFERENTES!$K:$K,0),7))","v":""},null,null,{"$f":"IF(AD95=\"\",\"\",INDEX(REFERENTES!$D:$E,MATCH(AD95,REFERENTES!$D:$D,0),2))","v":""},"","",91,{"$f":"IF(E95<>\"\",CONCATENATE($A$2,DIGITADOR!$B$2,DIGITADOR!$M$1,ROW()-3),\"\")","v":""}]
[null,null,1,{"$f":"IF(AI96=\"\",\"\",IF(COUNTIF($AI96:AI96, AI96)>1, \"\", AI96))","v":""},null,null,"","",{"$f":"IF(AI96=\"\",\"\",IF(COUNTIF($AI96:AI96, AI96)>1, \"\", AI96))","v":""},null,{"$f":"IF(J96=\"\",\"\",INDEX(REFERENTES!$Y:$Z,MATCH(J96,REFERENTES!$Z:$Z,0),1))","v":""},"",null,null,"",{"$f":"IF(O96=\"\",\"\",INDEX('OTRAS REFERENCIAS'!$L$5:$M$149,MATCH(O96,'OTRAS REFERENCIAS'!$L$5:$L$159,0),2))","v":""},null,null,null,null,null,{"$f":"IF(U96=\"\",\"\",VLOOKUP(U96,'OTRAS REFERENCIAS'!$A$7:$B$9,2,FALSE))","v":""},null,"",null,{"$f":"IF(Y96=\"\",\"\",INDEX(REFERENTES!J:K,MATCH(Y96,REFERENTES!K:K,0),1))","v":""},{"$f":"IF(Y96=\"\",\"\",INDEX(REFERENTES!$D:$L,MATCH(Y96,REFERENTES!$K:$K,0),9))","v":""},{"$f":"IF(Y96=\"\",\"\",INDEX(REFERENTES!$J:$P,MATCH(Y96,REFERENTES!$K:$K,0),7))","v":""},null,null,{"$f":"IF(AD96=\"\",\"\",INDEX(REFERENTES!$D:$E,MATCH(AD96,REFERENTES!$D:$D,0),2))","v":""},"","",92,{"$f":"IF(E96<>\"\",CONCATENATE($A$2,DIGITADOR!$B$2,DIGITADOR!$M$1,ROW()-3),\"\")","v":""}]
[null,null,1,{"$f":"IF(AI97=\"\",\"\",IF(COUNTIF($AI97:AI97, AI97)>1, \"\", AI97))","v":""},null,null,"","",{"$f":"IF(AI97=\"\",\"\",IF(COUNTIF($AI97:AI97, AI97)>1, \"\", AI97))","v":""},null,{"$f":"IF(J97=\"\",\"\",INDEX(REFERENTES!$Y:$Z,MATCH(J97,REFERENTES!$Z:$Z,0),1))","v":""},"",null,null,"",{"$f":"IF(O97=\"\",\"\",INDEX('OTRAS REFERENCIAS'!$L$5:$M$149,MATCH(O97,'OTRAS REFERENCIAS'!$L$5:$L$159,0),2))","v":""},null,null,null,null,null,{"$f":"IF(U97=\"\",\"\",VLOOKUP(U97,'OTRAS REFERENCIAS'!$A$7:$B$9,2,FALSE))","v":""},null,"",null,{"$f":"IF(Y97=\"\",\"\",INDEX(REFERENTES!J:K,MATCH(Y97,REFERENTES!K:K,0),1))","v":""},{"$f":"IF(Y97=\"\",\"\",INDEX(REFERENTES!$D:$L,MATCH(Y97,REFERENTES!$K:$K,0),9))","v":""},{"$f":"IF(Y97=\"\",\"\",INDEX(REFERENTES!$J:$P,MATCH(Y97,REFERENTES!$K:$K,0),7))","v":""},null,null,{"$f":"IF(AD97=\"\",\"\",INDEX(REFERENTES!$D:$E,MATCH(AD97,REFERENTES!$D:$D,0),2))","v":""},"","",93,{"$f":"IF(E97<>\"\",CONCATENATE($A$2,DIGITADOR!$B$2,DIGITADOR!$M$1,ROW()-3),\"\")","v":""}]
[null,null,1,{"$f":"IF(AI98=\"\",\"\",IF(COUNTIF($AI98:AI98, AI98)>1, \"\", AI98))","v":""},null,null,"","",{"$f":"IF(AI98=\"\",\"\",IF(COUNTIF($AI98:AI98, AI98)>1, \"\", AI98))","v":""},null,{"$f":"IF(J98=\"\",\"\",INDEX(REFERENTES!$Y:$Z,MATCH(J98,REFERENTES!$Z:$Z,0),1))","v":""},"",null,null,"",{"$f":"IF(O98=\"\",\"\",INDEX('OTRAS REFERENCIAS'!$L$5:$M$149,MATCH(O98,'OTRAS REFERENCIAS'!$L$5:$L$159,0),2))","v":""},null,null,null,null,null,{"$f":"IF(U98=\"\",\"\",VLOOKUP(U98,'OTRAS REFERENCIAS'!$A$7:$B$9,2,FALSE))","v":""},null,"",null,{"$f":"IF(Y98=\"\",\"\",INDEX(REFERENTES!J:K,MATCH(Y98,REFERENTES!K:K,0),1))","v":""},{"$f":"IF(Y98=\"\",\"\",INDEX(REFERENTES!$D:$L,MATCH(Y98,REFERENTES!$K:$K,0),9))","v":""},{"$f":"IF(Y98=\"\",\"\",INDEX(REFERENTES!$J:$P,MATCH(Y98,REFERENTES!$K:$K,0),7))","v":""},null,null,{"$f":"IF(AD98=\"\",\"\",INDEX(REFERENTES!$D:$E,MATCH(AD98,REFERENTES!$D:$D,0),2))","v":""},"","",94,{"$f":"IF(E98<>\"\",CONCATENATE($A$2,DIGITADOR!$B$2,DIGITADOR!$M$1,ROW()-3),\"\")","v":""}]
[null,null,1,{"$f":"IF(AI99=\"\",\"\",IF(COUNTIF($AI99:AI99, AI99)>1, \"\", AI99))","v":""},null,null,"","",{"$f":"IF(AI99=\"\",\"\",IF(COUNTIF($AI99:AI99, AI99)>1, \"\", AI99))","v":""},null,{"$f":"IF(J99=\"\",\"\",INDEX(REFERENTES!$Y:$Z,MATCH(J99,REFERENTES!$Z:$Z,0),1))","v":""},"",null,null,"",{"$f":"IF(O99=\"\",\"\",INDEX('OTRAS REFERENCIAS'!$L$5:$M$149,MATCH(O99,'OTRAS REFERENCIAS'!$L$5:$L$159,0),2))","v":""},null,null,null,null,null,{"$f":"IF(U99=\"\",\"\",VLOOKUP(U99,'OTRAS REFERENCIAS'!$A$7:$B$9,2,FALSE))","v":""},null,"",null,{"$f":"IF(Y99=\"\",\"\",INDEX(REFERENTES!J:K,MATCH(Y99,REFERENTES!K:K,0),1))","v":""},{"$f":"IF(Y99=\"\",\"\",INDEX(REFERENTES!$D:$L,MATCH(Y99,REFERENTES!$K:$K,0),9))","v":""},{"$f":"IF(Y99=\"\",\"\",INDEX(REFERENTES!$J:$P,MATCH(Y99,REFERENTES!$K:$K,0),7))","v":""},null,null,{"$f":"IF(AD99=\"\",\"\",INDEX(REFERENTES!$D:$E,MATCH(AD99,REFERENTES!$D:$D,0),2))","v":""},"","",95,{"$f":"IF(E99<>\"\",CONCATENATE($A$2,DIGITADOR!$B$2,DIGITADOR!$M$1,ROW()-3),\"\")","v":""}]
[null,null,1,{"$f":"IF(AI100=\"\",\"\",IF(COUNTIF($AI100:AI100, AI100)>1, \"\", AI100))","v":""},null,null,"","",{"$f":"IF(AI100=\"\",\"\",IF(COUNTIF($AI100:AI100, AI100)>1, \"\", AI100))","v":""},null,{"$f":"IF(J100=\"\",\"\",INDEX(REFERENTES!$Y:$Z,MATCH(J100,REFERENTES!$Z:$Z,0),1))","v":""},"",null,null,"",{"$f":"IF(O100=\"\",\"\",INDEX('OTRAS REFERENCIAS'!$L$5:$M$149,MATCH(O100,'OTRAS REFERENCIAS'!$L$5:$L$159,0),2))","v":""},null,null,null,null,null,{"$f":"IF(U100=\"\",\"\",VLOOKUP(U100,'OTRAS REFERENCIAS'!$A$7:$B$9,2,FALSE))","v":""},null,"",null,{"$f":"IF(Y100=\"\",\"\",INDEX(REFERENTES!J:K,MATCH(Y100,REFERENTES!K:K,0),1))","v":""},{"$f":"IF(Y100=\"\",\"\",INDEX(REFERENTES!$D:$L,MATCH(Y100,REFERENTES!$K:$K,0),9))","v":""},{"$f":"IF(Y100=\"\",\"\",INDEX(REFERENTES!$J:$P,MATCH(Y100,REFERENTES!$K:$K,0),7))","v":""},null,null,{"$f":"IF(AD100=\"\",\"\",INDEX(REFERENTES!$D:$E,MATCH(AD100,REFERENTES!$D:$D,0),2))","v":""},"","",96,{"$f":"IF(E100<>\"\",CONCATENATE($A$2,DIGITADOR!$B$2,DIGITADOR!$M$1,ROW()-3),\"\")","v":""}]
[null,null,1,{"$f":"IF(AI101=\"\",\"\",IF(COUNTIF($AI101:AI101, AI101)>1, \"\", AI101))","v":""},null,null,"","",{"$f":"IF(AI101=\"\",\"\",IF(COUNTIF($AI101:AI101, AI101)>1, \"\", AI101))","v":""},null,{"$f":"IF(J101=\"\",\"\",INDEX(REFERENTES!$Y:$Z,MATCH(J101,REFERENTES!$Z:$Z,0),1))","v":""},{"$f":"IF(G101=\"\",\"\",CONCATENATE(G101,P101,K101))","v":""},null,null,"",{"$f":"IF(O101=\"\",\"\",INDEX('OTRAS REFERENCIAS'!$L$5:$M$149,MATCH(O101,'OTRAS REFERENCIAS'!$L$5:$L$159,0),2))","v":""},null,null,null,null,null,{"$f":"IF(U101=\"\",\"\",VLOOKUP(U101,'OTRAS REFERENCIAS'!$A$7:$B$9,2,FALSE))","v":""},null,"",null,{"$f":"IF(Y101=\"\",\"\",INDEX(REFERENTES!J:K,MATCH(Y101,REFERENTES!K:K,0),1))","v":""},{"$f":"IF(Y101=\"\",\"\",INDEX(REFERENTES!$D:$L,MATCH(Y101,REFERENTES!$K:$K,0),9))","v":""},{"$f":"IF(Y101=\"\",\"\",INDEX(REFERENTES!$J:$P,MATCH(Y101,REFERENTES!$K:$K,0),7))","v":""},null,null,{"$f":"IF(AD101=\"\",\"\",INDEX(REFERENTES!$D:$E,MATCH(AD101,REFERENTES!$D:$D,0),2))","v":""},"","",97,{"$f":"IF(E101<>\"\",CONCATENATE($A$2,DIGITADOR!$B$2,DIGITADOR!$M$1,ROW()-3),\"\")","v":""}]
[null,null,1,{"$f":"IF(AI102=\"\",\"\",IF(COUNTIF($AI102:AI102, AI102)>1, \"\", AI102))","v":""},null,null,"","",{"$f":"IF(AI102=\"\",\"\",IF(COUNTIF($AI102:AI102, AI102)>1, \"\", AI102))","v":""},null,{"$f":"IF(J102=\"\",\"\",INDEX(REFERENTES!$Y:$Z,MATCH(J102,REFERENTES!$Z:$Z,0),1))","v":""},"",null,null,"",{"$f":"IF(O102=\"\",\"\",INDEX('OTRAS REFERENCIAS'!$L$5:$M$149,MATCH(O102,'OTRAS REFERENCIAS'!$L$5:$L$159,0),2))","v":""},null,null,null,null,null,{"$f":"IF(U102=\"\",\"\",VLOOKUP(U102,'OTRAS REFERENCIAS'!$A$7:$B$9,2,FALSE))","v":""},null,"",null,{"$f":"IF(Y102=\"\",\"\",INDEX(REFERENTES!J:K,MATCH(Y102,REFERENTES!K:K,0),1))","v":""},{"$f":"IF(Y102=\"\",\"\",INDEX(REFERENTES!$D:$L,MATCH(Y102,REFERENTES!$K:$K,0),9))","v":""},{"$f":"IF(Y102=\"\",\"\",INDEX(REFERENTES!$J:$P,MATCH(Y102,REFERENTES!$K:$K,0),7))","v":""},null,null,{"$f":"IF(AD102=\"\",\"\",INDEX(REFERENTES!$D:$E,MATCH(AD102,REFERENTES!$D:$D,0),2))","v":""},"","",98,{"$f":"IF(E102<>\"\",CONCATENATE($A$2,DIGITADOR!$B$2,DIGITADOR!$M$1,ROW()-3),\"\")","v":""}]
[null,null,1,{"$f":"IF(AI103=\"\",\"\",IF(COUNTIF($AI103:AI103, AI103)>1, \"\", AI103))","v":""},null,null,"","",{"$f":"IF(AI103=\"\",\"\",IF(COUNTIF($AI103:AI103, AI103)>1, \"\", AI103))","v":""},null,{"$f":"IF(J103=\"\",\"\",INDEX(REFERENTES!$Y:$Z,MATCH(J103,REFERENTES!$Z:$Z,0),1))","v":""},"",null,null,"",{"$f":"IF(O103=\"\",\"\",INDEX('OTRAS REFERENCIAS'!$L$5:$M$149,MATCH(O103,'OTRAS REFERENCIAS'!$L$5:$L$159,0),2))","v":""},null,null,null,null,null,{"$f":"IF(U103=\"\",\"\",VLOOKUP(U103,'OTRAS REFERENCIAS'!$A$7:$B$9,2,FALSE))","v":""},null,"",null,{"$f":"IF(Y103=\"\",\"\",INDEX(REFERENTES!J:K,MATCH(Y103,REFERENTES!K:K,0),1))","v":""},{"$f":"IF(Y103=\"\",\"\",INDEX(REFERENTES!$D:$L,MATCH(Y103,REFERENTES!$K:$K,0),9))","v":""},{"$f":"IF(Y103=\"\",\"\",INDEX(REFERENTES!$J:$P,MATCH(Y103,REFERENTES!$K:$K,0),7))","v":""},null,null,{"$f":"IF(AD103=\"\",\"\",INDEX(REFERENTES!$D:$E,MATCH(AD103,REFERENTES!$D:$D,0),2))","v":""},"","",99,{"$f":"IF(E103<>\"\",CONCATENATE($A$2,DIGITADOR!$B$2,DIGITADOR!$M$1,ROW()-3),\"\")","v":""}]
[null,null,1,{"$f":"IF(AI104=\"\",\"\",IF(COUNTIF($AI104:AI104, AI104)>1, \"\", AI104))","v":""},null,null,"","",{"$f":"IF(AI104=\"\",\"\",IF(COUNTIF($AI104:AI104, AI104)>1, \"\", AI104))","v":""},null,{"$f":"IF(J104=\"\",\"\",INDEX(REFERENTES!$Y:$Z,MATCH(J104,REFERENTES!$Z:$Z,0),1))","v":""},"",null,null,"",{"$f":"IF(O104=\"\",\"\",INDEX('OTRAS REFERENCIAS'!$L$5:$M$149,MATCH(O104,'OTRAS REFERENCIAS'!$L$5:$L$159,0),2))","v":""},null,null,null,null,null,{"$f":"IF(U104=\"\",\"\",VLOOKUP(U104,'OTRAS REFERENCIAS'!$A$7:$B$9,2,FALSE))","v":""},null,"",null,{"$f":"IF(Y104=\"\",\"\",INDEX(REFERENTES!J:K,MATCH(Y104,REFERENTES!K:K,0),1))","v":""},{"$f":"IF(Y104=\"\",\"\",INDEX(REFERENTES!$D:$L,MATCH(Y104,REFERENTES!$K:$K,0),9))","v":""},{"$f":"IF(Y104=\"\",\"\",INDEX(REFERENTES!$J:$P,MATCH(Y104,REFERENTES!$K:$K,0),7))","v":""},null,null,{"$f":"IF(AD104=\"\",\"\",INDEX(REFERENTES!$D:$E,MATCH(AD104,REFERENTES!$D:$D,0),2))","v":""},"","",100,{"$f":"IF(E104<>\"\",CONCATENATE($A$2,DIGITADOR!$B$2,DIGITADOR!$M$1,ROW()-3),\"\")","v":""}]

{"sheet":"REFERENTES","index":4,"n_rows":437,"n_cols":53,"rows_kept":437,"cut":false,"hidden":false,"merged":[]}
["AG_ESPECIES",148022,null,"AG_LOV",1027,null,"AG_LOV",1030,null,"descripcion","cod_letras","clave_sibm","phylum","clase","orden","familia","genero"]
["Exan","Elacatinus xanthiprora",null,"A",1,null,"CORALINA","CORALINA",null,"Apogon affinis","Aaff","70.55.346",null,null,null,"APOGONIDAE",null,null,14311,"ACU",1,null,"Acuario 1",null,3907,"Ameth  Vargas Campo",null,null,null,null,null,null,null,null,null,null,null,null,null,null,null,null,null,null,null,null,null,null,null,null,null,3907,"Ameth  Vargas Campo"]
["Ftab","Fistularia tabacaria",null,"B","2 a 10",null,"F. Malpelo","Fundacion Malpelo",null,"Acanthemblemaria aspera","Aasp","70.55.577",null,null,null,"CHAENOPSIDAE",null,null,14312,"ACU",2,null,"Acuario 2",null,593,"Andrea Polanco",null,null,null,null,null,null,null,null,null,null,null,null,null,null,null,null,null,null,null,null,null,null,null,null,null,593,"Andrea Polanco"]
["Gcin","Gerres cinereus",null,"C","11 a 100",null,"INVEMAR","Instituto de Investigaciones Marinas y Costeras",null,"Apogon atradorsatus","Aatr","70.55.3219",null,null,null,"APOGONIDAE",null,null,14338,"AGU",1,"se encuentra localizada bien al fondo de la ensenada","Aguacate S",null,4408,"Andres Felipe Acosta Chaparro",null,null,null,null,null,null,null,null,null,null,null,null,null,null,null,null,null,null,null,null,null,null,null,null,null,4408,"Andres Felipe Acosta Chaparro"]
["Gerr","Gerres sp.",null,"D",">100",null,"ParquesNacionales","Parques Nacionales",null,"Acanthurus bahianus","Abah","70.55.666",null,null,null,"ACANTHURIDAE",null,null,14341,"AZU",1,"A unos 60 metros de la costa en marea baja. localizada a 2º 57' 30.6\" N - 78º 10' 41.0\" O","Azufrada 1",null,3956,"Carlos Aponte",null,null,null,null,null,null,null,null,null,null,null,null,null,null,null,null,null,null,null,null,null,null,null,null,null,3956,"Carlos Aponte"]
["Gfun","Gymnothorax funebris",null,null,null,null,"PNN_GORGONA","PNN_GORGONA",null,"Abudefduf concolor","Abco","70.55.2706",null,null,null,"POMACENTRIDAE",null,null,14342,"AZU",2,"A unos 70m de la costa en marea baja","Azufrada 2",null,1834,"Diana Isabel Gómez López",null,null,null,null,null,null,null,null,null,null,null,null,null,null,null,null,null,null,null,null,null,null,null,null,null,1834,"Diana Isabel Gómez López"]
["Glor","Gramma loreto",null,null,null,null,"UJTL","UJTL",null,"Acanthemblemaria betinensis","Abet","70.55.578",null,null,null,"CHAENOPSIDAE",null,null,43726,"POR",1,"Bahía Portete","Bahía Portete",null,1775,"Diego Duque",null,null,null,null,null,null,null,null,null,null,null,null,null,null,null,null,null,null,null,null,null,null,null,null,null,1775,"Diego Duque"]
["Gmel","Gramma melacara",null,null,null,null,"UNal","Universidad Nacional",null,"Apogon binotatus","Abin","70.55.348",null,null,null,"APOGONIDAE",null,null,55425,"BGOR",1,null,"Bonito Gordo (PNN Tayrona)",null,1784,"Johanna Carolina Vega Sequeda",null,null,null,null,null,null,null,null,null,null,null,null,null,null,null,null,null,null,null,null,null,null,null,null,null,3646,"Elizabeth Galeano Galeano"]
["Gmil","Gymnothorax miliaris",null,null,null,null,"UNIVALLE","Universidad del Valle",null,"Anisotremus caesius","Acae","70.55.3217",null,null,null,"HAEMULIDAE",null,null,14333,"CTI",2,"incluye una parcela en el nivel medio de prof","Cabo Tiburón M",null,6356,"Jose Francisco Campo Campo",null,null,null,null,null,null,null,null,null,null,null,null,null,null,null,null,null,null,null,null,null,null,null,null,null,1784,"Johanna Carolina Vega Sequeda"]
["Gmor","Gymnothorax moringa",null,null,null,null,null,null,null,"Acanthurus sp.","Acan","70.46.339",null,null,null,"ACANTHURIDAE",null,null,14334,"CTI",1,"la estación es una parcela somera (3 m) forma","Cabo Tiburón S",null,3905,"Juan David González Corredor",null,null,null,null,null,null,null,null,null,null,null,null,null,null,null,null,null,null,null,null,null,null,null,null,null,6356,"Jose Francisco Campo Campo"]
["Gsae","Gobionellus saepapallens",null,null,null,null,null,null,null,"Acanthemblemaria sp.","Acat","70.46.288",null,null,null,"CHAENOPSIDAE",null,null,14336,"CAP",1,null,"Capurganá 1",null,5705,"Katherine Johanna Mejía Quintero",null,null,null,null,null,null,null,null,null,null,null,null,null,null,null,null,null,null,null,null,null,null,null,null,null,3905,"Juan David González Corredor"]
["Gtho","Gnatholepis thompsoni",null,null,null,null,null,null,null,"Acanthurus chirurgus","Achi","70.55.667",null,null,null,"ACANTHURIDAE",null,null,14337,"CAP",2,null,"Capurganá 2",null,4227,"Laura Sanchez Valencia",null,null,null,null,null,null,null,null,null,null,null,null,null,null,null,null,null,null,null,null,null,null,null,null,null,5705,"Katherine Johanna Mejía Quintero"]
["Gvic","Gymnothorax vicinus",null,null,null,null,null,null,null,"Acanthurus nigricans","Acni","70.55.3214",null,null,null,"ACANTHURIDAE",null,null,14331,"CEY",1,"Estación está conformada por  una parcela","Ceycen 1",null,287,"Marcela Cano Correa",null,null,null,null,null,null,null,null,null,null,null,null,null,null,null,null,null,null,null,null,null,null,null,null,null,8265,"Kevin Samuel Moreno"]
["Habe","Hypoplectrus aberrans",null,null,null,null,null,null,null,"Acanthurus coeruleus","Acoe","70.55.668",null,null,null,"ACANTHURIDAE",null,null,14308,"CEY",2,null,"Ceycen 2",null,5021,"Maria Juliana Vanegas Gonzalez",null,null,null,null,null,null,null,null,null,null,null,null,null,null,null,null,null,null,null,null,null,null,null,null,null,4227,"Laura Sanchez Valencia"]
["Hads","Holocentrus adscensionis",null,null,null,null,null,null,null,"Acanthemblemaria spinosa","Acsp","70.55.3213",null,null,null,"CHAENOPSIDAE",null,null,41651,"CEY",3,null,"Ceycen 3",null,1809,"Raul Navas Camacho",null,null,null,null,null,null,null,null,null,null,null,null,null,null,null,null,null,null,null,null,null,null,null,null,null,3281,"Leonardo José Arias Alemán (2022)"]
["Halb","Haemulon album",null,null,null,null,null,null,null,"Acanthurus triostegus","Actr","70.55.3215",null,null,null,"ACANTHURIDAE",null,null,41705,"CHE",4,null,"Chengue Acropora",null,null,null,null,null,null,null,null,null,null,null,null,null,null,null,null,null,null,null,null,null,null,null,null,null,null,null,null,287,"Marcela Cano Correa"]
["Halc","Halichoeres sp.",null,null,null,null,null,null,null,"Apogon dovii","Adov","70.55.2665",null,null,null,"APOGONIDAE",null,null,15508,"CHE",3,null,"Chengue Pastos",null,null,null,null,null,null,null,null,null,null,null,null,null,null,null,null,null,null,null,null,null,null,null,null,null,null,null,null,5021,"Maria Juliana Vanegas Gonzalez"]
["Hama","Halichoeres maculipinna (Müller & Troschel, 1848)",null,null,null,null,null,null,null,"Aphareus furca","Afur","70.40.2230",null,null,null,"LUTJANIDAE",null,null,14297,"CHE",1,"Compartida con CARICOMP.La parcela del nivel somero (3-5 m) presenta una cobertura coralina _x000D_\r\r\naproximada del 29% dada principalmente por Montastraea faveolata y esqueletos de _x000D_\r\r\nAcropora palmata (algunas colonias vivas). _x000D_\r\r\nLas parcelas media (9-10 m) y profunda (15-16) tienen coberturas de 22% y 21%_x000D_\r\r\n respectivamente y están dominadas por una franja amplia de pendiente suave conformada por _x000D_\r\r\n corales masivos e incrustantes de Diploria spp, Montastraea faveolata y M. cavernosa principalmente._x000D_\r\r\n  El relieve de éstas dos últimas parcelas no es fuerte ya que no hay tamaños de colonias considerables, _x000D_\r\r\n  pero si hay una zona de relieve complejo muy cerca de los transectos la cual es dominada por colonias _x000D_\r\r\n  muy grandes de crecimiento montañoso de M. faveolata. En la parcela media se pueden observar además _x000D_\r\r\n  abundantes colonias medianas de gorgonáceos de la especie Eunicea fusca","Chengue..C1",null,null,null,null,null,null,null,null,null,null,null,null,null,null,null,null,null,null,null,null,null,null,null,null,null,null,null,null,1809,"Raul Navas Camacho"]
["Haur","Haemulon aurolineatum",null,null,null,null,null,null,null,"Arothron hispidus","Ahis","70.55.2784",null,null,null,"TETRAODONTIDAE",null,null,14298,"CHE",2,"Las formaciones coralinas y el tipo de relieve son similares a los de C1 exceptuando _x000D_\r\r\nque en el nivel somero (3-6 m) de C2 hay mayor cobertura coralina (38%), _x000D_\r\r\nse pueden observar además cabezas grandes de Siderastrea siderea y _x000D_\r\r\nlos arrecifes de las parcelas media (9-11 m) y profunda (15-17 m), _x000D_\r\r\ndescienden como un talud de pendiente más fuerte. _x000D_\r\r\nLa cobertura de las parcelas media y profunda es de 40% y 31% _x000D_\r\r\nrespectivamente y dichos niveles presentan abundantes cabezas de Montastraea cavernosa_x000D_\r\r\ny Diploria strigosa, así como algunas colonias de gorgonáceos de tamaño considerable principalmente _x000D_\r\r\ndel género Plexaura sp. Debido a que las parcelas media y profunda están ubicados más hacia afuera _x000D_\r\r\nde la bahía, presentan un poco de oleaje de diciembre a abril por la fuerte acción de los _x000D_\r\r\nvientos alisios, lo cual dificulta el muestreo de los transectos de cadena durante esa _x000D_\r\r\népoca","Chengue..C2",null,null,null,null,null,null,null,null,null,null,null,null,null,null,null,null,null,null,null,null,null,null,null,null,null,null,null,null,5749,"Shanly Carolina Coneo Gómez"]
["Hbiv","Halichoeres bivittatus",null,null,null,null,null,null,null,"Aulostomus maculatus","Amac","70.55.247",null,null,null,"AULOSTOMIDAE",null,null,41704,"CIN",2,"Cinto expuesto  Occidente","Cinto expuesto",null,null,null,null,null,null,null,null,null,null,null,null,null,null,null,null,null,null,null,null,null,null,null,null,null,null,null,null,8266,"Zulay Saudith González Herrera"]
["Hbon","Haemulon bonariense",null,null,null,null,null,null,null,"Acanthemblemaria maria","Amar","70.55.2054",null,null,null,"CHAENOPSIDAE",null,null,41703,"CIN",1,"Cinto protegido Oriente","Cinto protegido"]
["Hcar","Haemulon carbonarium",null,null,null,null,null,null,null,"Arothron meleagris","Amel","70.55.2774",null,null,null,"TETRAODONTIDAE",null,null,14325,"MAL",1,null,"El Arrecife"]
["Hchr","Haemulon chrysargyreum",null,null,null,null,null,null,null,"Aetobatus narinari","Anar","70.55.40",null,null,null,"MYLIOBATIDAE",null,null,14315,"CAN",1,null,"El Canal 1"]
["Hcil","Holacanthus ciliaris",null,null,null,null,null,null,null,"Anisotremus sp.","Anis","70.46.219",null,null,null,"HAEMULIDAE",null,null,14316,"CAN",2,null,"El Canal 2"]
["Hcor","Holocentrus coruscum",null,null,null,null,null,null,null,"Apogon pacifici","Apac","70.55.2363",null,null,null,"APOGONIDAE",null,null,14303,"MRO",1,null,"El Morro"]
["Hcya","Halichoeres cyanocephalus",null,null,null,null,null,null,null,"Amblycirrhitus pinos","Apin","70.55.512",null,null,null,"CIRRHITIDAE",null,null,14309,"EMI",1,null,"Emisario 1"]
["Hete","Heteroconger sp.",null,null,null,null,null,null,null,"Apogon lachneri","Apla","70.55.349",null,null,null,"APOGONIDAE",null,null,14310,"EMI",2,null,"Emisario 2"]
["Hflo","Haemulon flavolineatum",null,null,null,null,null,null,null,"Apogon maculatus","Apma","70.55.351",null,null,null,"APOGONIDAE",null,null,37118,"IFU",1,null,"Fondo Loco"]
["Hgar","Halichoeres garnoti",null,null,null,null,null,null,null,"Apogon sp.","Apog","70.46.183",null,null,null,"APOGONIDAE",null,null,14302,"GAY",1,null,"Gayraca 1"]
["Hgum","Hypoplectrus gummigutta",null,null,null,null,null,null,null,"Acanthostracion polygonius","Apol","70.55.750",null,null,null,"OSTRACIIDAE",null,null,14323,"GAY",2,null,"Gayraca 2"]
["Hgut","Hypoplectrus guttavarius",null,null,null,null,null,null,null,"Apogon pseudomaculatus","Apse","70.55.355",null,null,null,"APOGONIDAE",null,null,40219,"GAY",3,"Gayraca Hobos","Gayraca 3"]
["Hhum","Harengula humeralis",null,null,null,null,null,null,null,"Acanthostracion quadricornis","Aqua","70.55.751",null,null,null,"OSTRACIIDAE",null,null,14324,"GRA",1,null,"Granate 1"]
["Hind","Hypoplectrus indigo",null,null,null,null,null,null,null,"Acanthemblemaria rivasi","Ariv","70.55.579",null,null,null,"CHAENOPSIDAE",null,null,14339,"IGU",1,null,"Iguana"]
["Hlon","Heteroconger longissimus",null,null,null,null,null,null,null,"Axoclinus rubinoffi","Arub","70.55.3267",null,null,null,"TRIPTERYGIIDAE",null,null,41546,"ARE",1,null,"Isla Arena"]
["Hmar","Haemulon macrostomum",null,null,null,null,null,null,null,"Abudefduf saxatilis","Asax","70.55.513",null,null,null,"POMACENTRIDAE",null,null,41545,"IGR",1,null,"Isla Grande"]
["Hmel","Haemulon melanurum",null,null,null,null,null,null,null,"Aluterus scriptus","Ascr","70.55.743",null,null,null,"MONACANTHIDAE",null,null,48967,"JCA",1,"Johnny Cay","Johnny Cay"]
["Hnig","Hypoplectrus nigricans",null,null,null,null,null,null,null,"Acanthemblemaria stephensi","Aste","70.46.288",null,null,null,"CHAENOPSIDAE",null,null,14296,"CHO",1,"ubicada a 6º","La Chola 1"]
["Hpar","Haemulon parra",null,null,null,null,null,null,null,"Anisotremus surinamensis","Asur","70.55.431",null,null,null,"HAEMULIDAE",null,null,14326,"CHO",2,"Parcela media localizada a 6º 0' 47.04","La Chola 2"]
["Hpic","Halichoeres pictus",null,null,null,null,null,null,null,"Anisotremus taeniatus","Atae","70.55.3218",null,null,null,"HAEMULIDAE",null,null,14304,"CHO",3,"es una parcela somera localizada a 6º 0' 40.9","La Chola 3"]
["hpla","Hypoplectrus planifrons",null,null,null,null,null,null,null,"Abudefduf taurus","Atar","70.55.514",null,null,null,"POMACENTRIDAE",null,null,14327,"CHO",4,"Cobertura del 33%","La Chola 4"]
["Hplu","Haemulon plumieri",null,null,null,null,null,null,null,"Apogon townsendi","Atow","70.55.357",null,null,null,"APOGONIDAE",null,null,14328,"CHO",5,null,"La Chola 5"]
["Hpoe","Halichoeres poeyi",null,null,null,null,null,null,null,"Abudefduf troschelii","Atro","70.55.2664",null,null,null,"POMACENTRIDAE",null,null,14329,"CHO",6,null,"La Chola 6"]
["Hpro","Hypoplectrus providencianus",null,null,null,null,null,null,null,"Aulostomus chinensis","Auch","70.55.3220",null,null,null,"AULOSTOMIDAE",null,null,37122,"COC",1,null,"La Coca"]
["Hpue","Hypoplectrus puella",null,null,null,null,null,null,null,"Anisotremus virginicus","Avir","70.55.432",null,null,null,"HAEMULIDAE",null,null,43098,"MAL",2,null,"La Nevera"]
["Hrad","Halichoeres radiatus",null,null,null,null,null,null,null,"Acanthurus xanthopterus","Axan","70.55.3216",null,null,null,"ACANTHURIDAE",null,null,41695,"VEN",4,null,"La Ventana Norte Externa -VEN 4"]
["Hruf","Holocentrus rufus",null,null,null,null,null,null,null,"Bodianus diplotaenia","Bdip","70.55.3221",null,null,null,"LABRIDAE",null,null,41694,"VEN",3,null,"La Ventana Norte Interna -VEN 3"]
["Hsci","Haemulon sciurus",null,null,null,null,null,null,null,"Bothus lunatus","Blun","70.55.699",null,null,null,"BOTHIDAE",null,null,41692,"VEN",1,null,"La Ventana Sur Externa -VEN 1"]
["Hsp1","Hypoplectrus n. sp. 1 (tan hamlet)",null,null,null,null,null,null,null,"Bothus sp.","Both","70.46.360",null,null,null,"BOTHIDAE",null,null,41693,"VEN",2,null,"La Ventana Sur Interna -VEN 2"]
["Hsp2","Hypoplectrus n. sp. 2 (lagrima)",null,null,null,null,null,null,null,"Balistes polylepis","Bpol","70.55.2708",null,null,null,"BALISTIDAE",null,null,41547,"PAL",1,null,"Las Palmas"]
["Hstr","Haemulon striatum",null,null,null,null,null,null,null,"Bodianus pulchellus","Bpul","70.55.526",null,null,null,"LABRIDAE",null,null,14313,"LIT",1,null,"Little Reef 1"]
["Htri","Holacanthus tricolor",null,null,null,null,null,null,null,"Bodianus rufus","Bruf","70.55.527",null,null,null,"LABRIDAE",null,null,14314,"LIT",2,null,"Little Reef 2"]
["Huni","Hypoplectrus unicolor",null,null,null,null,null,null,null,"Balistes vetula","Bvet","70.55.735",null,null,null,"BALISTIDAE",null,null,37119,"IFU",2,null,"Los Boyones"]
["Hvex","Holocentrus vexillarius",null,null,null,null,null,null,null,"Caranx bartholomaei","Caba","70.55.375",null,null,null,"CARANGIDAE",null,null,41699,"MAR",1,null,"MARACAIBO"]
["Hypo","Hypoplectrus sp.",null,null,null,null,null,null,null,"Caranx caninus","Caca","70.55.2636",null,null,null,"CARANGIDAE",null,null,14305,"MAN",1,"ubicada frente a Isla Mangle en dirección N. Parcela en el nivel somero (4.5-6 m) que presenta una cobertura del 48%. _x000D_\r\r\nSe caracteriza porque la pendiente del fondo es imperceptible y porque presenta un relieve arrecifal _x000D_\r\r\ncomplejo compuesto por colonias muy grandes de Montastraea annularis y M. faveolata principalmente;_x000D_\r\r\n también es posible observar comúnmente Porites astreoides, P. porites y Millepora alcicornis. _x000D_\r\r\n El arrecife no es compacto y por lo tanto pueden observarse frecuentemente considerables parches _x000D_\r\r\n de sedimentos gruesos.","Mangle 1"]
["Ivit","Inermia vittata",null,null,null,null,null,null,null,"Chaetodon aculeatus","Cacu","70.55.3223",null,null,null,"CHAETODONTIDAE",null,null,14307,"MAN",2,"La estación Mangle 2. Parcela en el nivel medio (9-11.5 m), _x000D_\r\r\nubicada sobre un arrecife muy compacto de relieve complejo, la pendiente del fondo es_x000D_\r\r\n suave y tiene una cobertura coralina del 31% aproximadamente. Se pueden observar corales de _x000D_\r\r\n 19 especies pero los más abundantes son M. franksi, P. astreoides y Agaricia tenuifolia y _x000D_\r\r\n también hay otras importantes como M. annularis, M. faveolata y P. porites entre otros. Después_x000D_\r\r\n de este arrecife, el fondo se precipita en un talud mayor que termina en amplios canales de arena _x000D_\r\r\n a los 15-18 m","Mangle 2"]
["Jenk","Jenkinsia sp.",null,null,null,null,null,null,null,"Caulolatinus affinis","Cafi","70.55.2635",null,null,null,"MELACANTHIDAE",null,null,14317,"MAZ",1,null,"Manzanillo 1"]
["Ksec","Kyphosus sectatrix",null,null,null,null,null,null,null,"Calamus sp.","Cala","70.46.227",null,null,null,"SPARIDAE",null,null,14318,"MAZ",2,null,"Manzanillo 2"]
["Labr","Labrisomus sp.",null,null,null,null,null,null,null,"Calamus penna","Cana","70.55.455",null,null,null,"SPARIDAE",null,null,41698,"MRC",1,"Marcelas place","Marcela's place"]
["Lana","Lutjanus analis",null,null,null,null,null,null,null,"Chilomycterus antennatus","Cant","70.55.765",null,null,null,"DIODONTIDAE",null,null,14306,"MIN",1,"Ubicada hacia el noroeste de Isla Mucura._x000D_\r\r\nEsta estación es una parcela somera (6-7 m)_x000D_\r\r\n con una cobertura coralina del 33% cuyo fondo tiene una pendiente imperceptible y forma _x000D_\r\r\n parte de una terraza muy extensa. Sus arrecifes forman parches alargados que algunas veces _x000D_\r\r\n se conectan entre sí o están separados por áreas de sedimento de origen calcáreo y aparentemente _x000D_\r\r\n son arenas gruesas. Los corales pueden ser cabezas de variados tamaños de Montastraea spp, _x000D_\r\r\n Siderastrea siderea, Colpophyllia natans, Diploria spp. y Porites porites. Las algas y los_x000D_\r\r\n  octocorales son muy abundantes y estos últimos alcanzan tamaños considerables","Minalta"]
["Lapo","Lutjanus apodus",null,null,null,null,null,null,null,"Calamus pennatula","Cape","70.55.456",null,null,null,"SPARIDAE",null,null,42263,"NCH",1,"Narrow Channel","Narrow Channel"]
["Lbuc","Lutjanus buccanella",null,null,null,null,null,null,null,"Centropyge argi","Carg","70.55.505",null,null,null,"POMACANTHIDAE",null,null,41702,"NEG",2,null,"Neguanje expuesto"]
["Lcya","Lutjanus cyanopterus",null,null,null,null,null,null,null,"Chromis atrilobata","Catr","70.55.2655",null,null,null,"POMACENTRIDAE",null,null,41701,"NEG",1,null,"Neguanje protegido"]
["Lgri","Lutjanus griseus",null,null,null,null,null,null,null,"Caranx latus","Caus","70.55.378",null,null,null,"CARANGIDAE",null,null,37120,"NET",1,"Bajo coralino en la barrera de providencia, alejado varios km al noroeste de la isla","No Entry"]
["Ljoc","Lutjanus jocu",null,null,null,null,null,null,null,"Coralliozetus bahamensis","Cbah","70.55.2548",null,null,null,"CHAENOPSIDAE",null,null,52325,"NET",2,"Bajo coralino en la barrera de providencia, alejado varios km al noroeste de la isla","No Entry 2"]
["Lmah","Lutjanus mahogoni",null,null,null,null,null,null,null,"Calamus bajonado","Cbaj","70.55.453",null,null,null,"SPARIDAE",null,null,37121,"OCE",1,null,"Oceanario"]
["Lmax","Lachnolaimus maximus",null,null,null,null,null,null,null,"Caranx caballus","Ccab","70.55.2637",null,null,null,"CARANGIDAE",null,null,14300,"PAV",1,"Isla Rosario, Pavitos. El ambiente de esta estación en los tres niveles de profundidad difiere considerablemente al de tesoro _x000D_\r\r\npues pavitos está dominado por corales de crecimiento foliáceo del tipo Agaricia sp,_x000D_\r\r\n los gorgonáceos están prácticamente ausentes y se presentan gran cantidad de esponjas de variados _x000D_\r\r\n tamaños, formas de crecimiento y colores. La parcela somera de monitoreo está ubicada_x000D_\r\r\n  sobre la plataforma o terraza que rodea la Isla Pavitos y presenta una cobertura coralina _x000D_\r\r\n  del 31% y cerca se observa un talud de pendiente fuerte y de sustrato frágil donde _x000D_\r\r\n  se localizan las parcelas de los niveles medio (9-12 m) y profundo (16-18 m)._x000D_\r\r\n  En el nivel somero también pueden observarse comúnmente algunas cabezas medianas de _x000D_\r\r\n  Montastraea annularis y M. faveolata mientras en el profundo hay abundantes colonias _x000D_\r\r\n  de M. franksi. Los niveles medio y profundo presenta una cobertura coralina del 40% y 30%_x000D_\r\r\n   respectivamente_x000D_","Pavitos"]
["Lrub","Liopropoma rubre",null,null,null,null,null,null,null,"Calamus calamus","Ccal","70.55.454",null,null,null,"SPARIDAE",null,null,14295,"PLA",2,"A unos 150m de la costa en marea baja","Playa Blanca norte medio 2"]
["Ltri","Lactophrys trigonus",null,null,null,null,null,null,null,"Chaetodon capistratus","Ccap","70.55.500",null,null,null,"CHAETODONTIDAE",null,null,41690,"PLA",3,"Ubicada al norte de la formación coralina","Playa Blanca norte somero 3"]
["Aatr","Apogon atradorsatus",null,null,null,null,null,null,null,"Chanos chanos","Ccha","70.55.3268",null,null,null,"CHANIDAE",null,null,41691,"PLA",4,"Ubicada al norte de la formación coralina","Playa Blanca sur medio 4"]
["Abco","Abudefduf concolor",null,null,null,null,null,null,null,"Cephalopholis cruentata (Lacepède, 1802)","Ccru","70.55.283","CHORDATA",null,null,"SERRANIDAE",null,null,14343,"PLA",1,"Ubicada al sur de la formación coralina","Playa Blanca sur somero 1"]
["Acae","Anisotremus caesius",null,null,null,null,null,null,null,"Caranx crysos","Ccry","70.55.376",null,null,null,"CARANGIDAE",null,null,52865,"PBLA",1,null,"Playa Blanca-Barú (PNN Corales del Rosario y San Bernardo)"]
["Acat","Acanthemblemaria sp.",null,null,null,null,null,null,null,"Chromis cyanea","Ccya","70.55.515",null,null,null,"POMACENTRIDAE",null,null,38924,"PBA",2,"Punta Betín Información meteorologica","Punta Betín, antigua sede INVEMAR Santa Marta"]
["Acni","Acanthurus nigricans",null,null,null,null,null,null,null,"Coryphopterus dicrus","Cdic","70.55.618",null,null,null,"GOBIIDAE",null,null,41548,"PBR",1,null,"Punta Brava"]
["Actr","Acanthurus triostegus",null,null,null,null,null,null,null,"Cantherines dumerilii","Cdum","70.55.3222",null,null,null,"MONACANTHIDAE",null,null,14301,"PBT",1,"Area coralina Punta Betín, Santa Marta","Punta de Betin"]
["Adov","Apogon dovii",null,null,null,null,null,null,null,"Coryphopterus eidolon","Ceid","70.55.619",null,null,null,"GOBIIDAE",null,null,14321,"SFE",1,null,"San Felipe 1"]
["Afur","Aphareus furca",null,null,null,null,null,null,null,"Cephalopholis sp.","Ceph","70.46.162",null,null,null,"SERRANIDAE",null,null,14322,"SFE",2,null,"San Felipe 2"]
["ahia","Ablennes hians",null,null,null,null,null,null,null,"Chaetodipterus faber","Cfab","70.55.665",null,null,null,"EPHIPPIDAE",null,null,14299,"TES",1,"Isla Rosario, el Tesoro. está ubicada en una cuenca lagunar de poca pendiente y relieve complejo, _x000D_\r\r\npresenta una cobertura aproximada del 45% y se observan cabezas coralinas _x000D_\r\r\ngrandes dominadas por Montastraea annularis. Es posible observar también _x000D_\r\r\notros corales de crecimiento masivo y cobertura importante como M. faveolata, _x000D_\r\r\nDiploria labyrinthiformis y Colpophyllia natans mezclados con parches amplios de arena._x000D_\r\r\n También se presentan abundantes gorgonáceos de los géneros Briareum sp. y Pseudoplexaura sp. _x000D_\r\r\n Después del plano se presenta hacia afuera un talud de pendiente media y relieve complejo donde _x000D_\r\r\n están ubicados las parcelas de los niveles medio (9-12 m) y profundo (16-19 m). El nivel medio _x000D_\r\r\n tiene una cobertura coralina del 24% y es un ambiente de corales masivos mixtos como M. annularis, _x000D_\r\r\n M franksi y C. natans, mientras el profundo presenta una cobertura mayor (35%) y está dominado por M. _x000D_\r\r\n franksi que forma colonias grandes con bordes tipo terraza. En la parcela profunda se presentan colonias _x000D_\r\r\n aisladas de látigos del género Ellisella sp","Tesoro 1"]
["Ahis","Arothron hispidus",null,null,null,null,null,null,null,"Cephalopolis fulva","Cful","70.55.284",null,null,null,"SERRANIDAE",null,null,41549,"TES",2,null,"Tesoro Oriental"]
["Amel","Arothron meleagris",null,null,null,null,null,null,null,"Chaetodon falcifer","Cfur","70.55.3371",null,null,null,"CHAETODONTIDAE",null,null,14319,"BAR",1,null,"The Bar 1"]
["Anar","Aetobatus narinari",null,null,null,null,null,null,null,"Coryphopterus glaucofraenum","Cgla","70.55.620",null,null,null,"GOBIIDAE",null,null,14320,"BAR",2,null,"The Bar 2"]
["Anis","Anisotremus sp.",null,null,null,null,null,null,null,"Chilomycterus sp.","Chi","70.46.389",null,null,null,"DIODONTIDAE",null,null,41697,"TNT",1,"Tintipan 1 Somero","Tintipan 1 Somero"]
["Apac","Apogon pacifici",null,null,null,null,null,null,null,"Caranx hippos","Chip","70.55.377",null,null,null,"CARANGIDAE",null,null,41696,"TNT",2,"Tintipan 2 Medio","Tintipan 2 Medio"]
["Apog","Apogon sp.",null,null,null,null,null,null,null,"Chaetodon humeralis","Chum","70.55.2649",null,null,null,"CHAETODONTIDAE",null,null,14332,"TIO",1,"localizada al noroeste de Isla Tintipan a 9º","Tiosolda"]
["Arub","Axoclinus rubinoffi",null,null,null,null,null,null,null,"Chromis insolata","Cins","70.55.516",null,null,null,"POMACENTRIDAE",null,null,49084,"VAR",1,"Varadero 1","Varadero 1"]
["Ascr","Aluterus scriptus",null,null,null,null,null,null,null,"Coryphopterus lipernes","Clip","70.55.622",null,null,null,"GOBIIDAE",null,null,49085,"VAR",2,"Varadero 2","Varadero 2"]
["Aste","Acanthemblemaria stephensi",null,null,null,null,null,null,null,"Clepticus parrai","Clpa","70.55.528",null,null,null,"LABRIDAE",null,null,49086,"VAR",3,"Varadero 3","Varadero 3"]
["Atae","Anisotremus taeniatus",null,null,null,null,null,null,null,"Caranx lugubris","Clug","70.55.2525",null,null,null,"CARANGIDAE",null,null,41700,"WHI",1,null,"White  Shoal"]
["Atro","Abudefduf troschelii",null,null,null,null,null,null,null,"Ctenochaetus marginatus","Cmar","70.55.3269","CHORDATA",null,null,"ACANTHURIDAE",null,null,14340,"WLF",1,"La parcela somera está localizada a 12º 30' 4","Wild Life"]
["Auch","Aulostomus chinensis",null,null,null,null,null,null,null,"Cantherines macrocerus","Cmcr","70.55.744",null,null,null,"MONACANTHIDAE",null,null,14335,"ZAP",1,"Ubicada afuera de la punta rocosa que cierra la ensenada","Zapsurro M"]
["Axan","Acanthurus xanthopterus",null,null,null,null,null,null,null,"Caranx melampygus","Cmel","70.55.2711",null,null,null,"CARANGIDAE",null,null,49009,"ACU",96321,null,"Acuario"]
["Bdip","Bodianus diplotaenia",null,null,null,null,null,null,null,"Chromis multilineata","Cmul","70.55.517",null,null,null,"POMACENTRIDAE",null,null,49010,"AGU",96321,null,"Aguacate"]
["Both","Bothus sp.",null,null,null,null,null,null,null,"Coralliozetus cardonae","Coca","70.55.581",null,null,null,"CHAENOPSIDAE",null,null,49012,"AZU",96321,null,"Azufrada"]
["Bpol","Balistes polylepis",null,null,null,null,null,null,null,"Chaetodon ocellatus","Coce","70.55.501",null,null,null,"CHAETODONTIDAE",null,null,51553,"POR",null,null,"Bahía Portete"]
["Caca","Caranx caninus",null,null,null,null,null,null,null,"Coralliozetus sp.","Cora","70.46.290",null,null,null,"CHAENOPSIDAE",null,null,49021,"CTI",96321,null,"Cabo Tiburón"]
["Cafi","Caulolatinus affinis",null,null,null,null,null,null,null,"Coryphopterus sp.","Cory","70.46.318",null,null,null,"GOBIIDAE",null,null,49015,"CAP",96321,null,"Capurganá"]
["Cala","Calamus sp.",null,null,null,null,null,null,null,"Cosmocampus sp.","Cosm","70.46.145",null,null,null,"SYNGNATHIDAE",null,null,49016,"CEY",96321,null,"Ceycen"]
["Catr","Chromis atrilobata",null,null,null,null,null,null,null,"Cirrhitichthys oxycephalus","Coxy","70.55.2777",null,null,null,"CIRRHITIDAE",null,null,49017,"CHE",96321,null,"Chengue"]
["Ccab","Caranx caballus",null,null,null,null,null,null,null,"Cephalopholis panamensis","Cpan","70.55.3231",null,null,null,"SERRANIDAE",null,null,49019,"CIN",96321,null,"Cinto"]
["Ccha","Chanos chanos",null,null,null,null,null,null,null,"Coryphopterus personatus","Cper","70.55.623",null,null,null,"GOBIIDAE",null,null,49014,"CAN",96321,null,"El Canal"]
["ccha","Chanos chanos",null,null,null,null,null,null,null,"Cantherines pullus","Cpul","70.55.745",null,null,null,"MONACANTHIDAE",null,null,49036,"MRO",96321,null,"El Morro"]
["Cdum","Cantherines dumerilii",null,null,null,null,null,null,null,"Canthigaster punctatissima","Cpun","70.55.2663",null,null,null,"TETRAODONTIDAE",null,null,49022,"EMI",96321,null,"Emisario"]
["Cfur","Chaetodon falcifer",null,null,null,null,null,null,null,"Chilomycterus reticulatus","Cret","70.55.3224",null,null,null,"DIODONTIDAE",null,null,49023,"GAY",96321,null,"Gayraca"]
["cgal","Carcharhinus galapagensis",null,null,null,null,null,null,null,"Cirrhithus rivulatus","Criv","70.55.2786",null,null,null,"CIRRHITIDAE",null,null,49024,"GRA",96321,null,"Granate"]
["Chum","Chaetodon humeralis",null,null,null,null,null,null,null,"Canthigaster rostrata","Cros","70.55.755",null,null,null,"TETRAODONTIDAE",null,null,49027,"IGU",96321,null,"Iguana"]
["cjan","Canthigaster janthinopthera",null,null,null,null,null,null,null,"Cryptotomus roseus","Crro","70.55.541",null,null,null,"SCARIDAE",null,null,49011,"ARE",96321,null,"Isla Arena"]
["Clug","Caranx lugubris",null,null,null,null,null,null,null,"Caranx ruber","Crub","70.55.379",null,null,null,"CARANGIDAE",null,null,49025,"IFU",96321,null,"Isla Fuerte"]
["Cmar","Ctenochaetus marginatus",null,null,null,null,null,null,null,"Chaetodon sedentarius","Csed","70.55.502",null,null,null,"CHAETODONTIDAE",null,null,49026,"IGR",96321,null,"Isla Grande"]
["Cmel","Caranx melampygus",null,null,null,null,null,null,null,"Caranx sexfasciatus","Csex","70.55.2710",null,null,null,"CARANGIDAE",null,null,49028,"JCA",96321,null,"Johnny Cay"]
["Cora","Coralliozetus sp.",null,null,null,null,null,null,null,"Chaetodon striatus","Cstr","70.55.503",null,null,null,"CHAETODONTIDAE",null,null,49018,"CHO",96321,null,"La Chola"]
["Cory","Coryphopterus sp.",null,null,null,null,null,null,null,"Canthidermis sufflamen","Csuf","70.55.736",null,null,null,"BALISTIDAE",null,null,49020,"COC",96321,null,"La Coca"]
["Cosm","Cosmocampus sp.",null,null,null,null,null,null,null,"Coryphopterus thrix","Cthr","70.55.624",null,null,null,"GOBIIDAE",null,null,51556,"VEN",null,null,"La Ventana"]
["Coxy","Cirrhitichthys oxycephalus",null,null,null,null,null,null,null,"Canthidermis maculatus","Ctus","70.55.737",null,null,null,"BALISTIDAE",null,null,49041,"PAL",96321,null,"Las Palmas"]
["Cpan","Cephalopholis panamensis",null,null,null,null,null,null,null,"Coryphopterus urospilus","Curo","70.55.2714",null,null,null,"GOBIIDAE",null,null,49029,"LIT",96321,null,"Little Reef"]
["Cpun","Canthigaster punctatissima",null,null,null,null,null,null,null,"Dasyatis americana","Dame","70.55.34",null,null,null,"DASYATIDAE",null,null,49030,"MAL",96321,null,"Malpelo"]
["Cret","Chilomycterus reticulatus",null,null,null,null,null,null,null,"Diplectrum bivittatum","Dbiv","70.55.286",null,null,null,"SERRANIDAE",null,null,49031,"MAN",96321,null,"Mangle"]
["Criv","Cirrhithus rivulatus",null,null,null,null,null,null,null,"Dermatolepis dermatolepis","Dder","70.55.3225",null,null,null,"SERRANIDAE",null,null,49033,"MAZ",96321,null,"Manzanillo"]
["Csex","Caranx sexfasciatus",null,null,null,null,null,null,null,"Decapterus sp.","Deca","70.46.196",null,null,null,"CARANGIDAE",null,null,49032,"MAR",96321,null,"Maracaibo"]
["Ctus","Canthidermis maculatus",null,null,null,null,null,null,null,"Doryrhamphus excisus","Dexc","70.55.2798",null,null,null,"SYNGNATHIDAE",null,null,49035,"MRC",96321,null,"Marcelas place"]
["Curo","Coryphopterus urospilus",null,null,null,null,null,null,null,"Diodon holocanthus","Dhol","70.55.767",null,null,null,"DIODONTIDAE",null,null,49034,"MIN",96321,null,"Minalta"]
["Dder","Dermatolepis dermatolepis",null,null,null,null,null,null,null,"Diodon hystrix","Dhys","70.55.768",null,null,null,"DIODONTIDAE",null,null,49037,"NCH",96321,null,"Narrow Channel"]
["Dexc","Doryrhamphus excisus",null,null,null,null,null,null,null,"Epinephelus adscensionis","Eads","70.55.289",null,null,null,"SERRANIDAE",null,null,49038,"NEG",96321,null,"Neguanje"]
["Dhol","Diodon holocanthus",null,null,null,null,null,null,null,"Elops affinis","Eaff","70.55.2722",null,null,null,"ELOPIDAE",null,null,49039,"NET",96321,null,"No Entry"]
["Dhys","Diodon hystrix",null,null,null,null,null,null,null,"Epinephelus analogus","Eana","70.55.2723",null,null,null,"SERRANIDAE",null,null,49040,"OCE",96321,null,"Oceanario"]
["Eads","Epinephelus adscensionis",null,null,null,null,null,null,null,"Emmelichthyops atlanticus","Eatl","70.55.2530",null,null,null,"INERMIIDAE",null,null,49042,"PAV",96321,null,"Pavitos"]
["Eaff","Elops affinis",null,null,null,null,null,null,null,"Elagatis bipinnulata","Ebip","70.55.384",null,null,null,"CARANGIDAE",null,null,55545,"BARU",96321,null,"Península de Baru"]
["Eana","Epinephelus analogus",null,null,null,null,null,null,null,"Echidna catenata","Ecat","70.55.58",null,null,null,"MURAENIDAE",null,null,49046,"PLA",96321,null,"Playa Blanca"]
["Ebip","Elagatis bipinnulata",null,null,null,null,null,null,null,"Echeneis sp.","Eche","70.46.189",null,null,null,"ECHENEIDAE",null,null,51552,"PBT",null,null,"Punta Betín"]
["Edig","Elacatinus digueti",null,null,null,null,null,null,null,"Elacatinus digueti","Edig","70.55.3227",null,null,null,"GOBIIDAE",null,null,51551,"PBA",null,null,"Punta Betín - anterior"]
["Eino","Elacatinus inornatus",null,null,null,null,null,null,null,"Elacatinus dilepis","Edil","70.55.626",null,null,null,"GOBIIDAE",null,null,49044,"PBR",96321,null,"Punta Brava"]
["Eita","Epinephelus itajara",null,null,null,null,null,null,null,"Elacatinus evelynae","Eeve","70.55.2557",null,null,null,"GOBIIDAE",null,null,49048,"SFE",96321,null,"San Felipe"]
["Elab","Epinephelus labriformis",null,null,null,null,null,null,null,"Epinephelus guttatus","Egut","70.55.291",null,null,null,"SERRANIDAE",null,null,51554,"TES",null,null,"Tesoro"]
["Elpu","Elacatinus punticulatus",null,null,null,null,null,null,null,"Elacatinus horsti","Ehor","70.55.627",null,null,null,"GOBIIDAE",null,null,49013,"BAR",96321,null,"The Bar"]
["Elus","Elacatinus sp.",null,null,null,null,null,null,null,"Elacatinus illecebrosum","Eill","70.55.628",null,null,null,"GOBIIDAE",null,null,51555,"TNT",null,null,"Tintipán"]
["Embl","Emblemariopsis sp.",null,null,null,null,null,null,null,"Elacatinus inornatus","Eino","70.55.3227",null,null,null,"GOBIIDAE",null,null,49050,"TIO",96321,null,"Tiosolda"]
["Eneb","Echidna nebulosa",null,null,null,null,null,null,null,"Epinephelus itajara","Eita","70.55.292",null,null,null,"SERRANIDAE",null,null,49052,"VAR",96321,null,"Varadero"]
["Epan","Epinephelus panamensis",null,null,null,null,null,null,null,"Epinephelus labriformis","Elab","70.55.2020",null,null,null,"SERRANIDAE",null,null,49054,"WHI",96321,null,"White Shoal"]
["EpSp","Epinephelus sp",null,null,null,null,null,null,null,"Equetus lanceolatus","Elan","70.55.469",null,null,null,"SCIAENIDAE",null,null,51557,"WLF",null,null,"Wild Life"]
["Epus","Epinephelus sp.",null,null,null,null,null,null,null,"Elacatinus punticulatus","Elpu","70.55.3229",null,null,null,"GOBIIDAE",null,null,49056,"ZAP",96321,null,"Zapsurro"]
["Fcom","Fistularia commersonii",null,null,null,null,null,null,null,"Elacatinus sp.","Elus","70.46.319",null,null,null,"GOBIIDAE",null,null,51565,"SAN",96222,null,"Archipiélago de San Andrés"]
["Ffla","Forcipiger flavissimus",null,null,null,null,null,null,null,"Emblemariopsis sp.","Embl","70.46.293",null,null,null,"CHAENOPSIDAE",null,null,49007,"SCO",96222,null,"Archipiélago de San Andrés - Coralina"]
["Fico","Fistularia corneta",null,null,null,null,null,null,null,"Epinephelus morio","Emor","70.55.293",null,null,null,"SERRANIDAE",null,null,49060,"CAR",96222,null,"Cartagena"]
["Gcas","Gymnothorax castaneus",null,null,null,null,null,null,null,"Emblemaria pandionis","Empa","70.55.3363",null,null,null,"CHAENOPSIDAE",null,null,51567,"GOR",96222,null,"Gorgona"]
["Gcir","Ginglymostoma cirratum",null,null,null,null,null,null,null,"Echeneis naucrates","Enau","70.55.368",null,null,null,"ECHENEIDAE",null,null,49057,"IFU",96321,null,"Isla Fuerte"]
["Gdov","Gymnothorax dovii",null,null,null,null,null,null,null,"Echidna nebulosa","Eneb","70.55.3226",null,null,null,"MURAENIDAE",null,null,49006,"ISB",96222,null,"Isla de San Bernardo"]
["Gpan","Gymnothorax panamensis",null,null,null,null,null,null,null,"Echeneis neucratoides","Eneu","70.55.369",null,null,null,"ECHENEIDAE",null,null,49000,"ISR",96222,null,"Islas del Rosario"]
["Gspe","Gnathanodon speciosus",null,null,null,null,null,null,null,"Enneanectes sp.","Enne","70.46.280",null,null,null,"TRIPTERYGIIDAE",null,null,49058,"MAL",96321,null,"Malpelo"]
["Gund","Gymnothorax undulatus",null,null,null,null,null,null,null,"Epinephelus sp","EpSp","70.46.165",null,null,null,"SERRANIDAE",null,null,49059,"POR",96321,null,"Portete"]
["Gyfl","Gymnothorax flavimarginatus",null,null,null,null,null,null,null,"Epinephelus panamensis","Epan","70.55.3231",null,null,null,"SERRANIDAE",null,null,49001,"PRO",96222,null,"Providencia"]
["Gzeb","Gymnomuraena zebra",null,null,null,null,null,null,null,"Equetus punctatus","Epun","70.55.470",null,null,null,"SCIAENIDAE",null,null,49004,"SMR",96222,null,"Santa Marta"]
["Hadi","Halichoeres dispilus",null,null,null,null,null,null,null,"Epinephelus sp.","Epus","70.46.165",null,null,null,"SERRANIDAE",null,null,49008,"UCH",96222,null,"Uraba Chocoano"]
["Haem","Haemulon sp.",null,null,null,null,null,null,null,"Elacatinus saucrum","Esau","70.55.632",null,null,null,"GOBIIDAE",null,null,49003,"UTR",96222,null,"Utría"]
["Hald","Halichoeres discolor",null,null,null,null,null,null,null,"Engyophrys senta","Esen","70.55.702",null,null,null,"BOTHIDAE"]
["Hame","Halichoeres melanotis",null,null,null,null,null,null,null,"Epinephelus striatus","Estr","70.55.296",null,null,null,"SERRANIDAE"]
["Hchi","Halichoeres chierchiae",null,null,null,null,null,null,null,"Elacatinus xanthiprora","Exan","70.55.2561",null,null,null,"GOBIIDAE"]
["Hcru","Heteropriacanthus cruentatus",null,null,null,null,null,null,null,"Fistularia commersonii","Fcom","70.55.3232",null,null,null,"FISTULARIIDAE"]
["Hfla","Haemulon flaviguttatus",null,null,null,null,null,null,null,"Forcipiger flavissimus","Ffla","70.55.3371",null,null,null,"CHAETODONTIDAE"]
["Hgun","Hoplopagrus guntheri",null,null,null,null,null,null,null,"Fistularia corneta","Fico","70.55.3233",null,null,null,"FISTULARIIDAE"]
["Kyph","Kyphosus sp.",null,null,null,null,null,null,null,"Fistularia tabacaria","Ftab","70.55.249",null,null,null,"FISTULARIIDAE"]
["Hing","Hippocampus ingens",null,null,null,null,null,null,null,"Gymnothorax castaneus","Gcas","70.55.2728",null,null,null,"MURAENIDAE"]
["Hmac","Haemulon maculicauda",null,null,null,null,null,null,null,"Gerres cinereus","Gcin","70.55.429",null,null,null,"GERREIDAE"]
["Hmal","Halichoeres malpelo",null,null,null,null,null,null,null,"Ginglymostoma cirratum","Gcir","70.55.1",null,null,null,"GINGLYMOSTOMATI"]
["Hnic","Halichoeres nicholsi",null,null,null,null,null,null,null,"Gymnothorax dovii","Gdov","70.55.2729",null,null,null,"MURAENIDAE"]
["Hnot","Halichoeres notospilus",null,null,null,null,null,null,null,"Gerres sp.","Gerr","70.46.218",null,null,null,"GERREIDAE"]
["Hpas","Holacanthus passer",null,null,null,null,null,null,null,"Gymnothorax funebris","Gfun","70.55.62",null,null,null,"MURAENIDAE"]
["Hsae","Hemiramphus saltator",null,null,null,null,null,null,null,"Gramma loreto","Glor","70.55.333",null,null,null,"GRAMMATIDAE"]
["Hsex","Haemulon sexfasciatum",null,null,null,null,null,null,null,"Gramma melacara","Gmel","70.55.334",null,null,null,"GRAMMATIDAE"]
["Hste","Haemulon steindachneri",null,null,null,null,null,null,null,"Gymnothorax miliaris","Gmil","70.55.64",null,null,null,"MURAENIDAE"]
["Jnig","Johnrandallia nigrirostris",null,null,null,null,null,null,null,"Gymnothorax moringa","Gmor","70.55.65",null,null,null,"MURAENIDAE"]
["Kana","Kyphosus analogus",null,null,null,null,null,null,null,"Gymnothorax panamensis","Gpan","70.55.3235",null,null,null,"MURAENIDAE"]
["Kele","Kyphosus elegans",null,null,null,null,null,null,null,"Gobionellus saepapallens","Gsae","70.55.639",null,null,null,"GOBIIDAE"]
["Lara","Lutjanus aratus",null,null,null,null,null,null,null,"Gnathanodon speciosus","Gspe","70.55.3270",null,null,null,"CARANGIDAE"]
["Larg","Lutjanus argentiventris",null,null,null,null,null,null,null,"Gnatholepis thompsoni","Gtho","70.55.635",null,null,null,"GOBIIDAE"]
["Lbim","Lepidonectes bimaculata",null,null,null,null,null,null,null,"Gymnothorax undulatus","Gund","70.55.2697",null,null,null,"MURAENIDAE"]
["Ldal","Lythrypnus dalli",null,null,null,null,null,null,null,"Gymnothorax vicinus","Gvic","70.55.67",null,null,null,"MURAENIDAE"]
["Lden","Labrisomus dendriticus",null,null,null,null,null,null,null,"Gymnothorax flavimarginatus","Gyfl","70.55.3234",null,null,null,"MURAENIDAE"]
["Lgut","Lutjanus guttatus",null,null,null,null,null,null,null,"Gymnomuraena zebra","Gzeb","70.55.2787",null,null,null,"MURAENIDAE"]
["Line","Lutjanus inermis",null,null,null,null,null,null,null,"Hypoplectrus aberrans","Habe","70.55.2082",null,null,null,"SERRANIDAE"]
["Liop","Liopropoma sp.",null,null,null,null,null,null,null,"Halichoeres dispilus","Hadi","70.55.3239",null,null,null,"LABRIDAE"]
["Ljor","Lutjanus jordani",null,null,null,null,null,null,null,"Holocentrus adscensionis","Hads","70.55.225",null,null,null,"HOLOCENTRIDAE"]
["Lnov","Lutjanus novemfasciatus",null,null,null,null,null,null,null,"Haemulon sp.","Haem","70.46.221",null,null,null,"HAEMULIDAE"]
["Lsyn","Lutjanus synagris",null,null,null,null,null,null,null,"Haemulon album","Halb","70.55.434",null,null,null,"HAEMULIDAE"]
["Luco","Lutjanus colorado",null,null,null,null,null,null,null,"Halichoeres sp.","Halc","70.46.269",null,null,null,"LABRIDAE"]
["Lutj","Lutjanus sp.",null,null,null,null,null,null,null,"Halichoeres discolor","Hald","70.55.3238",null,null,null,"LABRIDAE"]
["Luvi","Lutjanus viridis",null,null,null,null,null,null,null,"Halichoeres maculipinna (Müller & Troschel, 1848)","Hama","70.55.534","CHORDATA",null,null,"LABRIDAE"]
["Mala","Malacoctenus sp.",null,null,null,null,null,null,null,"Halichoeres melanotis","Hame","70.55.3241",null,null,null,"LABRIDAE"]
["Mbai","Microspathodon bairdii",null,null,null,null,null,null,null,"Haemulon aurolineatum","Haur","70.55.435",null,null,null,"HAEMULIDAE"]
["Mber","Myripristis berndti",null,null,null,null,null,null,null,"Halichoeres bivittatus","Hbiv","70.55.531",null,null,null,"LABRIDAE"]
["Mbir","Manta birostris",null,null,null,null,null,null,null,"Haemulon bonariense","Hbon","70.55.436",null,null,null,"HAEMULIDAE"]
["Mbre","Malacanthus brevirostris",null,null,null,null,null,null,null,"Haemulon carbonarium","Hcar","70.55.438",null,null,null,"HAEMULIDAE"]
["Mcle","Muraena clepsydra",null,null,null,null,null,null,null,"Halichoeres chierchiae","Hchi","70.55.3237",null,null,null,"LABRIDAE"]
["Mden","Mulloidichthys dentatus",null,null,null,null,null,null,null,"Haemulon chrysargyreum","Hchr","70.55.439",null,null,null,"HAEMULIDAE"]
["Mdor","Microspathodon dorsalis",null,null,null,null,null,null,null,"Holacanthus ciliaris","Hcil","70.55.506",null,null,null,"POMACANTHIDAE"]
["Mlei","Myripristis leiognathus",null,null,null,null,null,null,null,"Holocentrus coruscum","Hcor","70.55.231",null,null,null,"HOLOCENTRIDAE"]
["Mlen","Muraena lentiginosa",null,null,null,null,null,null,null,"Heteropriacanthus cruentatus","Hcru","70.55.343",null,null,null,"PRIACANTHIDAE"]
["Mnig","Melichthys niger",null,null,null,null,null,null,null,"Halichoeres cyanocephalus","Hcya","70.55.2600",null,null,null,"LABRIDAE"]
["Molf","Mycteroperca olfax",null,null,null,null,null,null,null,"Halimeda discoidea","Hdis","4020.55.1655","CHLOROPHYTA",null,null,"HALIMEDACEAE"]
["Mvid","Melichthys vidua",null,null,null,null,null,null,null,"Heteroconger sp.","Hete","70.46.59",null,null,null,"CONGRIDAE"]
["Mxen","Mycteroperca xenarcha",null,null,null,null,null,null,null,"Haemulon flaviguttatus","Hfla","70.55.3236",null,null,null,"HAEMULIDAE"]
["Myct","Mycteroperca sp.",null,null,null,null,null,null,null,"Haemulon flavolineatum","Hflo","70.55.3236",null,null,null,"HAEMULIDAE"]
["Myve","Mycteroperca venenosa",null,null,null,null,null,null,null,"Halichoeres garnoti","Hgar","70.55.533",null,null,null,"LABRIDAE"]
["Nden","Nicholsina denticulata",null,null,null,null,null,null,null,"Hypoplectrus gummigutta","Hgum","70.55.297",null,null,null,"SERRANIDAE"]
["Ntae","Novaculichthys taeniourus",null,null,null,null,null,null,null,"Hoplopagrus guntheri","Hgun","70.55.2790",null,null,null,"LUTJANIDAE"]
["Ogco","Ogcocephalus sp.",null,null,null,null,null,null,null,"Hypoplectrus guttavarius","Hgut","70.55.298",null,null,null,"SERRANIDAE"]
["Omel","Ostracion meleagris",null,null,null,null,null,null,null,"Harengula humeralis","Hhum","70.55.125",null,null,null,"CLUPEIDAE"]
["Opan","Opistognathus panamensis",null,null,null,null,null,null,null,"Hypoplectrus indigo","Hind","70.55.299",null,null,null,"SERRANIDAE"]
["Oste","Ophioblennius steindachneri",null,null,null,null,null,null,null,"Hippocampus ingens","Hing","70.55.2405",null,null,null,"SYNGNATHIDAE"]
["Otyp","Oxycirrhites typus",null,null,null,null,null,null,null,"Heteroconger longissimus","Hlon","70.55.91",null,null,null,"CONGRIDAE"]
["Oxan","Odontoscion xanthops",null,null,null,null,null,null,null,"Haemulon maculicauda","Hmac","70.55.2731",null,null,null,"HAEMULIDAE"]
["Paco","Paranthias colonus",null,null,null,null,null,null,null,"Halichoeres malpelo","Hmal","70.55.3240",null,null,null,"LABRIDAE"]
["Paza","Plagiotremus azaleus",null,null,null,null,null,null,null,"Haemulon macrostomum","Hmar","70.55.441",null,null,null,"HAEMULIDAE"]
["Plat","Prionurus laticlavius",null,null,null,null,null,null,null,"Haemulon melanurum","Hmel","70.55.442",null,null,null,"HAEMULIDAE"]
["Pnau","Pseudobalistes naufragium",null,null,null,null,null,null,null,"Halichoeres nicholsi","Hnic","70.55.3242",null,null,null,"LABRIDAE"]
["Pria","Priacanthus sp.",null,null,null,null,null,null,null,"Hypoplectrus nigricans","Hnig","70.55.300",null,null,null,"SERRANIDAE"]
["Psgr","Pseudupeneus grandisquamis",null,null,null,null,null,null,null,"Halichoeres notospilus","Hnot","70.55.3243",null,null,null,"LABRIDAE"]
["Pvol","Pterois volitans",null,null,null,null,null,null,null,"Haemulon parra","Hpar","70.55.443",null,null,null,"HAEMULIDAE"]
["Pzon","Pomacanthus zonipectus",null,null,null,null,null,null,null,"Holacanthus passer","Hpas","70.55.2652",null,null,null,"POMACANTHIDAE"]
["Rbic","Rypticus bicolor",null,null,null,null,null,null,null,"Halichoeres pictus","Hpic","70.55.535",null,null,null,"LABRIDAE"]
["Rrem","Remora remora",null,null,null,null,null,null,null,"Haemulon plumieri","Hplu","70.55.444",null,null,null,"HAEMULIDAE"]
["Rtyp","Rhincodon typus",null,null,null,null,null,null,null,"Halichoeres poeyi","Hpoe","70.55.536",null,null,null,"LABRIDAE"]
["Saca","Stegastes acapulcoensis",null,null,null,null,null,null,null,"Hypoplectrus providencianus","Hpro","70.55.2406",null,null,null,"SERRANIDAE"]
["Sann","Sphoeroides annulatus",null,null,null,null,null,null,null,"Hypoplectrus puella","Hpue","70.55.301",null,null,null,"SERRANIDAE"]
["Sarc","Stegastes arcifrons",null,null,null,null,null,null,null,"Halichoeres radiatus","Hrad","70.55.537",null,null,null,"LABRIDAE"]
["Sban","Stethojulis bandanensis",null,null,null,null,null,null,null,"Holocentrus rufus","Hruf","70.55.226",null,null,null,"HOLOCENTRIDAE"]
["Scar","Scarus sp.",null,null,null,null,null,null,null,"Hemiramphus saltator","Hsae","70.55.2734",null,null,null,"HEMIRAMPHIDAE"]
["Sces","Scorpaenodes sp.",null,null,null,null,null,null,null,"Haemulon sciurus","Hsci","70.55.445",null,null,null,"HAEMULIDAE"]
["Scob","Scomberomorus sp.",null,null,null,null,null,null,null,"Haemulon sexfasciatum","Hsex","70.55.2730",null,null,null,"HAEMULIDAE"]
["Sco3","Scarus compressus",null,null,null,null,null,null,null,"Hypoplectrus n. sp. 1 (tan hamlet)","Hsp1","70.46.166",null,null,null,"SERRANIDAE"]
["Sena","Scorpaena sp.",null,null,null,null,null,null,null,"Hypoplectrus n. sp. 2 (lagrima)","Hsp2","70.46.166",null,null,null,"SERRANIDAE"]
["Sens","Sphyraena ensis",null,null,null,null,null,null,null,"Haemulon steindachneri","Hste","70.55.446",null,null,null,"HAEMULIDAE"]
["Sfas","Serranus fasciatus",null,null,null,null,null,null,null,"Haemulon striatum","Hstr","70.55.447",null,null,null,"HAEMULIDAE"]
["Sfla","Stegastes flavilatus",null,null,null,null,null,null,null,"Holacanthus tricolor","Htri","70.55.507",null,null,null,"POMACANTHIDAE"]
["Sgho","Scarus ghobban",null,null,null,null,null,null,null,"Hypoplectrus unicolor","Huni","70.55.302",null,null,null,"SERRANIDAE"]
["Shis","Scorpaena histrio",null,null,null,null,null,null,null,"Holocentrus vexillarius","Hvex","70.55.232",null,null,null,"HOLOCENTRIDAE"]
["Slal","Seriola lalandi",null,null,null,null,null,null,null,"Hypoplectrus sp.","Hypo","70.46.166",null,null,null,"SERRANIDAE"]
["Slew","Sphyrna lewini",null,null,null,null,null,null,null,"Inermia vittata","Ivit","70.55.451",null,null,null,"INERMIIDAE"]
["Slob","Sphoeroides lobatus",null,null,null,null,null,null,null,"Jenkinsia sp.","Jenk","70.46.79",null,null,null,"CLUPEIDAE"]
["Sluc","Sphyraena lucasana",null,null,null,null,null,null,null,"Johnrandallia nigrirostris","Jnig","70.55.2643",null,null,null,"CHAETODONTIDAE"]
["Smys","Scorpaena mystes",null,null,null,null,null,null,null,"Kyphosus analogus","Kana","70.55.2737",null,null,null,"KYPHOSIDAE"]
["Socy","Sectator ocyurus",null,null,null,null,null,null,null,"Kyphosus elegans","Kele","70.55.2736",null,null,null,"KYPHOSIDAE"]
["Splu","Scorpaena plumieri",null,null,null,null,null,null,null,"Kyphosus sectatrix","Ksec","70.55.511",null,null,null,"KYPHOSIDAE"]
["Spsi","Serranus psittacinus",null,null,null,null,null,null,null,"Kyphosus sp.","Kyph","70.46.259",null,null,null,"KYPHOSIDAE"]
["Spsp","Sparisoma sp.",null,null,null,null,null,null,null,"Labrisomus sp.","Labr","70.46.284",null,null,null,"LABRISOMIDAE"]
["sqen","Sphyraena qenie",null,null,null,null,null,null,null,"Lutjanus analis","Lana","70.55.406",null,null,null,"LUTJANIDAE"]
["Srec","Stegastes rectifraenum",null,null,null,null,null,null,null,"Lutjanus apodus","Lapo","70.55.407",null,null,null,"LUTJANIDAE"]
["Srur","Scarus rubroviolaceus",null,null,null,null,null,null,null,"Lutjanus aratus","Lara","70.55.2742",null,null,null,"LUTJANIDAE"]
["Ssca","Strongylura scapularis",null,null,null,null,null,null,null,"Lutjanus argentiventris","Larg","70.55.2634",null,null,null,"LUTJANIDAE"]
["Ssub","Sargocentron suborbitalis",null,null,null,null,null,null,null,"Lepidonectes bimaculata","Lbim","70.55.3271",null,null,null,"TRIPTERYGIIDAE"]
["Stle","Stegastes leucorus",null,null,null,null,null,null,null,"Lutjanus buccanella","Lbuc","70.55.408",null,null,null,"LUTJANIDAE"]
["Sver","Sufflamen verres",null,null,null,null,null,null,null,"Lutjanus cyanopterus","Lcya","70.55.409",null,null,null,"LUTJANIDAE"]
["Sxyr","Scorpaenodes xyris",null,null,null,null,null,null,null,"Lythrypnus dalli","Ldal","70.55.2010",null,null,null,"GOBIIDAE"]
["Syla","Synodus lacertinus",null,null,null,null,null,null,null,"Labrisomus dendriticus","Lden","70.55.3246",null,null,null,"LABRISOMIDAE"]
["Syno","Synodus sp.",null,null,null,null,null,null,null,"Lutjanus griseus","Lgri","70.55.410",null,null,null,"LUTJANIDAE"]
["Talb","Thunnus albacares",null,null,null,null,null,null,null,"Lutjanus guttatus","Lgut","70.55.2680",null,null,null,"LUTJANIDAE"]
["Tgra","Thalassoma grammaticum",null,null,null,null,null,null,null,"Lutjanus inermis","Line","70.55.2741",null,null,null,"LUTJANIDAE"]
["Tluc","Thalassoma lucasanum",null,null,null,null,null,null,null,"Liopropoma sp.","Liop","70.46.167",null,null,null,"SERRANIDAE"]
["Tobe","Triaenodon obesus",null,null,null,null,null,null,null,"Lutjanus jocu","Ljoc","70.55.411",null,null,null,"LUTJANIDAE"]
["Tsti","Trachinotus stilbe",null,null,null,null,null,null,null,"Lutjanus jordani","Ljor","70.55.2681",null,null,null,"LUTJANIDAE"]
["Xmen","Xanthichthys mento",null,null,null,null,null,null,null,"Lutjanus mahogoni","Lmah","70.55.412",null,null,null,"LUTJANIDAE"]
["Zcor","Zanclus cornutus",null,null,null,null,null,null,null,"Lachnolaimus maximus","Lmax","70.55.538",null,null,null,"LABRIDAE"]
["Aaff","Apogon affinis",null,null,null,null,null,null,null,"Lutjanus novemfasciatus","Lnov","70.55.2740",null,null,null,"LUTJANIDAE"]
["Aasp","Acanthemblemaria aspera",null,null,null,null,null,null,null,"Liopropoma rubre","Lrub","70.55.304",null,null,null,"SERRANIDAE"]
["Abah","Acanthurus bahianus",null,null,null,null,null,null,null,"Lutjanus synagris","Lsyn","70.55.414",null,null,null,"LUTJANIDAE"]
["Abet","Acanthemblemaria betinensis",null,null,null,null,null,null,null,"Lactophrys trigonus","Ltri","70.55.752",null,null,null,"OSTRACIIDAE"]
["Abin","Apogon binotatus",null,null,null,null,null,null,null,"Lutjanus colorado","Luco","70.55.2739",null,null,null,"LUTJANIDAE"]
["Acan","Acanthurus sp.",null,null,null,null,null,null,null,"Lutjanus sp.","Lutj","70.46.210",null,null,null,"LUTJANIDAE"]
["Achi","Acanthurus chirurgus",null,null,null,null,null,null,null,"Lutjanus viridis","Luvi","70.55.2648",null,null,null,"LUTJANIDAE"]
["Acoe","Acanthurus coeruleus",null,null,null,null,null,null,null,"Lucayablennius zingaro","Lzin","70.55.586",null,null,null,"CHAENOPSIDAE"]
["Acsp","Acanthemblemaria spinosa",null,null,null,null,null,null,null,"Malacoctenus boehlkei","Mabo","70.55.2541",null,null,null,"LABRISOMIDAE"]
["Amac","Aulostomus maculatus",null,null,null,null,null,null,null,"Mycteroperca acutirostris","Macu","70.55.305",null,null,null,"SERRANIDAE"]
["Amar","Acanthemblemaria maria",null,null,null,null,null,null,null,"Malacoctenus sp.","Mala","70.46.285",null,null,null,"LABRISOMIDAE"]
["Apin","Amblycirrhitus pinos",null,null,null,null,null,null,null,"Microspathodon bairdii","Mbai","70.55.3248",null,null,null,"POMACENTRIDAE"]
["Apla","Apogon lachneri",null,null,null,null,null,null,null,"Myripristis berndti","Mber","70.55.3252",null,null,null,"HOLOCENTRIDAE"]
["Apma","Apogon maculatus",null,null,null,null,null,null,null,"Manta birostris","Mbir","70.55.41",null,null,null,"MYLIOBATIDAE"]
["Apol","Acanthostracion polygonius",null,null,null,null,null,null,null,"Mycteroperca bonaci","Mbon","70.55.306",null,null,null,"SERRANIDAE"]
["Apse","Apogon pseudomaculatus",null,null,null,null,null,null,null,"Malacanthus brevirostris","Mbre","70.55.2744",null,null,null,"MALACANTHIDAE"]
["Aqua","Acanthostracion quadricornis",null,null,null,null,null,null,null,"Microspathodon chrysurus","Mchr","70.55.519",null,null,null,"POMACENTRIDAE"]
["Ariv","Acanthemblemaria rivasi",null,null,null,null,null,null,null,"Muraena clepsydra","Mcle","70.55.2658",null,null,null,"MURAENIDAE"]
["Asax","Abudefduf saxatilis",null,null,null,null,null,null,null,"Mulloidichthys dentatus","Mden","70.55.2698",null,null,null,"MULLIDAE"]
["Asur","Anisotremus surinamensis",null,null,null,null,null,null,null,"Microspathodon dorsalis","Mdor","70.55.3249",null,null,null,"POMACENTRIDAE"]
["Atar","Abudefduf taurus",null,null,null,null,null,null,null,"Mycteroperca interstitialis","Mint","70.55.308",null,null,null,"SERRANIDAE"]
["Atow","Apogon townsendi",null,null,null,null,null,null,null,"Myripristis jacobus","Mjac","70.55.227",null,null,null,"HOLOCENTRIDAE"]
["Avir","Anisotremus virginicus",null,null,null,null,null,null,null,"Myripristis leiognathus","Mlei","70.55.2661",null,null,null,"HOLOCENTRIDAE"]
["Blun","Bothus lunatus",null,null,null,null,null,null,null,"Muraena lentiginosa","Mlen","70.55.2656",null,null,null,"MURAENIDAE"]
["Bpul","Bodianus pulchellus",null,null,null,null,null,null,null,"Malacoctenus macropus","Mmac","70.55.568",null,null,null,"LABRISOMIDAE"]
["Bruf","Bodianus rufus",null,null,null,null,null,null,null,"Muraena miliaris","Mmil","70.55.3250",null,null,null,"MURAENIDAE"]
["Bvet","Balistes vetula",null,null,null,null,null,null,null,"Melichthys niger","Mnig","70.55.738",null,null,null,"BALISTIDAE"]
["Caba","Caranx bartholomaei",null,null,null,null,null,null,null,"Mycteroperca olfax","Molf","70.55.3251",null,null,null,"SERRANIDAE"]
["Cacu","Chaetodon aculeatus",null,null,null,null,null,null,null,"Monacanthus sp.","Mona","70.46.381",null,null,null,"MONACANTHIDAE"]
["Cana","Calamus penna",null,null,null,null,null,null,null,"Mycteroperca phenax","Mphe","70.55.309",null,null,null,"SERRANIDAE"]
["Cant","Chilomycterus antennatus",null,null,null,null,null,null,null,"Malacanthus plumieri","Mplu","70.55.366",null,null,null,"MALACANTHIDAE"]
["Cape","Calamus pennatula",null,null,null,null,null,null,null,"Mycteroperca tigris","Mtig","70.55.310",null,null,null,"SERRANIDAE"]
["Carg","Centropyge argi",null,null,null,null,null,null,null,"Malacoctenus triangulatus","Mtri","70.55.569",null,null,null,"LABRISOMIDAE"]
["Caus","Caranx latus",null,null,null,null,null,null,null,"Monacanthus tuckeri","Mtuc","70.55.747",null,null,null,"MONACANTHIDAE"]
["Cbah","Coralliozetus bahamensis",null,null,null,null,null,null,null,"Mulloidichthys martinicus","Muma","70.55.494",null,null,null,"MULLIDAE"]
["Cbaj","Calamus bajonado",null,null,null,null,null,null,null,"Melichthys vidua","Mvid","70.55.3247",null,null,null,"BALISTIDAE"]
["Ccal","Calamus calamus",null,null,null,null,null,null,null,"Mycteroperca xenarcha","Mxen","70.55.2791",null,null,null,"SERRANIDAE"]
["Ccap","Chaetodon capistratus",null,null,null,null,null,null,null,"Myrichthys breviceps","Mybr","70.55.77",null,null,null,"OPHICHTHIDAE"]
["Ccry","Caranx crysos",null,null,null,null,null,null,null,"Mycteroperca sp.","Myct","70.46.168",null,null,null,"SERRANIDAE"]
["Ccya","Chromis cyanea",null,null,null,null,null,null,null,"Mycteroperca venenosa","Myve","70.55.311",null,null,null,"SERRANIDAE"]
["Cdic","Coryphopterus dicrus",null,null,null,null,null,null,null,"Nicholsina denticulata","Nden","70.55.3253",null,null,null,"SCARIDAE"]
["Ceid","Coryphopterus eidolon",null,null,null,null,null,null,null,"Neoniphon marianus","Nmar","70.55.228",null,null,null,"HOLOCENTRIDAE"]
["Cfab","Chaetodipterus faber",null,null,null,null,null,null,null,"Novaculichthys taeniourus","Ntae","70.55.3272",null,null,null,"LABRIDAE"]
["Cful","Cephalopolis fulva",null,null,null,null,null,null,null,"Ophioblennius atlanticus","Oatl","70.55.595",null,null,null,"BLENNIIDAE"]
["Cgla","Coryphopterus glaucofraenum",null,null,null,null,null,null,null,"Opisthognathus aurifrons","Oaur","70.55.339",null,null,null,"OPISTOGNATHIDAE"]
["Chi","Chilomycterus sp.",null,null,null,null,null,null,null,"Ocyurus chrysurus","Ochr","70.55.416",null,null,null,"LUTJANIDAE"]
["Chip","Caranx hippos",null,null,null,null,null,null,null,"Odontoscion dentex","Oden","70.55.479",null,null,null,"SCIAENIDAE"]
["Cins","Chromis insolata",null,null,null,null,null,null,null,"Ogcocephalus sp.","Ogco","70.46.114",null,null,null,"OGCOCEPHALIDAE"]
["Clip","Coryphopterus lipernes",null,null,null,null,null,null,null,"Opistognathus macrognathus","Omac","70.55.2022",null,null,null,"OPISTOGNATHIDAE"]
["Clpa","Clepticus parrai",null,null,null,null,null,null,null,"Ostracion meleagris","Omel","70.55.3273",null,null,null,"OSTRACIIDAE"]
["Cmcr","Cantherines macrocerus",null,null,null,null,null,null,null,"Opistognathus panamensis","Opan","70.55.3369",null,null,null,"OPISTOGNATHIDAE"]
["Cmul","Chromis multilineata",null,null,null,null,null,null,null,"Ophioblennius macclurei","Opma","70.55.595",null,null,null,"BLENNIIDAE"]
["Coca","Coralliozetus cardonae",null,null,null,null,null,null,null,"Ophioblennius steindachneri","Oste","70.55.2657",null,null,null,"BLENNIIDAE"]
["Coce","Chaetodon ocellatus",null,null,null,null,null,null,null,"Oxycirrhites typus","Otyp","70.55.2802",null,null,null,"CIRRHITIDAE"]
["Cper","Coryphopterus personatus",null,null,null,null,null,null,null,"Odontoscion xanthops","Oxan","70.55.3254",null,null,null,"SCIAENIDAE"]
["Cpul","Cantherines pullus",null,null,null,null,null,null,null,"Paranthias colonus","Paco","70.55.2751",null,null,null,"SERRANIDAE"]
["Cros","Canthigaster rostrata",null,null,null,null,null,null,null,"Pareques acuminatus","Pacu","70.55.482",null,null,null,"SCIAENIDAE"]
["Crro","Cryptotomus roseus",null,null,null,null,null,null,null,"Paranthias furcifer","Pafu","70.55.312",null,null,null,"SERRANIDAE"]
["Crub","Caranx ruber",null,null,null,null,null,null,null,"Pomacanthus arcuatus","Parc","70.55.508",null,null,null,"POMACANTHIDAE"]
["Csed","Chaetodon sedentarius",null,null,null,null,null,null,null,"Priacanthus arenatus","Pare","70.55.344",null,null,null,"PRIACANTHIDAE"]
["Cstr","Chaetodon striatus",null,null,null,null,null,null,null,"Plagiotremus azaleus","Paza","70.55.2803",null,null,null,"BLENNIIDAE"]
["Csuf","Canthidermis sufflamen",null,null,null,null,null,null,null,"Pempheris sp.","Pem","70.46.253",null,null,null,"PEMPHERIDAE"]
["Cthr","Coryphopterus thrix",null,null,null,null,null,null,null,"Ptereleotris helenae","Phel","70.55.664",null,null,null,"GOBIIDAE"]
["Dame","Dasyatis americana",null,null,null,null,null,null,null,"Priolepis hipoliti","Phip","70.55.656",null,null,null,"GOBIIDAE"]
["Dbiv","Diplectrum bivittatum",null,null,null,null,null,null,null,"Parasphyraenops incisus","Pinc","70.55.313",null,null,null,"SERRANIDAE"]
["Deca","Decapterus sp.",null,null,null,null,null,null,null,"Prionurus laticlavius","Plat","70.55.3255",null,null,null,"ACANTHURIDAE"]
["Eatl","Emmelichthyops atlanticus",null,null,null,null,null,null,null,"Pseudupeneus maculatus","Pmac","70.55.496",null,null,null,"MULLIDAE"]
["Ecat","Echidna catenata",null,null,null,null,null,null,null,"Pseudobalistes naufragium","Pnau","70.55.3274",null,null,null,"BALISTIDAE"]
["Eche","Echeneis sp.",null,null,null,null,null,null,null,"Pomacanthus paru","Popa","70.55.509",null,null,null,"POMACANTHIDAE"]
["Edil","Elacatinus dilepis",null,null,null,null,null,null,null,"Priacanthus sp.","Pria","70.46.181",null,null,null,"PRIACANTHIDAE"]
["Eeve","Elacatinus evelynae",null,null,null,null,null,null,null,"Pempheris schomburgkii","Psch","70.55.499",null,null,null,"PEMPHERIDAE"]
["Egut","Epinephelus guttatus",null,null,null,null,null,null,null,"Pseudupeneus grandisquamis","Psgr","70.55.2755",null,null,null,"MULLIDAE"]
["Ehor","Elacatinus horsti",null,null,null,null,null,null,null,"Pterois volitans","Pvol","70.55.3355",null,null,null,"SCORPAENIDAE"]
["Eill","Elacatinus illecebrosum",null,null,null,null,null,null,null,"Phaeoptyx xenus","Pxen","70.55.363",null,null,null,"APOGONIDAE"]
["Elan","Equetus lanceolatus",null,null,null,null,null,null,null,"Pomacanthus zonipectus","Pzon","70.55.2788",null,null,null,"POMACANTHIDAE"]
["Emor","Epinephelus morio",null,null,null,null,null,null,null,"Rypticus bicolor","Rbic","70.55.2759",null,null,null,"SERRANIDAE"]
["Empa","Emblemaria pandionis",null,null,null,null,null,null,null,"Rhinesomus bicaudalis","Rhbi","70.55.753",null,null,null,"OSTRACIIDAE"]
["Eneu","Echeneis neucratoides",null,null,null,null,null,null,null,"Remora remora","Rrem","70.55.370",null,null,null,"ECHENEIDAE"]
["Enne","Enneanectes sp.",null,null,null,null,null,null,null,"Rypticus saponaceus","Rsap","70.55.320",null,null,null,"SERRANIDAE"]
["epro","Elacatinus prochilos",null,null,null,null,null,null,null,"Rypticus subbifrenatus","Rsub","70.55.321",null,null,null,"SERRANIDAE"]
["Epun","Equetus punctatus",null,null,null,null,null,null,null,"Rhinesomus triqueter","Rtri","70.55.754",null,null,null,"OSTRACIIDAE"]
["Esau","Elacatinus saucrum",null,null,null,null,null,null,null,"Rhincodon typus","Rtyp","70.55.2",null,null,null,"RHINCODONTIDAE"]
["Esen","Engyophrys senta",null,null,null,null,null,null,null,"Stegastes acapulcoensis","Saca","70.55.2653",null,null,null,"POMACENTRIDAE"]
["Estr","Epinephelus striatus",null,null,null,null,null,null,null,"Stegastes adustus","Sadu","70.55.521",null,null,null,"POMACENTRIDAE"]
["Lzin","Lucayablennius zingaro",null,null,null,null,null,null,null,"Sphoeroides annulatus","Sann","70.55.2688",null,null,null,"TETRAODONTIDAE"]
["Mabo","Malacoctenus boehlkei",null,null,null,null,null,null,null,"Sparisoma radians","Sara","70.55.552",null,null,null,"SCARIDAE"]
["Macu","Mycteroperca acutirostris",null,null,null,null,null,null,null,"Stegastes arcifrons","Sarc","70.55.3259",null,null,null,"POMACENTRIDAE"]
["Mbon","Mycteroperca bonaci",null,null,null,null,null,null,null,"Sparisoma atomarium","Sato","70.55.549",null,null,null,"SCARIDAE"]
["Mchr","Microspathodon chrysurus",null,null,null,null,null,null,null,"Sparisoma aurofrenatum","Saur","70.55.550",null,null,null,"SCARIDAE"]
["Mint","Mycteroperca interstitialis",null,null,null,null,null,null,null,"Serranus baldwini","Sbal","70.55.325",null,null,null,"SERRANIDAE"]
["Mjac","Myripristis jacobus",null,null,null,null,null,null,null,"Stethojulis bandanensis","Sban","70.55.3275",null,null,null,"LABRIDAE"]
["Mmac","Malacoctenus macropus",null,null,null,null,null,null,null,"Sphyraena barracuda","Sbar","70.55.669",null,null,null,"SPHYRAENIDAE"]
["Mmil","Muraena miliaris",null,null,null,null,null,null,null,"Scomberomorus brasiliensis","Sbra","70.55.682",null,null,null,"SCOMBRIDAE"]
["Mona","Monacanthus sp.",null,null,null,null,null,null,null,"Scarus sp.","Scar","70.46.275",null,null,null,"SCARIDAE"]
["Mphe","Mycteroperca phenax",null,null,null,null,null,null,null,"Scomberomorus cavalla","Scav","70.55.683",null,null,null,"SCOMBRIDAE"]
["Mplu","Malacanthus plumieri",null,null,null,null,null,null,null,"Scarus coelestinus","Scco","70.55.543",null,null,null,"SCARIDAE"]
["Mtig","Mycteroperca tigris",null,null,null,null,null,null,null,"Scorpaenodes sp.","Sces","70.46.156",null,null,null,"SCORPAENIDAE"]
["Mtri","Malacoctenus triangulatus",null,null,null,null,null,null,null,"Serranus chionaraia","Schi","70.55.326",null,null,null,"SERRANIDAE"]
["Mtuc","Monacanthus tuckeri",null,null,null,null,null,null,null,"Sparisoma chrysopterum","Schr","70.55.551",null,null,null,"SCARIDAE"]
["Muma","Mulloidichthys martinicus",null,null,null,null,null,null,null,"Scarus compressus","Sco3","70.55.3256",null,null,null,"SCARIDAE"]
["Mybr","Myrichthys breviceps",null,null,null,null,null,null,null,"Scomberomorus sp.","Scob","70.46.350",null,null,null,"SCOMBRIDAE"]
["Nmar","Neoniphon marianus",null,null,null,null,null,null,null,"Scarus coeruleus","Scoe","70.55.544",null,null,null,"SCARIDAE"]
["Oatl","Ophioblennius atlanticus",null,null,null,null,null,null,null,"Scarus croicensis","Scro","70.55.545",null,null,null,"SCARIDAE"]
["Oaur","Opisthognathus aurifrons",null,null,null,null,null,null,null,"Stegastes diencaeus","Sdie","70.55.520",null,null,null,"POMACENTRIDAE"]
["Ochr","Ocyurus chrysurus",null,null,null,null,null,null,null,"Scorpaena sp.","Sena","70.46.155",null,null,null,"SCORPAENIDAE"]
["Oden","Odontoscion dentex",null,null,null,null,null,null,null,"Sphyraena ensis","Sens","70.55.2689",null,null,null,"SPHYRAENIDAE"]
["Omac","Opistognathus macrognathus",null,null,null,null,null,null,null,"Serranus sp.","Serr","70.46.175","CHORDATA",null,null,"SERRANIDAE"]
["Opma","Ophioblennius macclurei",null,null,null,null,null,null,null,"Serranus fasciatus","Sfas","70.46.175",null,null,null,"SERRANIDAE"]
["Pacu","Pareques acuminatus",null,null,null,null,null,null,null,"Stegastes flavilatus","Sfla","70.55.2768",null,null,null,"POMACENTRIDAE"]
["Pafu","Paranthias furcifer",null,null,null,null,null,null,null,"Stegastes fuscus","Sfus","70.55.3260",null,null,null,"POMACENTRIDAE"]
["Parc","Pomacanthus arcuatus",null,null,null,null,null,null,null,"Scarus ghobban","Sgho","70.55.2760",null,null,null,"SCARIDAE"]
["Pare","Priacanthus arenatus",null,null,null,null,null,null,null,"Scarus guacamaia","Sgua","70.55.546",null,null,null,"SCARIDAE"]
["Pem","Pempheris sp.",null,null,null,null,null,null,null,"Scorpaena histrio","Shis","70.55.2390",null,null,null,"SCORPAENIDAE"]
["Phel","Ptereleotris helenae",null,null,null,null,null,null,null,"Scarus iseri","Sise","70.55.3576",null,null,null,"SCARIDAE"]
["Phip","Priolepis hipoliti",null,null,null,null,null,null,null,"Seriola lalandi","Slal","70.55.2763",null,null,null,"CARANGIDAE"]
["Pinc","Parasphyraenops incisus",null,null,null,null,null,null,null,"Stegastes leucostictus","Sleu","70.55.522",null,null,null,"POMACENTRIDAE"]
["Pmac","Pseudupeneus maculatus",null,null,null,null,null,null,null,"Sphyrna lewini","Slew","70.55.19",null,null,null,"CARCHARHINIDAE"]
["Popa","Pomacanthus paru",null,null,null,null,null,null,null,"Sphoeroides lobatus","Slob","70.55.2632",null,null,null,"TETRAODONTIDAE"]
["Psch","Pempheris schomburgkii",null,null,null,null,null,null,null,"Sphyraena lucasana","Sluc","70.55.3258",null,null,null,"SPHYRAENIDAE"]
["Pxen","Phaeoptyx xenus",null,null,null,null,null,null,null,"Scorpaena mystes","Smys","70.55.2660",null,null,null,"SCORPAENIDAE"]
["Rhbi","Rhinesomus bicaudalis",null,null,null,null,null,null,null,"Sectator ocyurus","Socy","70.55.2799",null,null,null,"KYPHOSIDAE"]
["Rsap","Rypticus saponaceus",null,null,null,null,null,null,null,"Sphoeroides pachygaster","Spac","70.55.761",null,null,null,"TETRAODONTIDAE"]
["Rsub","Rypticus subbifrenatus",null,null,null,null,null,null,null,"Stegastes partitus","Spar","70.55.523",null,null,null,"POMACENTRIDAE"]
["Rtri","Rhinesomus triqueter",null,null,null,null,null,null,null,"Scarus perrico","Sper","70.55.3257",null,null,null,"SCARIDAE"]
["Sadu","Stegastes adustus",null,null,null,null,null,null,null,"Sphyraena picudilla","Spic","70.55.671",null,null,null,"SPHYRAENIDAE"]
["Sara","Sparisoma radians",null,null,null,null,null,null,null,"Stegastes planifrons","Spla","70.55.524",null,null,null,"POMACENTRIDAE"]
["Sato","Sparisoma atomarium",null,null,null,null,null,null,null,"Scorpaena plumieri","Splu","70.55.264",null,null,null,"SCORPAENIDAE"]
["Saur","Sparisoma aurofrenatum",null,null,null,null,null,null,null,"Serranus psittacinus","Spsi","70.55.2659",null,null,null,"SERRANIDAE"]
["Sbal","Serranus baldwini",null,null,null,null,null,null,null,"Sparisoma sp.","Spsp","70.46.276",null,null,null,"SCARIDAE"]
["Sbar","Sphyraena barracuda",null,null,null,null,null,null,null,"Stegastes rectifraenum","Srec","70.55.2767",null,null,null,"POMACENTRIDAE"]
["Sbra","Scomberomorus brasiliensis",null,null,null,null,null,null,null,"Scomberomorus regalis","Sreg","70.55.684",null,null,null,"SCOMBRIDAE"]
["Scav","Scomberomorus cavalla",null,null,null,null,null,null,null,"Seriola rivoliana","Sriv","70.55.396",null,null,null,"CARANGIDAE"]
["Scco","Scarus coelestinus",null,null,null,null,null,null,null,"Sparisoma rubripinne","Srub","70.55.553",null,null,null,"SCARIDAE"]
["Schi","Serranus chionaraia",null,null,null,null,null,null,null,"Scarus rubroviolaceus","Srur","70.46.275",null,null,null,"SCARIDAE"]
["Schr","Sparisoma chrysopterum",null,null,null,null,null,null,null,"Synodus saurus","Ssau","70.55.144",null,null,null,"SYNODONTIDAE"]
["Scoe","Scarus coeruleus",null,null,null,null,null,null,null,"Strongylura scapularis","Ssca","70.55.3262",null,null,null,"BELONIDAE"]
["Scro","Scarus croicensis",null,null,null,null,null,null,null,"Scomberomorus sierra","Ssie","70.55.2686",null,null,null,"SCOMBRIDAE"]
["Sdie","Stegastes diencaeus",null,null,null,null,null,null,null,"Sphoeroides spengleri","Sspl","70.55.762",null,null,null,"TETRAODONTIDAE"]
["Serr","Serranus sp.",null,null,null,null,null,null,null,"Sargocentron suborbitalis","Ssub","70.55.2639",null,null,null,"HOLOCENTRIDAE"]
["Sfus","Stegastes fuscus",null,null,null,null,null,null,null,"Serranus tabacarius","Stab","70.55.330",null,null,null,"SERRANIDAE"]
["Sgua","Scarus guacamaia",null,null,null,null,null,null,null,"Scarus taeniopterus","Stae","70.55.547",null,null,null,"SCARIDAE"]
["Sleu","Stegastes leucostictus",null,null,null,null,null,null,null,"Serranus tigrinus","Stig","70.55.331",null,null,null,"SERRANIDAE"]
["Spac","Sphoeroides pachygaster",null,null,null,null,null,null,null,"Stegastes leucorus","Stle","70.55.3261",null,null,null,"POMACENTRIDAE"]
["Spar","Stegastes partitus",null,null,null,null,null,null,null,"Serranus tortugarum","Stor","70.55.332",null,null,null,"SERRANIDAE"]
["Spic","Sphyraena picudilla",null,null,null,null,null,null,null,"Stegastes variabilis","Svar","70.55.525",null,null,null,"POMACENTRIDAE"]
["Spla","Stegastes planifrons",null,null,null,null,null,null,null,"Sufflamen verres","Sver","70.55.2795",null,null,null,"BALISTIDAE"]
["Sreg","Scomberomorus regalis",null,null,null,null,null,null,null,"Scarus vetula","Svet","70.55.548",null,null,null,"SCARIDAE"]
["Srub","Sparisoma rubripinne",null,null,null,null,null,null,null,"Sargocentron vexillarium","Svex","70.55.232",null,null,null,"HOLOCENTRIDAE"]
["Ssau","Synodus saurus",null,null,null,null,null,null,null,"Sparisoma viride","Svir","70.55.554",null,null,null,"SCARIDAE"]
["Sspl","Sphoeroides spengleri",null,null,null,null,null,null,null,"Scorpaenodes xyris","Sxyr","70.55.2761",null,null,null,"SCORPAENIDAE"]
["Stab","Serranus tabacarius",null,null,null,null,null,null,null,"Synodus intermedius","Syin","70.55.142",null,null,null,"SYNODONTIDAE"]
["Stae","Scarus taeniopterus",null,null,null,null,null,null,null,"Synodus lacertinus","Syla","70.55.2654",null,null,null,"SYNODONTIDAE"]
["Stig","Serranus tigrinus",null,null,null,null,null,null,null,"Synodus sp.","Syno","70.46.88",null,null,null,"SYNODONTIDAE"]
["Stor","Serranus tortugarum",null,null,null,null,null,null,null,"Tylosurus acus pacificus","Tacu","70.58.3","CHORDATA",null,null,"BELONIDAE"]
["Svar","Stegastes variabilis",null,null,null,null,null,null,null,"Thunnus albacares","Talb","70.55.2567","CHORDATA",null,null,"SCOMBRIDAE"]
["Svet","Scarus vetula",null,null,null,null,null,null,null,"Thalassoma bifasciatum","Tbif","70.55.539","CHORDATA",null,null,"LABRIDAE"]
["Svex","Sargocentron vexillarium",null,null,null,null,null,null,null,"Tylosurus crocodilus","Tcro","70.55.208","CHORDATA",null,null,"BELONIDAE"]
["Svir","Sparisoma viride",null,null,null,null,null,null,null,"Trachinotus falcatus","Tfal","70.55.399","CHORDATA",null,null,"CARANGIDAE"]
["Syin","Synodus intermedius",null,null,null,null,null,null,null,"Thalassoma grammaticum","Tgra","70.55.3263","CHORDATA",null,null,"LABRIDAE"]
["Tbif","Thalassoma bifasciatum",null,null,null,null,null,null,null,"Thalassoma lucasanum","Tluc","70.55.2662","CHORDATA",null,null,"LABRIDAE"]
["Tfal","Trachinotus falcatus",null,null,null,null,null,null,null,"Triaenodon obesus","Tobe","70.55.2796","CHORDATA",null,null,"CARCHARHINIDAE"]
["Xmar","Xyrichtys martinicensis",null,null,null,null,null,null,null,"Trachinotus stilbe","Tsti","70.55.3264","CHORDATA",null,null,"CARANGIDAE"]
["Xnov","Xyrichtys novacula",null,null,null,null,null,null,null,"Tylosurus sp.","Tylo","70.46.126","CHORDATA",null,null,"BELONIDAE"]
["Xrin","Xanthichthys ringens",null,null,null,null,null,null,null,"Urobatis jamaicensis","Ujam","70.55.38",null,null,null,"UROLOPHIDAE"]
["Xspl","Xyrichthys splendens",null,null,null,null,null,null,null,"Xyrichtys martinicensis","Xmar","70.55.2538",null,null,null,"LABRIDAE"]
["Enau","Echeneis naucrates",null,null,null,null,null,null,null,"Xanthichthys mento","Xmen","70.55.3265",null,null,null,"BALISTIDAE"]
["Sper","Scarus perrico",null,null,null,null,null,null,null,"Xyrichtys novacula","Xnov","70.55.540",null,null,null,"LABRIDAE"]
["Sriv","Seriola rivoliana",null,null,null,null,null,null,null,"Xanthichthys ringens","Xrin","70.55.739",null,null,null,"BALISTIDAE"]
["Ssie","Scomberomorus sierra",null,null,null,null,null,null,null,"Xyrichthys splendens","Xspl","70.55.2539",null,null,null,"LABRIDAE"]
["Tacu","Tylosurus acus pacificus",null,null,null,null,null,null,null,"Zanclus cornutus","Zcor","70.55.3276",null,null,null,"ZANCLIDAE"]
["Tylo","Tylosurus sp.",null,null,null,null,null,null,null,"Ablennes hians","ahia","70.55.203",null,null,null,"BELONIDAE"]
["Ujam","Urobatis jamaicensis",null,null,null,null,null,null,null,"Chanos chanos","ccha","70.55.3268",null,null,null,"CHANIDAE"]
["Hdis","Halimeda discoidea",null,null,null,null,null,null,null,"Carcharhinus galapagensis","cgal","70.46.4",null,null,null,"CARCHARHINIDAE"]
["Ceph","Cephalopholis sp.",null,null,null,null,null,null,null,"Canthigaster janthinopthera","cjan","70.55.3365",null,null,null,"TETRAODONTIDAE"]
["Sise","Scarus iseri",null,null,null,null,null,null,null,"Elacatinus prochilos","epro","70.46.319",null,null,null,"GOBIIDAE"]
["Ccru","Cephalopholis cruentata (Lacepède, 1802)",null,null,null,null,null,null,null,"Hypoplectrus planifrons","hpla","70.46.166",null,null,null,"SERRANIDAE"]
["Tcro","Tylosurus crocodilus",null,null,null,null,null,null,null,"Sphyraena qenie","sqen","70.55.3367",null,null,null,"SPHYRAENIDAE"]
[null,null,null,null,null,null,null,null,null,null,null,null,null,null,null,"SPHYRAENIDAE"]

{"sheet":"OTRAS REFERENCIAS","index":5,"n_rows":162,"n_cols":13,"rows_kept":162,"cut":false,"hidden":false,"merged":[[0,0,2,10],[4,0,4,1],[26,0,26,2]]}
["Estas son listas para variables con valores que no se encuentran codificados, pero que deben manejarse de manera estandarizada. \nSi se requiere agregar un valor nuevo hagalo debajo de la lista correspondiente"]
[]
[]
[]
["PROFUNDIDAD",null,null,"METODOS",null,null,null,null,null,null,null,{"$f":"IF(AND(REFERENTES!U2<>\"\",          REFERENTES!U2<>96321,    REFERENTES!U2<>96222            ),CONCATENATE(REFERENTES!T2,\"-\",REFERENTES!U2),\"\")","v":"ACU-1"},{"$f":"REFERENTES!S2","v":14311}]
["Descripcion","Codigo",null,"NOMBRE_MT","CODIGO",null,null,null,null,null,null,{"$f":"IF(AND(REFERENTES!U3<>\"\",          REFERENTES!U3<>96321,    REFERENTES!U3<>96222            ),CONCATENATE(REFERENTES!T3,\"-\",REFERENTES!U3),\"\")","v":"ACU-2"},{"$f":"REFERENTES!S3","v":14312}]
["Somero","S",null,"Manual de métodos de SIMAC: Cadena rotulada cada diez eslabones","Car",null,null,null,null,null,null,{"$f":"IF(AND(REFERENTES!U4<>\"\",          REFERENTES!U4<>96321,    REFERENTES!U4<>96222            ),CONCATENATE(REFERENTES!T4,\"-\",REFERENTES!U4),\"\")","v":"AGU-1"},{"$f":"REFERENTES!S4","v":14338}]
["Medio","M",null,null,null,null,null,null,null,null,null,{"$f":"IF(AND(REFERENTES!U5<>\"\",          REFERENTES!U5<>96321,    REFERENTES!U5<>96222            ),CONCATENATE(REFERENTES!T5,\"-\",REFERENTES!U5),\"\")","v":"AZU-1"},{"$f":"REFERENTES!S5","v":14341}]
["Profundo","P",null,null,null,null,null,null,null,null,null,{"$f":"IF(AND(REFERENTES!U6<>\"\",          REFERENTES!U6<>96321,    REFERENTES!U6<>96222            ),CONCATENATE(REFERENTES!T6,\"-\",REFERENTES!U6),\"\")","v":"AZU-2"},{"$f":"REFERENTES!S6","v":14342}]
[null,null,null,null,null,null,null,null,null,null,null,{"$f":"IF(AND(REFERENTES!U7<>\"\",          REFERENTES!U7<>96321,    REFERENTES!U7<>96222            ),CONCATENATE(REFERENTES!T7,\"-\",REFERENTES!U7),\"\")","v":"POR-1"},{"$f":"REFERENTES!S7","v":43726}]
[null,null,null,null,null,null,null,null,null,null,null,{"$f":"IF(AND(REFERENTES!U8<>\"\",          REFERENTES!U8<>96321,    REFERENTES!U8<>96222            ),CONCATENATE(REFERENTES!T8,\"-\",REFERENTES!U8),\"\")","v":"BGOR-1"},{"$f":"REFERENTES!S8","v":55425}]
[null,null,null,null,null,null,null,null,null,null,null,{"$f":"IF(AND(REFERENTES!U9<>\"\",          REFERENTES!U9<>96321,    REFERENTES!U9<>96222            ),CONCATENATE(REFERENTES!T9,\"-\",REFERENTES!U9),\"\")","v":"CTI-2"},{"$f":"REFERENTES!S9","v":14333}]
[null,null,null,null,null,null,null,null,null,null,null,{"$f":"IF(AND(REFERENTES!U10<>\"\",          REFERENTES!U10<>96321,    REFERENTES!U10<>96222            ),CONCATENATE(REFERENTES!T10,\"-\",REFERENTES!U10),\"\")","v":"CTI-1"},{"$f":"REFERENTES!S10","v":14334}]
[null,null,null,null,null,null,null,null,null,null,null,{"$f":"IF(AND(REFERENTES!U11<>\"\",          REFERENTES!U11<>96321,    REFERENTES!U11<>96222            ),CONCATENATE(REFERENTES!T11,\"-\",REFERENTES!U11),\"\")","v":"CAP-1"},{"$f":"REFERENTES!S11","v":14336}]
[null,null,null,null,null,null,null,null,null,null,null,{"$f":"IF(AND(REFERENTES!U12<>\"\",          REFERENTES!U12<>96321,    REFERENTES!U12<>96222            ),CONCATENATE(REFERENTES!T12,\"-\",REFERENTES!U12),\"\")","v":"CAP-2"},{"$f":"REFERENTES!S12","v":14337}]
[null,null,null,null,null,null,null,null,null,null,null,{"$f":"IF(AND(REFERENTES!U13<>\"\",          REFERENTES!U13<>96321,    REFERENTES!U13<>96222            ),CONCATENATE(REFERENTES!T13,\"-\",REFERENTES!U13),\"\")","v":"CEY-1"},{"$f":"REFERENTES!S13","v":14331}]
[null,null,null,null,null,null,null,null,null,null,null,{"$f":"IF(AND(REFERENTES!U14<>\"\",          REFERENTES!U14<>96321,    REFERENTES!U14<>96222            ),CONCATENATE(REFERENTES!T14,\"-\",REFERENTES!U14),\"\")","v":"CEY-2"},{"$f":"REFERENTES!S14","v":14308}]
[null,null,null,null,null,null,null,null,null,null,null,{"$f":"IF(AND(REFERENTES!U15<>\"\",          REFERENTES!U15<>96321,    REFERENTES!U15<>96222            ),CONCATENATE(REFERENTES!T15,\"-\",REFERENTES!U15),\"\")","v":"CEY-3"},{"$f":"REFERENTES!S15","v":41651}]
[null,null,null,null,null,null,null,null,null,null,null,{"$f":"IF(AND(REFERENTES!U16<>\"\",          REFERENTES!U16<>96321,    REFERENTES!U16<>96222            ),CONCATENATE(REFERENTES!T16,\"-\",REFERENTES!U16),\"\")","v":"CHE-4"},{"$f":"REFERENTES!S16","v":41705}]
[null,null,null,null,null,null,null,null,null,null,null,{"$f":"IF(AND(REFERENTES!U17<>\"\",          REFERENTES!U17<>96321,    REFERENTES!U17<>96222            ),CONCATENATE(REFERENTES!T17,\"-\",REFERENTES!U17),\"\")","v":"CHE-3"},{"$f":"REFERENTES!S17","v":15508}]
[null,null,null,null,null,null,null,null,null,null,null,{"$f":"IF(AND(REFERENTES!U18<>\"\",          REFERENTES!U18<>96321,    REFERENTES!U18<>96222            ),CONCATENATE(REFERENTES!T18,\"-\",REFERENTES!U18),\"\")","v":"CHE-1"},{"$f":"REFERENTES!S18","v":14297}]
[null,null,null,null,null,null,null,null,null,null,null,{"$f":"IF(AND(REFERENTES!U19<>\"\",          REFERENTES!U19<>96321,    REFERENTES!U19<>96222            ),CONCATENATE(REFERENTES!T19,\"-\",REFERENTES!U19),\"\")","v":"CHE-2"},{"$f":"REFERENTES!S19","v":14298}]
[null,null,null,null,null,null,null,null,null,null,null,{"$f":"IF(AND(REFERENTES!U20<>\"\",          REFERENTES!U20<>96321,    REFERENTES!U20<>96222            ),CONCATENATE(REFERENTES!T20,\"-\",REFERENTES!U20),\"\")","v":"CIN-2"},{"$f":"REFERENTES!S20","v":41704}]
[null,null,null,null,null,null,null,null,null,null,null,{"$f":"IF(AND(REFERENTES!U21<>\"\",          REFERENTES!U21<>96321,    REFERENTES!U21<>96222            ),CONCATENATE(REFERENTES!T21,\"-\",REFERENTES!U21),\"\")","v":"CIN-1"},{"$f":"REFERENTES!S21","v":41703}]
[null,null,null,null,null,null,null,null,null,null,null,{"$f":"IF(AND(REFERENTES!U22<>\"\",          REFERENTES!U22<>96321,    REFERENTES!U22<>96222            ),CONCATENATE(REFERENTES!T22,\"-\",REFERENTES!U22),\"\")","v":"MAL-1"},{"$f":"REFERENTES!S22","v":14325}]
[null,null,null,null,null,null,null,null,null,null,null,{"$f":"IF(AND(REFERENTES!U23<>\"\",          REFERENTES!U23<>96321,    REFERENTES!U23<>96222            ),CONCATENATE(REFERENTES!T23,\"-\",REFERENTES!U23),\"\")","v":"CAN-1"},{"$f":"REFERENTES!S23","v":14315}]
["CODIGOS LOV",null,null,null,null,null,null,null,null,null,null,{"$f":"IF(AND(REFERENTES!U24<>\"\",          REFERENTES!U24<>96321,    REFERENTES!U24<>96222            ),CONCATENATE(REFERENTES!T24,\"-\",REFERENTES!U24),\"\")","v":"CAN-2"},{"$f":"REFERENTES!S24","v":14316}]
["DESCRIPCIÓN","CÓDIGO","GRUPO",null,null,null,null,null,null,null,null,{"$f":"IF(AND(REFERENTES!U25<>\"\",          REFERENTES!U25<>96321,    REFERENTES!U25<>96222            ),CONCATENATE(REFERENTES!T25,\"-\",REFERENTES!U25),\"\")","v":"MRO-1"},{"$f":"REFERENTES!S25","v":14303}]
["Departamento",10,2,null,null,null,null,null,null,null,null,{"$f":"IF(AND(REFERENTES!U26<>\"\",          REFERENTES!U26<>96321,    REFERENTES!U26<>96222            ),CONCATENATE(REFERENTES!T26,\"-\",REFERENTES!U26),\"\")","v":"EMI-1"},{"$f":"REFERENTES!S26","v":14309}]
["Sector",20,2,null,null,null,null,null,null,null,null,{"$f":"IF(AND(REFERENTES!U27<>\"\",          REFERENTES!U27<>96321,    REFERENTES!U27<>96222            ),CONCATENATE(REFERENTES!T27,\"-\",REFERENTES!U27),\"\")","v":"EMI-2"},{"$f":"REFERENTES!S27","v":14310}]
["Punto",30,2,null,null,null,null,null,null,null,null,{"$f":"IF(AND(REFERENTES!U28<>\"\",          REFERENTES!U28<>96321,    REFERENTES!U28<>96222            ),CONCATENATE(REFERENTES!T28,\"-\",REFERENTES!U28),\"\")","v":"IFU-1"},{"$f":"REFERENTES!S28","v":37118}]
["Parcela",35,2,null,null,null,null,null,null,null,null,{"$f":"IF(AND(REFERENTES!U29<>\"\",          REFERENTES!U29<>96321,    REFERENTES!U29<>96222            ),CONCATENATE(REFERENTES!T29,\"-\",REFERENTES!U29),\"\")","v":"GAY-1"},{"$f":"REFERENTES!S29","v":14302}]
["Estaciones",40,2,null,null,null,null,null,null,null,null,{"$f":"IF(AND(REFERENTES!U30<>\"\",          REFERENTES!U30<>96321,    REFERENTES!U30<>96222            ),CONCATENATE(REFERENTES!T30,\"-\",REFERENTES!U30),\"\")","v":"GAY-2"},{"$f":"REFERENTES!S30","v":14323}]
["Region",50,2,null,null,null,null,null,null,null,null,{"$f":"IF(AND(REFERENTES!U31<>\"\",          REFERENTES!U31<>96321,    REFERENTES!U31<>96222            ),CONCATENATE(REFERENTES!T31,\"-\",REFERENTES!U31),\"\")","v":"GAY-3"},{"$f":"REFERENTES!S31","v":40219}]
["Unidad_de_Manejo",60,2,null,null,null,null,null,null,null,null,{"$f":"IF(AND(REFERENTES!U32<>\"\",          REFERENTES!U32<>96321,    REFERENTES!U32<>96222            ),CONCATENATE(REFERENTES!T32,\"-\",REFERENTES!U32),\"\")","v":"GRA-1"},{"$f":"REFERENTES!S32","v":14324}]
["Unidad_Ambiental_Costera",70,2,null,null,null,null,null,null,null,null,{"$f":"IF(AND(REFERENTES!U33<>\"\",          REFERENTES!U33<>96321,    REFERENTES!U33<>96222            ),CONCATENATE(REFERENTES!T33,\"-\",REFERENTES!U33),\"\")","v":"IGU-1"},{"$f":"REFERENTES!S33","v":14339}]
["Localidad",80,2,null,null,null,null,null,null,null,null,{"$f":"IF(AND(REFERENTES!U34<>\"\",          REFERENTES!U34<>96321,    REFERENTES!U34<>96222            ),CONCATENATE(REFERENTES!T34,\"-\",REFERENTES!U34),\"\")","v":"ARE-1"},{"$f":"REFERENTES!S34","v":41546}]
["Bloque_Exploracion",85,2,null,null,null,null,null,null,null,null,{"$f":"IF(AND(REFERENTES!U35<>\"\",          REFERENTES!U35<>96321,    REFERENTES!U35<>96222            ),CONCATENATE(REFERENTES!T35,\"-\",REFERENTES!U35),\"\")","v":"IGR-1"},{"$f":"REFERENTES!S35","v":41545}]
["Area",90,2,null,null,null,null,null,null,null,null,{"$f":"IF(AND(REFERENTES!U36<>\"\",          REFERENTES!U36<>96321,    REFERENTES!U36<>96222            ),CONCATENATE(REFERENTES!T36,\"-\",REFERENTES!U36),\"\")","v":"JCA-1"},{"$f":"REFERENTES!S36","v":48967}]
[null,null,null,null,null,null,null,null,null,null,null,{"$f":"IF(AND(REFERENTES!U37<>\"\",          REFERENTES!U37<>96321,    REFERENTES!U37<>96222            ),CONCATENATE(REFERENTES!T37,\"-\",REFERENTES!U37),\"\")","v":"CHO-1"},{"$f":"REFERENTES!S37","v":14296}]
[null,null,null,null,null,null,null,null,null,null,null,{"$f":"IF(AND(REFERENTES!U38<>\"\",          REFERENTES!U38<>96321,    REFERENTES!U38<>96222            ),CONCATENATE(REFERENTES!T38,\"-\",REFERENTES!U38),\"\")","v":"CHO-2"},{"$f":"REFERENTES!S38","v":14326}]
[null,null,null,null,null,null,null,null,null,null,null,{"$f":"IF(AND(REFERENTES!U39<>\"\",          REFERENTES!U39<>96321,    REFERENTES!U39<>96222            ),CONCATENATE(REFERENTES!T39,\"-\",REFERENTES!U39),\"\")","v":"CHO-3"},{"$f":"REFERENTES!S39","v":14304}]
[null,null,null,null,null,null,null,null,null,null,null,{"$f":"IF(AND(REFERENTES!U40<>\"\",          REFERENTES!U40<>96321,    REFERENTES!U40<>96222            ),CONCATENATE(REFERENTES!T40,\"-\",REFERENTES!U40),\"\")","v":"CHO-4"},{"$f":"REFERENTES!S40","v":14327}]
[null,null,null,null,null,null,null,null,null,null,null,{"$f":"IF(AND(REFERENTES!U41<>\"\",          REFERENTES!U41<>96321,    REFERENTES!U41<>96222            ),CONCATENATE(REFERENTES!T41,\"-\",REFERENTES!U41),\"\")","v":"CHO-5"},{"$f":"REFERENTES!S41","v":14328}]
[null,null,null,null,null,null,null,null,null,null,null,{"$f":"IF(AND(REFERENTES!U42<>\"\",          REFERENTES!U42<>96321,    REFERENTES!U42<>96222            ),CONCATENATE(REFERENTES!T42,\"-\",REFERENTES!U42),\"\")","v":"CHO-6"},{"$f":"REFERENTES!S42","v":14329}]
[null,null,null,null,null,null,null,null,null,null,null,{"$f":"IF(AND(REFERENTES!U43<>\"\",          REFERENTES!U43<>96321,    REFERENTES!U43<>96222            ),CONCATENATE(REFERENTES!T43,\"-\",REFERENTES!U43),\"\")","v":"COC-1"},{"$f":"REFERENTES!S43","v":37122}]
[null,null,null,null,null,null,null,null,null,null,null,{"$f":"IF(AND(REFERENTES!U44<>\"\",          REFERENTES!U44<>96321,    REFERENTES!U44<>96222            ),CONCATENATE(REFERENTES!T44,\"-\",REFERENTES!U44),\"\")","v":"MAL-2"},{"$f":"REFERENTES!S44","v":43098}]
[null,null,null,null,null,null,null,null,null,null,null,{"$f":"IF(AND(REFERENTES!U45<>\"\",          REFERENTES!U45<>96321,    REFERENTES!U45<>96222            ),CONCATENATE(REFERENTES!T45,\"-\",REFERENTES!U45),\"\")","v":"VEN-4"},{"$f":"REFERENTES!S45","v":41695}]
[null,null,null,null,null,null,null,null,null,null,null,{"$f":"IF(AND(REFERENTES!U46<>\"\",          REFERENTES!U46<>96321,    REFERENTES!U46<>96222            ),CONCATENATE(REFERENTES!T46,\"-\",REFERENTES!U46),\"\")","v":"VEN-3"},{"$f":"REFERENTES!S46","v":41694}]
[null,null,null,null,null,null,null,null,null,null,null,{"$f":"IF(AND(REFERENTES!U47<>\"\",          REFERENTES!U47<>96321,    REFERENTES!U47<>96222            ),CONCATENATE(REFERENTES!T47,\"-\",REFERENTES!U47),\"\")","v":"VEN-1"},{"$f":"REFERENTES!S47","v":41692}]
[null,null,null,null,null,null,null,null,null,null,null,{"$f":"IF(AND(REFERENTES!U48<>\"\",          REFERENTES!U48<>96321,    REFERENTES!U48<>96222            ),CONCATENATE(REFERENTES!T48,\"-\",REFERENTES!U48),\"\")","v":"VEN-2"},{"$f":"REFERENTES!S48","v":41693}]
[null,null,null,null,null,null,null,null,null,null,null,{"$f":"IF(AND(REFERENTES!U49<>\"\",          REFERENTES!U49<>96321,    REFERENTES!U49<>96222            ),CONCATENATE(REFERENTES!T49,\"-\",REFERENTES!U49),\"\")","v":"PAL-1"},{"$f":"REFERENTES!S49","v":41547}]
[null,null,null,null,null,null,null,null,null,null,null,{"$f":"IF(AND(REFERENTES!U50<>\"\",          REFERENTES!U50<>96321,    REFERENTES!U50<>96222            ),CONCATENATE(REFERENTES!T50,\"-\",REFERENTES!U50),\"\")","v":"LIT-1"},{"$f":"REFERENTES!S50","v":14313}]
[null,null,null,null,null,null,null,null,null,null,null,{"$f":"IF(AND(REFERENTES!U51<>\"\",          REFERENTES!U51<>96321,    REFERENTES!U51<>96222            ),CONCATENATE(REFERENTES!T51,\"-\",REFERENTES!U51),\"\")","v":"LIT-2"},{"$f":"REFERENTES!S51","v":14314}]
[null,null,null,null,null,null,null,null,null,null,null,{"$f":"IF(AND(REFERENTES!U52<>\"\",          REFERENTES!U52<>96321,    REFERENTES!U52<>96222            ),CONCATENATE(REFERENTES!T52,\"-\",REFERENTES!U52),\"\")","v":"IFU-2"},{"$f":"REFERENTES!S52","v":37119}]
[null,null,null,null,null,null,null,null,null,null,null,{"$f":"IF(AND(REFERENTES!U53<>\"\",          REFERENTES!U53<>96321,    REFERENTES!U53<>96222            ),CONCATENATE(REFERENTES!T53,\"-\",REFERENTES!U53),\"\")","v":"MAR-1"},{"$f":"REFERENTES!S53","v":41699}]
[null,null,null,null,null,null,null,null,null,null,null,{"$f":"IF(AND(REFERENTES!U54<>\"\",          REFERENTES!U54<>96321,    REFERENTES!U54<>96222            ),CONCATENATE(REFERENTES!T54,\"-\",REFERENTES!U54),\"\")","v":"MAN-1"},{"$f":"REFERENTES!S54","v":14305}]
[null,null,null,null,null,null,null,null,null,null,null,{"$f":"IF(AND(REFERENTES!U55<>\"\",          REFERENTES!U55<>96321,    REFERENTES!U55<>96222            ),CONCATENATE(REFERENTES!T55,\"-\",REFERENTES!U55),\"\")","v":"MAN-2"},{"$f":"REFERENTES!S55","v":14307}]
[null,null,null,null,null,null,null,null,null,null,null,{"$f":"IF(AND(REFERENTES!U56<>\"\",          REFERENTES!U56<>96321,    REFERENTES!U56<>96222            ),CONCATENATE(REFERENTES!T56,\"-\",REFERENTES!U56),\"\")","v":"MAZ-1"},{"$f":"REFERENTES!S56","v":14317}]
[null,null,null,null,null,null,null,null,null,null,null,{"$f":"IF(AND(REFERENTES!U57<>\"\",          REFERENTES!U57<>96321,    REFERENTES!U57<>96222            ),CONCATENATE(REFERENTES!T57,\"-\",REFERENTES!U57),\"\")","v":"MAZ-2"},{"$f":"REFERENTES!S57","v":14318}]
[null,null,null,null,null,null,null,null,null,null,null,{"$f":"IF(AND(REFERENTES!U58<>\"\",          REFERENTES!U58<>96321,    REFERENTES!U58<>96222            ),CONCATENATE(REFERENTES!T58,\"-\",REFERENTES!U58),\"\")","v":"MRC-1"},{"$f":"REFERENTES!S58","v":41698}]
[null,null,null,null,null,null,null,null,null,null,null,{"$f":"IF(AND(REFERENTES!U59<>\"\",          REFERENTES!U59<>96321,    REFERENTES!U59<>96222            ),CONCATENATE(REFERENTES!T59,\"-\",REFERENTES!U59),\"\")","v":"MIN-1"},{"$f":"REFERENTES!S59","v":14306}]
[null,null,null,null,null,null,null,null,null,null,null,{"$f":"IF(AND(REFERENTES!U60<>\"\",          REFERENTES!U60<>96321,    REFERENTES!U60<>96222            ),CONCATENATE(REFERENTES!T60,\"-\",REFERENTES!U60),\"\")","v":"NCH-1"},{"$f":"REFERENTES!S60","v":42263}]
[null,null,null,null,null,null,null,null,null,null,null,{"$f":"IF(AND(REFERENTES!U61<>\"\",          REFERENTES!U61<>96321,    REFERENTES!U61<>96222            ),CONCATENATE(REFERENTES!T61,\"-\",REFERENTES!U61),\"\")","v":"NEG-2"},{"$f":"REFERENTES!S61","v":41702}]
[null,null,null,null,null,null,null,null,null,null,null,{"$f":"IF(AND(REFERENTES!U62<>\"\",          REFERENTES!U62<>96321,    REFERENTES!U62<>96222            ),CONCATENATE(REFERENTES!T62,\"-\",REFERENTES!U62),\"\")","v":"NEG-1"},{"$f":"REFERENTES!S62","v":41701}]
[null,null,null,null,null,null,null,null,null,null,null,{"$f":"IF(AND(REFERENTES!U63<>\"\",          REFERENTES!U63<>96321,    REFERENTES!U63<>96222            ),CONCATENATE(REFERENTES!T63,\"-\",REFERENTES!U63),\"\")","v":"NET-1"},{"$f":"REFERENTES!S63","v":37120}]
[null,null,null,null,null,null,null,null,null,null,null,{"$f":"IF(AND(REFERENTES!U64<>\"\",          REFERENTES!U64<>96321,    REFERENTES!U64<>96222            ),CONCATENATE(REFERENTES!T64,\"-\",REFERENTES!U64),\"\")","v":"NET-2"},{"$f":"REFERENTES!S64","v":52325}]
[null,null,null,null,null,null,null,null,null,null,null,{"$f":"IF(AND(REFERENTES!U65<>\"\",          REFERENTES!U65<>96321,    REFERENTES!U65<>96222            ),CONCATENATE(REFERENTES!T65,\"-\",REFERENTES!U65),\"\")","v":"OCE-1"},{"$f":"REFERENTES!S65","v":37121}]
[null,null,null,null,null,null,null,null,null,null,null,{"$f":"IF(AND(REFERENTES!U66<>\"\",          REFERENTES!U66<>96321,    REFERENTES!U66<>96222            ),CONCATENATE(REFERENTES!T66,\"-\",REFERENTES!U66),\"\")","v":"PAV-1"},{"$f":"REFERENTES!S66","v":14300}]
[null,null,null,null,null,null,null,null,null,null,null,{"$f":"IF(AND(REFERENTES!U67<>\"\",          REFERENTES!U67<>96321,    REFERENTES!U67<>96222            ),CONCATENATE(REFERENTES!T67,\"-\",REFERENTES!U67),\"\")","v":"PLA-2"},{"$f":"REFERENTES!S67","v":14295}]
[null,null,null,null,null,null,null,null,null,null,null,{"$f":"IF(AND(REFERENTES!U68<>\"\",          REFERENTES!U68<>96321,    REFERENTES!U68<>96222            ),CONCATENATE(REFERENTES!T68,\"-\",REFERENTES!U68),\"\")","v":"PLA-3"},{"$f":"REFERENTES!S68","v":41690}]
[null,null,null,null,null,null,null,null,null,null,null,{"$f":"IF(AND(REFERENTES!U69<>\"\",          REFERENTES!U69<>96321,    REFERENTES!U69<>96222            ),CONCATENATE(REFERENTES!T69,\"-\",REFERENTES!U69),\"\")","v":"PLA-4"},{"$f":"REFERENTES!S69","v":41691}]
[null,null,null,null,null,null,null,null,null,null,null,{"$f":"IF(AND(REFERENTES!U70<>\"\",          REFERENTES!U70<>96321,    REFERENTES!U70<>96222            ),CONCATENATE(REFERENTES!T70,\"-\",REFERENTES!U70),\"\")","v":"PLA-1"},{"$f":"REFERENTES!S70","v":14343}]
[null,null,null,null,null,null,null,null,null,null,null,{"$f":"IF(AND(REFERENTES!U71<>\"\",          REFERENTES!U71<>96321,    REFERENTES!U71<>96222            ),CONCATENATE(REFERENTES!T71,\"-\",REFERENTES!U71),\"\")","v":"PBLA-1"},{"$f":"REFERENTES!S71","v":52865}]
[null,null,null,null,null,null,null,null,null,null,null,{"$f":"IF(AND(REFERENTES!U72<>\"\",          REFERENTES!U72<>96321,    REFERENTES!U72<>96222            ),CONCATENATE(REFERENTES!T72,\"-\",REFERENTES!U72),\"\")","v":"PBA-2"},{"$f":"REFERENTES!S72","v":38924}]
[null,null,null,null,null,null,null,null,null,null,null,{"$f":"IF(AND(REFERENTES!U73<>\"\",          REFERENTES!U73<>96321,    REFERENTES!U73<>96222            ),CONCATENATE(REFERENTES!T73,\"-\",REFERENTES!U73),\"\")","v":"PBR-1"},{"$f":"REFERENTES!S73","v":41548}]
[null,null,null,null,null,null,null,null,null,null,null,{"$f":"IF(AND(REFERENTES!U74<>\"\",          REFERENTES!U74<>96321,    REFERENTES!U74<>96222            ),CONCATENATE(REFERENTES!T74,\"-\",REFERENTES!U74),\"\")","v":"PBT-1"},{"$f":"REFERENTES!S74","v":14301}]
[null,null,null,null,null,null,null,null,null,null,null,{"$f":"IF(AND(REFERENTES!U75<>\"\",          REFERENTES!U75<>96321,    REFERENTES!U75<>96222            ),CONCATENATE(REFERENTES!T75,\"-\",REFERENTES!U75),\"\")","v":"SFE-1"},{"$f":"REFERENTES!S75","v":14321}]
[null,null,null,null,null,null,null,null,null,null,null,{"$f":"IF(AND(REFERENTES!U76<>\"\",          REFERENTES!U76<>96321,    REFERENTES!U76<>96222            ),CONCATENATE(REFERENTES!T76,\"-\",REFERENTES!U76),\"\")","v":"SFE-2"},{"$f":"REFERENTES!S76","v":14322}]
[null,null,null,null,null,null,null,null,null,null,null,{"$f":"IF(AND(REFERENTES!U77<>\"\",          REFERENTES!U77<>96321,    REFERENTES!U77<>96222            ),CONCATENATE(REFERENTES!T77,\"-\",REFERENTES!U77),\"\")","v":"TES-1"},{"$f":"REFERENTES!S77","v":14299}]
[null,null,null,null,null,null,null,null,null,null,null,{"$f":"IF(AND(REFERENTES!U78<>\"\",          REFERENTES!U78<>96321,    REFERENTES!U78<>96222            ),CONCATENATE(REFERENTES!T78,\"-\",REFERENTES!U78),\"\")","v":"TES-2"},{"$f":"REFERENTES!S78","v":41549}]
[null,null,null,null,null,null,null,null,null,null,null,{"$f":"IF(AND(REFERENTES!U79<>\"\",          REFERENTES!U79<>96321,    REFERENTES!U79<>96222            ),CONCATENATE(REFERENTES!T79,\"-\",REFERENTES!U79),\"\")","v":"BAR-1"},{"$f":"REFERENTES!S79","v":14319}]
[null,null,null,null,null,null,null,null,null,null,null,{"$f":"IF(AND(REFERENTES!U80<>\"\",          REFERENTES!U80<>96321,    REFERENTES!U80<>96222            ),CONCATENATE(REFERENTES!T80,\"-\",REFERENTES!U80),\"\")","v":"BAR-2"},{"$f":"REFERENTES!S80","v":14320}]
[null,null,null,null,null,null,null,null,null,null,null,{"$f":"IF(AND(REFERENTES!U81<>\"\",          REFERENTES!U81<>96321,    REFERENTES!U81<>96222            ),CONCATENATE(REFERENTES!T81,\"-\",REFERENTES!U81),\"\")","v":"TNT-1"},{"$f":"REFERENTES!S81","v":41697}]
[null,null,null,null,null,null,null,null,null,null,null,{"$f":"IF(AND(REFERENTES!U82<>\"\",          REFERENTES!U82<>96321,    REFERENTES!U82<>96222            ),CONCATENATE(REFERENTES!T82,\"-\",REFERENTES!U82),\"\")","v":"TNT-2"},{"$f":"REFERENTES!S82","v":41696}]
[null,null,null,null,null,null,null,null,null,null,null,{"$f":"IF(AND(REFERENTES!U83<>\"\",          REFERENTES!U83<>96321,    REFERENTES!U83<>96222            ),CONCATENATE(REFERENTES!T83,\"-\",REFERENTES!U83),\"\")","v":"TIO-1"},{"$f":"REFERENTES!S83","v":14332}]
[null,null,null,null,null,null,null,null,null,null,null,{"$f":"IF(AND(REFERENTES!U84<>\"\",          REFERENTES!U84<>96321,    REFERENTES!U84<>96222            ),CONCATENATE(REFERENTES!T84,\"-\",REFERENTES!U84),\"\")","v":"VAR-1"},{"$f":"REFERENTES!S84","v":49084}]
[null,null,null,null,null,null,null,null,null,null,null,{"$f":"IF(AND(REFERENTES!U85<>\"\",          REFERENTES!U85<>96321,    REFERENTES!U85<>96222            ),CONCATENATE(REFERENTES!T85,\"-\",REFERENTES!U85),\"\")","v":"VAR-2"},{"$f":"REFERENTES!S85","v":49085}]
[null,null,null,null,null,null,null,null,null,null,null,{"$f":"IF(AND(REFERENTES!U86<>\"\",          REFERENTES!U86<>96321,    REFERENTES!U86<>96222            ),CONCATENATE(REFERENTES!T86,\"-\",REFERENTES!U86),\"\")","v":"VAR-3"},{"$f":"REFERENTES!S86","v":49086}]
[null,null,null,null,null,null,null,null,null,null,null,{"$f":"IF(AND(REFERENTES!U87<>\"\",          REFERENTES!U87<>96321,    REFERENTES!U87<>96222            ),CONCATENATE(REFERENTES!T87,\"-\",REFERENTES!U87),\"\")","v":"WHI-1"},{"$f":"REFERENTES!S87","v":41700}]
[null,null,null,null,null,null,null,null,null,null,null,{"$f":"IF(AND(REFERENTES!U88<>\"\",          REFERENTES!U88<>96321,    REFERENTES!U88<>96222            ),CONCATENATE(REFERENTES!T88,\"-\",REFERENTES!U88),\"\")","v":"WLF-1"},{"$f":"REFERENTES!S88","v":14340}]
[null,null,null,null,null,null,null,null,null,null,null,{"$f":"IF(AND(REFERENTES!U89<>\"\",          REFERENTES!U89<>96321,    REFERENTES!U89<>96222            ),CONCATENATE(REFERENTES!T89,\"-\",REFERENTES!U89),\"\")","v":"ZAP-1"},{"$f":"REFERENTES!S89","v":14335}]
[null,null,null,null,null,null,null,null,null,null,null,{"$f":"IF(AND(REFERENTES!U90<>\"\",          REFERENTES!U90<>96321,    REFERENTES!U90<>96222            ),CONCATENATE(REFERENTES!T90,\"-\",REFERENTES!U90),\"\")","v":""},{"$f":"REFERENTES!S90","v":49009}]
[null,null,null,null,null,null,null,null,null,null,null,{"$f":"IF(AND(REFERENTES!U91<>\"\",          REFERENTES!U91<>96321,    REFERENTES!U91<>96222            ),CONCATENATE(REFERENTES!T91,\"-\",REFERENTES!U91),\"\")","v":""},{"$f":"REFERENTES!S91","v":49010}]
[null,null,null,null,null,null,null,null,null,null,null,{"$f":"IF(AND(REFERENTES!U92<>\"\",          REFERENTES!U92<>96321,    REFERENTES!U92<>96222            ),CONCATENATE(REFERENTES!T92,\"-\",REFERENTES!U92),\"\")","v":""},{"$f":"REFERENTES!S92","v":49012}]
[null,null,null,null,null,null,null,null,null,null,null,{"$f":"IF(AND(REFERENTES!U93<>\"\",          REFERENTES!U93<>96321,    REFERENTES!U93<>96222            ),CONCATENATE(REFERENTES!T93,\"-\",REFERENTES!U93),\"\")","v":""},{"$f":"REFERENTES!S93","v":51553}]
[null,null,null,null,null,null,null,null,null,null,null,{"$f":"IF(AND(REFERENTES!U94<>\"\",          REFERENTES!U94<>96321,    REFERENTES!U94<>96222            ),CONCATENATE(REFERENTES!T94,\"-\",REFERENTES!U94),\"\")","v":""},{"$f":"REFERENTES!S94","v":49021}]
[null,null,null,null,null,null,null,null,null,null,null,{"$f":"IF(AND(REFERENTES!U95<>\"\",          REFERENTES!U95<>96321,    REFERENTES!U95<>96222            ),CONCATENATE(REFERENTES!T95,\"-\",REFERENTES!U95),\"\")","v":""},{"$f":"REFERENTES!S95","v":49015}]
[null,null,null,null,null,null,null,null,null,null,null,{"$f":"IF(AND(REFERENTES!U96<>\"\",          REFERENTES!U96<>96321,    REFERENTES!U96<>96222            ),CONCATENATE(REFERENTES!T96,\"-\",REFERENTES!U96),\"\")","v":""},{"$f":"REFERENTES!S96","v":49016}]
[null,null,null,null,null,null,null,null,null,null,null,{"$f":"IF(AND(REFERENTES!U97<>\"\",          REFERENTES!U97<>96321,    REFERENTES!U97<>96222            ),CONCATENATE(REFERENTES!T97,\"-\",REFERENTES!U97),\"\")","v":""},{"$f":"REFERENTES!S97","v":49017}]
[null,null,null,null,null,null,null,null,null,null,null,{"$f":"IF(AND(REFERENTES!U98<>\"\",          REFERENTES!U98<>96321,    REFERENTES!U98<>96222            ),CONCATENATE(REFERENTES!T98,\"-\",REFERENTES!U98),\"\")","v":""},{"$f":"REFERENTES!S98","v":49019}]
[null,null,null,null,null,null,null,null,null,null,null,{"$f":"IF(AND(REFERENTES!U99<>\"\",          REFERENTES!U99<>96321,    REFERENTES!U99<>96222            ),CONCATENATE(REFERENTES!T99,\"-\",REFERENTES!U99),\"\")","v":""},{"$f":"REFERENTES!S99","v":49014}]
[null,null,null,null,null,null,null,null,null,null,null,{"$f":"IF(AND(REFERENTES!U100<>\"\",          REFERENTES!U100<>96321,    REFERENTES!U100<>96222            ),CONCATENATE(REFERENTES!T100,\"-\",REFERENTES!U100),\"\")","v":""},{"$f":"REFERENTES!S100","v":49036}]
[null,null,null,null,null,null,null,null,null,null,null,{"$f":"IF(AND(REFERENTES!U101<>\"\",          REFERENTES!U101<>96321,    REFERENTES!U101<>96222            ),CONCATENATE(REFERENTES!T101,\"-\",REFERENTES!U101),\"\")","v":""},{"$f":"REFERENTES!S101","v":49022}]
[null,null,null,null,null,null,null,null,null,null,null,{"$f":"IF(AND(REFERENTES!U102<>\"\",          REFERENTES!U102<>96321,    REFERENTES!U102<>96222            ),CONCATENATE(REFERENTES!T102,\"-\",REFERENTES!U102),\"\")","v":""},{"$f":"REFERENTES!S102","v":49023}]
[null,null,null,null,null,null,null,null,null,null,null,{"$f":"IF(AND(REFERENTES!U103<>\"\",          REFERENTES!U103<>96321,    REFERENTES!U103<>96222            ),CONCATENATE(REFERENTES!T103,\"-\",REFERENTES!U103),\"\")","v":""},{"$f":"REFERENTES!S103","v":49024}]
[null,null,null,null,null,null,null,null,null,null,null,{"$f":"IF(AND(REFERENTES!U104<>\"\",          REFERENTES!U104<>96321,    REFERENTES!U104<>96222            ),CONCATENATE(REFERENTES!T104,\"-\",REFERENTES!U104),\"\")","v":""},{"$f":"REFERENTES!S104","v":49027}]
[null,null,null,null,null,null,null,null,null,null,null,{"$f":"IF(AND(REFERENTES!U105<>\"\",          REFERENTES!U105<>96321,    REFERENTES!U105<>96222            ),CONCATENATE(REFERENTES!T105,\"-\",REFERENTES!U105),\"\")","v":""},{"$f":"REFERENTES!S105","v":49011}]
[null,null,null,null,null,null,null,null,null,null,null,{"$f":"IF(AND(REFERENTES!U106<>\"\",          REFERENTES!U106<>96321,    REFERENTES!U106<>96222            ),CONCATENATE(REFERENTES!T106,\"-\",REFERENTES!U106),\"\")","v":""},{"$f":"REFERENTES!S106","v":49025}]
[null,null,null,null,null,null,null,null,null,null,null,{"$f":"IF(AND(REFERENTES!U107<>\"\",          REFERENTES!U107<>96321,    REFERENTES!U107<>96222            ),CONCATENATE(REFERENTES!T107,\"-\",REFERENTES!U107),\"\")","v":""},{"$f":"REFERENTES!S107","v":49026}]
[null,null,null,null,null,null,null,null,null,null,null,{"$f":"IF(AND(REFERENTES!U108<>\"\",          REFERENTES!U108<>96321,    REFERENTES!U108<>96222            ),CONCATENATE(REFERENTES!T108,\"-\",REFERENTES!U108),\"\")","v":""},{"$f":"REFERENTES!S108","v":49028}]
[null,null,null,null,null,null,null,null,null,null,null,{"$f":"IF(AND(REFERENTES!U109<>\"\",          REFERENTES!U109<>96321,    REFERENTES!U109<>96222            ),CONCATENATE(REFERENTES!T109,\"-\",REFERENTES!U109),\"\")","v":""},{"$f":"REFERENTES!S109","v":49018}]
[null,null,null,null,null,null,null,null,null,null,null,{"$f":"IF(AND(REFERENTES!U110<>\"\",          REFERENTES!U110<>96321,    REFERENTES!U110<>96222            ),CONCATENATE(REFERENTES!T110,\"-\",REFERENTES!U110),\"\")","v":""},{"$f":"REFERENTES!S110","v":49020}]
[null,null,null,null,null,null,null,null,null,null,null,{"$f":"IF(AND(REFERENTES!U111<>\"\",          REFERENTES!U111<>96321,    REFERENTES!U111<>96222            ),CONCATENATE(REFERENTES!T111,\"-\",REFERENTES!U111),\"\")","v":""},{"$f":"REFERENTES!S111","v":51556}]
[null,null,null,null,null,null,null,null,null,null,null,{"$f":"IF(AND(REFERENTES!U112<>\"\",          REFERENTES!U112<>96321,    REFERENTES!U112<>96222            ),CONCATENATE(REFERENTES!T112,\"-\",REFERENTES!U112),\"\")","v":""},{"$f":"REFERENTES!S112","v":49041}]
[null,null,null,null,null,null,null,null,null,null,null,{"$f":"IF(AND(REFERENTES!U113<>\"\",          REFERENTES!U113<>96321,    REFERENTES!U113<>96222            ),CONCATENATE(REFERENTES!T113,\"-\",REFERENTES!U113),\"\")","v":""},{"$f":"REFERENTES!S113","v":49029}]
[null,null,null,null,null,null,null,null,null,null,null,{"$f":"IF(AND(REFERENTES!U114<>\"\",          REFERENTES!U114<>96321,    REFERENTES!U114<>96222            ),CONCATENATE(REFERENTES!T114,\"-\",REFERENTES!U114),\"\")","v":""},{"$f":"REFERENTES!S114","v":49030}]
[null,null,null,null,null,null,null,null,null,null,null,{"$f":"IF(AND(REFERENTES!U115<>\"\",          REFERENTES!U115<>96321,    REFERENTES!U115<>96222            ),CONCATENATE(REFERENTES!T115,\"-\",REFERENTES!U115),\"\")","v":""},{"$f":"REFERENTES!S115","v":49031}]
[null,null,null,null,null,null,null,null,null,null,null,{"$f":"IF(AND(REFERENTES!U116<>\"\",          REFERENTES!U116<>96321,    REFERENTES!U116<>96222            ),CONCATENATE(REFERENTES!T116,\"-\",REFERENTES!U116),\"\")","v":""},{"$f":"REFERENTES!S116","v":49033}]
[null,null,null,null,null,null,null,null,null,null,null,{"$f":"IF(AND(REFERENTES!U117<>\"\",          REFERENTES!U117<>96321,    REFERENTES!U117<>96222            ),CONCATENATE(REFERENTES!T117,\"-\",REFERENTES!U117),\"\")","v":""},{"$f":"REFERENTES!S117","v":49032}]
[null,null,null,null,null,null,null,null,null,null,null,{"$f":"IF(AND(REFERENTES!U118<>\"\",          REFERENTES!U118<>96321,    REFERENTES!U118<>96222            ),CONCATENATE(REFERENTES!T118,\"-\",REFERENTES!U118),\"\")","v":""},{"$f":"REFERENTES!S118","v":49035}]
[null,null,null,null,null,null,null,null,null,null,null,{"$f":"IF(AND(REFERENTES!U119<>\"\",          REFERENTES!U119<>96321,    REFERENTES!U119<>96222            ),CONCATENATE(REFERENTES!T119,\"-\",REFERENTES!U119),\"\")","v":""},{"$f":"REFERENTES!S119","v":49034}]
[null,null,null,null,null,null,null,null,null,null,null,{"$f":"IF(AND(REFERENTES!U120<>\"\",          REFERENTES!U120<>96321,    REFERENTES!U120<>96222            ),CONCATENATE(REFERENTES!T120,\"-\",REFERENTES!U120),\"\")","v":""},{"$f":"REFERENTES!S120","v":49037}]
[null,null,null,null,null,null,null,null,null,null,null,{"$f":"IF(AND(REFERENTES!U121<>\"\",          REFERENTES!U121<>96321,    REFERENTES!U121<>96222            ),CONCATENATE(REFERENTES!T121,\"-\",REFERENTES!U121),\"\")","v":""},{"$f":"REFERENTES!S121","v":49038}]
[null,null,null,null,null,null,null,null,null,null,null,{"$f":"IF(AND(REFERENTES!U122<>\"\",          REFERENTES!U122<>96321,    REFERENTES!U122<>96222            ),CONCATENATE(REFERENTES!T122,\"-\",REFERENTES!U122),\"\")","v":""},{"$f":"REFERENTES!S122","v":49039}]
[null,null,null,null,null,null,null,null,null,null,null,{"$f":"IF(AND(REFERENTES!U123<>\"\",          REFERENTES!U123<>96321,    REFERENTES!U123<>96222            ),CONCATENATE(REFERENTES!T123,\"-\",REFERENTES!U123),\"\")","v":""},{"$f":"REFERENTES!S123","v":49040}]
[null,null,null,null,null,null,null,null,null,null,null,{"$f":"IF(AND(REFERENTES!U124<>\"\",          REFERENTES!U124<>96321,    REFERENTES!U124<>96222            ),CONCATENATE(REFERENTES!T124,\"-\",REFERENTES!U124),\"\")","v":""},{"$f":"REFERENTES!S124","v":49042}]
[null,null,null,null,null,null,null,null,null,null,null,{"$f":"IF(AND(REFERENTES!U125<>\"\",          REFERENTES!U125<>96321,    REFERENTES!U125<>96222            ),CONCATENATE(REFERENTES!T125,\"-\",REFERENTES!U125),\"\")","v":""},{"$f":"REFERENTES!S125","v":55545}]
[null,null,null,null,null,null,null,null,null,null,null,{"$f":"IF(AND(REFERENTES!U126<>\"\",          REFERENTES!U126<>96321,    REFERENTES!U126<>96222            ),CONCATENATE(REFERENTES!T126,\"-\",REFERENTES!U126),\"\")","v":""},{"$f":"REFERENTES!S126","v":49046}]
[null,null,null,null,null,null,null,null,null,null,null,{"$f":"IF(AND(REFERENTES!U127<>\"\",          REFERENTES!U127<>96321,    REFERENTES!U127<>96222            ),CONCATENATE(REFERENTES!T127,\"-\",REFERENTES!U127),\"\")","v":""},{"$f":"REFERENTES!S127","v":51552}]
[null,null,null,null,null,null,null,null,null,null,null,{"$f":"IF(AND(REFERENTES!U128<>\"\",          REFERENTES!U128<>96321,    REFERENTES!U128<>96222            ),CONCATENATE(REFERENTES!T128,\"-\",REFERENTES!U128),\"\")","v":""},{"$f":"REFERENTES!S128","v":51551}]
[null,null,null,null,null,null,null,null,null,null,null,{"$f":"IF(AND(REFERENTES!U129<>\"\",          REFERENTES!U129<>96321,    REFERENTES!U129<>96222            ),CONCATENATE(REFERENTES!T129,\"-\",REFERENTES!U129),\"\")","v":""},{"$f":"REFERENTES!S129","v":49044}]
[null,null,null,null,null,null,null,null,null,null,null,{"$f":"IF(AND(REFERENTES!U130<>\"\",          REFERENTES!U130<>96321,    REFERENTES!U130<>96222            ),CONCATENATE(REFERENTES!T130,\"-\",REFERENTES!U130),\"\")","v":""},{"$f":"REFERENTES!S130","v":49048}]
[null,null,null,null,null,null,null,null,null,null,null,{"$f":"IF(AND(REFERENTES!U131<>\"\",          REFERENTES!U131<>96321,    REFERENTES!U131<>96222            ),CONCATENATE(REFERENTES!T131,\"-\",REFERENTES!U131),\"\")","v":""},{"$f":"REFERENTES!S131","v":51554}]
[null,null,null,null,null,null,null,null,null,null,null,{"$f":"IF(AND(REFERENTES!U132<>\"\",          REFERENTES!U132<>96321,    REFERENTES!U132<>96222            ),CONCATENATE(REFERENTES!T132,\"-\",REFERENTES!U132),\"\")","v":""},{"$f":"REFERENTES!S132","v":49013}]
[null,null,null,null,null,null,null,null,null,null,null,{"$f":"IF(AND(REFERENTES!U133<>\"\",          REFERENTES!U133<>96321,    REFERENTES!U133<>96222            ),CONCATENATE(REFERENTES!T133,\"-\",REFERENTES!U133),\"\")","v":""},{"$f":"REFERENTES!S133","v":51555}]
[null,null,null,null,null,null,null,null,null,null,null,{"$f":"IF(AND(REFERENTES!U134<>\"\",          REFERENTES!U134<>96321,    REFERENTES!U134<>96222            ),CONCATENATE(REFERENTES!T134,\"-\",REFERENTES!U134),\"\")","v":""},{"$f":"REFERENTES!S134","v":49050}]
[null,null,null,null,null,null,null,null,null,null,null,{"$f":"IF(AND(REFERENTES!U135<>\"\",          REFERENTES!U135<>96321,    REFERENTES!U135<>96222            ),CONCATENATE(REFERENTES!T135,\"-\",REFERENTES!U135),\"\")","v":""},{"$f":"REFERENTES!S135","v":49052}]
[null,null,null,null,null,null,null,null,null,null,null,{"$f":"IF(AND(REFERENTES!U136<>\"\",          REFERENTES!U136<>96321,    REFERENTES!U136<>96222            ),CONCATENATE(REFERENTES!T136,\"-\",REFERENTES!U136),\"\")","v":""},{"$f":"REFERENTES!S136","v":49054}]
[null,null,null,null,null,null,null,null,null,null,null,{"$f":"IF(AND(REFERENTES!U137<>\"\",          REFERENTES!U137<>96321,    REFERENTES!U137<>96222            ),CONCATENATE(REFERENTES!T137,\"-\",REFERENTES!U137),\"\")","v":""},{"$f":"REFERENTES!S137","v":51557}]
[null,null,null,null,null,null,null,null,null,null,null,{"$f":"IF(AND(REFERENTES!U138<>\"\",          REFERENTES!U138<>96321,    REFERENTES!U138<>96222            ),CONCATENATE(REFERENTES!T138,\"-\",REFERENTES!U138),\"\")","v":""},{"$f":"REFERENTES!S138","v":49056}]
[null,null,null,null,null,null,null,null,null,null,null,{"$f":"IF(AND(REFERENTES!U139<>\"\",          REFERENTES!U139<>96321,    REFERENTES!U139<>96222            ),CONCATENATE(REFERENTES!T139,\"-\",REFERENTES!U139),\"\")","v":""},{"$f":"REFERENTES!S139","v":51565}]
[null,null,null,null,null,null,null,null,null,null,null,{"$f":"IF(AND(REFERENTES!U140<>\"\",          REFERENTES!U140<>96321,    REFERENTES!U140<>96222            ),CONCATENATE(REFERENTES!T140,\"-\",REFERENTES!U140),\"\")","v":""},{"$f":"REFERENTES!S140","v":49007}]
[null,null,null,null,null,null,null,null,null,null,null,{"$f":"IF(AND(REFERENTES!U141<>\"\",          REFERENTES!U141<>96321,    REFERENTES!U141<>96222            ),CONCATENATE(REFERENTES!T141,\"-\",REFERENTES!U141),\"\")","v":""},{"$f":"REFERENTES!S141","v":49060}]
[null,null,null,null,null,null,null,null,null,null,null,{"$f":"IF(AND(REFERENTES!U142<>\"\",          REFERENTES!U142<>96321,    REFERENTES!U142<>96222            ),CONCATENATE(REFERENTES!T142,\"-\",REFERENTES!U142),\"\")","v":""},{"$f":"REFERENTES!S142","v":51567}]
[null,null,null,null,null,null,null,null,null,null,null,{"$f":"IF(AND(REFERENTES!U143<>\"\",          REFERENTES!U143<>96321,    REFERENTES!U143<>96222            ),CONCATENATE(REFERENTES!T143,\"-\",REFERENTES!U143),\"\")","v":""},{"$f":"REFERENTES!S143","v":49057}]
[null,null,null,null,null,null,null,null,null,null,null,{"$f":"IF(AND(REFERENTES!U144<>\"\",          REFERENTES!U144<>96321,    REFERENTES!U144<>96222            ),CONCATENATE(REFERENTES!T144,\"-\",REFERENTES!U144),\"\")","v":""},{"$f":"REFERENTES!S144","v":49006}]
[null,null,null,null,null,null,null,null,null,null,null,{"$f":"IF(AND(REFERENTES!U145<>\"\",          REFERENTES!U145<>96321,    REFERENTES!U145<>96222            ),CONCATENATE(REFERENTES!T145,\"-\",REFERENTES!U145),\"\")","v":""},{"$f":"REFERENTES!S145","v":49000}]
[null,null,null,null,null,null,null,null,null,null,null,{"$f":"IF(AND(REFERENTES!U146<>\"\",          REFERENTES!U146<>96321,    REFERENTES!U146<>96222            ),CONCATENATE(REFERENTES!T146,\"-\",REFERENTES!U146),\"\")","v":""},{"$f":"REFERENTES!S146","v":49058}]
[null,null,null,null,null,null,null,null,null,null,null,{"$f":"IF(AND(REFERENTES!U147<>\"\",          REFERENTES!U147<>96321,    REFERENTES!U147<>96222            ),CONCATENATE(REFERENTES!T147,\"-\",REFERENTES!U147),\"\")","v":""},{"$f":"REFERENTES!S147","v":49059}]
[null,null,null,null,null,null,null,null,null,null,null,{"$f":"IF(AND(REFERENTES!U148<>\"\",          REFERENTES!U148<>96321,    REFERENTES!U148<>96222            ),CONCATENATE(REFERENTES!T148,\"-\",REFERENTES!U148),\"\")","v":""},{"$f":"REFERENTES!S148","v":49001}]
[null,null,null,null,null,null,null,null,null,null,null,{"$f":"IF(AND(REFERENTES!U149<>\"\",          REFERENTES!U149<>96321,    REFERENTES!U149<>96222            ),CONCATENATE(REFERENTES!T149,\"-\",REFERENTES!U149),\"\")","v":""},{"$f":"REFERENTES!S149","v":49004}]
[null,null,null,null,null,null,null,null,null,null,null,{"$f":"IF(AND(REFERENTES!U150<>\"\",          REFERENTES!U150<>96321,    REFERENTES!U150<>96222            ),CONCATENATE(REFERENTES!T150,\"-\",REFERENTES!U150),\"\")","v":""},{"$f":"REFERENTES!S150","v":49008}]
[null,null,null,null,null,null,null,null,null,null,null,{"$f":"IF(AND(REFERENTES!U151<>\"\",          REFERENTES!U151<>96321,    REFERENTES!U151<>96222            ),CONCATENATE(REFERENTES!T151,\"-\",REFERENTES!U151),\"\")","v":""},{"$f":"REFERENTES!S151","v":49003}]
[null,null,null,null,null,null,null,null,null,null,null,{"$f":"IF(AND(REFERENTES!U152<>\"\",          REFERENTES!U152<>96321,    REFERENTES!U152<>96222            ),CONCATENATE(REFERENTES!T152,\"-\",REFERENTES!U152),\"\")","v":""},{"$f":"REFERENTES!S152","v":0}]
[null,null,null,null,null,null,null,null,null,null,null,{"$f":"IF(AND(REFERENTES!U153<>\"\",          REFERENTES!U153<>96321,    REFERENTES!U153<>96222            ),CONCATENATE(REFERENTES!T153,\"-\",REFERENTES!U153),\"\")","v":""},{"$f":"REFERENTES!S153","v":0}]
[null,null,null,null,null,null,null,null,null,null,null,{"$f":"IF(AND(REFERENTES!U154<>\"\",          REFERENTES!U154<>96321,    REFERENTES!U154<>96222            ),CONCATENATE(REFERENTES!T154,\"-\",REFERENTES!U154),\"\")","v":""}]
[null,null,null,null,null,null,null,null,null,null,null,{"$f":"IF(AND(REFERENTES!U155<>\"\",          REFERENTES!U155<>96321,    REFERENTES!U155<>96222            ),CONCATENATE(REFERENTES!T155,\"-\",REFERENTES!U155),\"\")","v":""}]
[null,null,null,null,null,null,null,null,null,null,null,{"$f":"IF(AND(REFERENTES!U156<>\"\",          REFERENTES!U156<>96321,    REFERENTES!U156<>96222            ),CONCATENATE(REFERENTES!T156,\"-\",REFERENTES!U156),\"\")","v":""}]
[null,null,null,null,null,null,null,null,null,null,null,{"$f":"IF(AND(REFERENTES!U157<>\"\",          REFERENTES!U157<>96321,    REFERENTES!U157<>96222            ),CONCATENATE(REFERENTES!T157,\"-\",REFERENTES!U157),\"\")","v":""}]
[null,null,null,null,null,null,null,null,null,null,null,{"$f":"IF(AND(REFERENTES!U158<>\"\",          REFERENTES!U158<>96321,    REFERENTES!U158<>96222            ),CONCATENATE(REFERENTES!T158,\"-\",REFERENTES!U158),\"\")","v":""}]
[null,null,null,null,null,null,null,null,null,null,null,{"$f":"IF(AND(REFERENTES!U159<>\"\",          REFERENTES!U159<>96321,    REFERENTES!U159<>96222            ),CONCATENATE(REFERENTES!T159,\"-\",REFERENTES!U159),\"\")","v":""}]

{"sheet":"Resumen","index":6,"n_rows":101,"n_cols":8,"rows_kept":101,"cut":false,"hidden":false,"merged":[[0,7,2,11]]}
["estacion","abundancia","registros","Etiquetas de fila","Cuenta de registros","Suma de abundancia",null,"Esta tabla debe ser actualizada cada vez que introduzca nuevos datos, para ello debe hacer clic sobre cualquier parte de la tabla y presionar las teclas ALT + F5 de manera conjunta."]
[{"$f":"IF(DATOS!O5=\"\",\"\",DATOS!O5)","v":""},{"$f":"IF(DATOS!AD5=\"\",\"\",DATOS!AD5)","v":""},{"$f":"IF(DATOS!W5=\"\",\"\",DATOS!W5)","v":""},null,100,0]
[{"$f":"IF(DATOS!O6=\"\",\"\",DATOS!O6)","v":""},{"$f":"IF(DATOS!AD6=\"\",\"\",DATOS!AD6)","v":""},{"$f":"IF(DATOS!W6=\"\",\"\",DATOS!W6)","v":""},"Total general",100,0]
[{"$f":"IF(DATOS!O7=\"\",\"\",DATOS!O7)","v":""},{"$f":"IF(DATOS!AD7=\"\",\"\",DATOS!AD7)","v":""},{"$f":"IF(DATOS!W7=\"\",\"\",DATOS!W7)","v":""}]
[{"$f":"IF(DATOS!O8=\"\",\"\",DATOS!O8)","v":""},{"$f":"IF(DATOS!AD8=\"\",\"\",DATOS!AD8)","v":""},{"$f":"IF(DATOS!W8=\"\",\"\",DATOS!W8)","v":""}]
[{"$f":"IF(DATOS!O9=\"\",\"\",DATOS!O9)","v":""},{"$f":"IF(DATOS!AD9=\"\",\"\",DATOS!AD9)","v":""},{"$f":"IF(DATOS!W9=\"\",\"\",DATOS!W9)","v":""}]
[{"$f":"IF(DATOS!O10=\"\",\"\",DATOS!O10)","v":""},{"$f":"IF(DATOS!AD10=\"\",\"\",DATOS!AD10)","v":""},{"$f":"IF(DATOS!W10=\"\",\"\",DATOS!W10)","v":""}]
[{"$f":"IF(DATOS!O11=\"\",\"\",DATOS!O11)","v":""},{"$f":"IF(DATOS!AD11=\"\",\"\",DATOS!AD11)","v":""},{"$f":"IF(DATOS!W11=\"\",\"\",DATOS!W11)","v":""}]
[{"$f":"IF(DATOS!O12=\"\",\"\",DATOS!O12)","v":""},{"$f":"IF(DATOS!AD12=\"\",\"\",DATOS!AD12)","v":""},{"$f":"IF(DATOS!W12=\"\",\"\",DATOS!W12)","v":""}]
[{"$f":"IF(DATOS!O13=\"\",\"\",DATOS!O13)","v":""},{"$f":"IF(DATOS!AD13=\"\",\"\",DATOS!AD13)","v":""},{"$f":"IF(DATOS!W13=\"\",\"\",DATOS!W13)","v":""}]
[{"$f":"IF(DATOS!O14=\"\",\"\",DATOS!O14)","v":""},{"$f":"IF(DATOS!AD14=\"\",\"\",DATOS!AD14)","v":""},{"$f":"IF(DATOS!W14=\"\",\"\",DATOS!W14)","v":""}]
[{"$f":"IF(DATOS!O15=\"\",\"\",DATOS!O15)","v":""},{"$f":"IF(DATOS!AD15=\"\",\"\",DATOS!AD15)","v":""},{"$f":"IF(DATOS!W15=\"\",\"\",DATOS!W15)","v":""}]
[{"$f":"IF(DATOS!O16=\"\",\"\",DATOS!O16)","v":""},{"$f":"IF(DATOS!AD16=\"\",\"\",DATOS!AD16)","v":""},{"$f":"IF(DATOS!W16=\"\",\"\",DATOS!W16)","v":""}]
[{"$f":"IF(DATOS!O17=\"\",\"\",DATOS!O17)","v":""},{"$f":"IF(DATOS!AD17=\"\",\"\",DATOS!AD17)","v":""},{"$f":"IF(DATOS!W17=\"\",\"\",DATOS!W17)","v":""}]
[{"$f":"IF(DATOS!O18=\"\",\"\",DATOS!O18)","v":""},{"$f":"IF(DATOS!AD18=\"\",\"\",DATOS!AD18)","v":""},{"$f":"IF(DATOS!W18=\"\",\"\",DATOS!W18)","v":""}]
[{"$f":"IF(DATOS!O19=\"\",\"\",DATOS!O19)","v":""},{"$f":"IF(DATOS!AD19=\"\",\"\",DATOS!AD19)","v":""},{"$f":"IF(DATOS!W19=\"\",\"\",DATOS!W19)","v":""}]
[{"$f":"IF(DATOS!O20=\"\",\"\",DATOS!O20)","v":""},{"$f":"IF(DATOS!AD20=\"\",\"\",DATOS!AD20)","v":""},{"$f":"IF(DATOS!W20=\"\",\"\",DATOS!W20)","v":""}]
[{"$f":"IF(DATOS!O21=\"\",\"\",DATOS!O21)","v":""},{"$f":"IF(DATOS!AD21=\"\",\"\",DATOS!AD21)","v":""},{"$f":"IF(DATOS!W21=\"\",\"\",DATOS!W21)","v":""}]
[{"$f":"IF(DATOS!O22=\"\",\"\",DATOS!O22)","v":""},{"$f":"IF(DATOS!AD22=\"\",\"\",DATOS!AD22)","v":""},{"$f":"IF(DATOS!W22=\"\",\"\",DATOS!W22)","v":""}]
[{"$f":"IF(DATOS!O23=\"\",\"\",DATOS!O23)","v":""},{"$f":"IF(DATOS!AD23=\"\",\"\",DATOS!AD23)","v":""},{"$f":"IF(DATOS!W23=\"\",\"\",DATOS!W23)","v":""}]
[{"$f":"IF(DATOS!O24=\"\",\"\",DATOS!O24)","v":""},{"$f":"IF(DATOS!AD24=\"\",\"\",DATOS!AD24)","v":""},{"$f":"IF(DATOS!W24=\"\",\"\",DATOS!W24)","v":""}]
[{"$f":"IF(DATOS!O25=\"\",\"\",DATOS!O25)","v":""},{"$f":"IF(DATOS!AD25=\"\",\"\",DATOS!AD25)","v":""},{"$f":"IF(DATOS!W25=\"\",\"\",DATOS!W25)","v":""}]
[{"$f":"IF(DATOS!O26=\"\",\"\",DATOS!O26)","v":""},{"$f":"IF(DATOS!AD26=\"\",\"\",DATOS!AD26)","v":""},{"$f":"IF(DATOS!W26=\"\",\"\",DATOS!W26)","v":""}]
[{"$f":"IF(DATOS!O27=\"\",\"\",DATOS!O27)","v":""},{"$f":"IF(DATOS!AD27=\"\",\"\",DATOS!AD27)","v":""},{"$f":"IF(DATOS!W27=\"\",\"\",DATOS!W27)","v":""}]
[{"$f":"IF(DATOS!O28=\"\",\"\",DATOS!O28)","v":""},{"$f":"IF(DATOS!AD28=\"\",\"\",DATOS!AD28)","v":""},{"$f":"IF(DATOS!W28=\"\",\"\",DATOS!W28)","v":""}]
[{"$f":"IF(DATOS!O29=\"\",\"\",DATOS!O29)","v":""},{"$f":"IF(DATOS!AD29=\"\",\"\",DATOS!AD29)","v":""},{"$f":"IF(DATOS!W29=\"\",\"\",DATOS!W29)","v":""}]
[{"$f":"IF(DATOS!O30=\"\",\"\",DATOS!O30)","v":""},{"$f":"IF(DATOS!AD30=\"\",\"\",DATOS!AD30)","v":""},{"$f":"IF(DATOS!W30=\"\",\"\",DATOS!W30)","v":""}]
[{"$f":"IF(DATOS!O31=\"\",\"\",DATOS!O31)","v":""},{"$f":"IF(DATOS!AD31=\"\",\"\",DATOS!AD31)","v":""},{"$f":"IF(DATOS!W31=\"\",\"\",DATOS!W31)","v":""}]
[{"$f":"IF(DATOS!O32=\"\",\"\",DATOS!O32)","v":""},{"$f":"IF(DATOS!AD32=\"\",\"\",DATOS!AD32)","v":""},{"$f":"IF(DATOS!W32=\"\",\"\",DATOS!W32)","v":""}]
[{"$f":"IF(DATOS!O33=\"\",\"\",DATOS!O33)","v":""},{"$f":"IF(DATOS!AD33=\"\",\"\",DATOS!AD33)","v":""},{"$f":"IF(DATOS!W33=\"\",\"\",DATOS!W33)","v":""}]
[{"$f":"IF(DATOS!O34=\"\",\"\",DATOS!O34)","v":""},{"$f":"IF(DATOS!AD34=\"\",\"\",DATOS!AD34)","v":""},{"$f":"IF(DATOS!W34=\"\",\"\",DATOS!W34)","v":""}]
[{"$f":"IF(DATOS!O35=\"\",\"\",DATOS!O35)","v":""},{"$f":"IF(DATOS!AD35=\"\",\"\",DATOS!AD35)","v":""},{"$f":"IF(DATOS!W35=\"\",\"\",DATOS!W35)","v":""}]
[{"$f":"IF(DATOS!O36=\"\",\"\",DATOS!O36)","v":""},{"$f":"IF(DATOS!AD36=\"\",\"\",DATOS!AD36)","v":""},{"$f":"IF(DATOS!W36=\"\",\"\",DATOS!W36)","v":""}]
[{"$f":"IF(DATOS!O37=\"\",\"\",DATOS!O37)","v":""},{"$f":"IF(DATOS!AD37=\"\",\"\",DATOS!AD37)","v":""},{"$f":"IF(DATOS!W37=\"\",\"\",DATOS!W37)","v":""}]
[{"$f":"IF(DATOS!O38=\"\",\"\",DATOS!O38)","v":""},{"$f":"IF(DATOS!AD38=\"\",\"\",DATOS!AD38)","v":""},{"$f":"IF(DATOS!W38=\"\",\"\",DATOS!W38)","v":""}]
[{"$f":"IF(DATOS!O39=\"\",\"\",DATOS!O39)","v":""},{"$f":"IF(DATOS!AD39=\"\",\"\",DATOS!AD39)","v":""},{"$f":"IF(DATOS!W39=\"\",\"\",DATOS!W39)","v":""}]
[{"$f":"IF(DATOS!O40=\"\",\"\",DATOS!O40)","v":""},{"$f":"IF(DATOS!AD40=\"\",\"\",DATOS!AD40)","v":""},{"$f":"IF(DATOS!W40=\"\",\"\",DATOS!W40)","v":""}]
[{"$f":"IF(DATOS!O41=\"\",\"\",DATOS!O41)","v":""},{"$f":"IF(DATOS!AD41=\"\",\"\",DATOS!AD41)","v":""},{"$f":"IF(DATOS!W41=\"\",\"\",DATOS!W41)","v":""}]
[{"$f":"IF(DATOS!O42=\"\",\"\",DATOS!O42)","v":""},{"$f":"IF(DATOS!AD42=\"\",\"\",DATOS!AD42)","v":""},{"$f":"IF(DATOS!W42=\"\",\"\",DATOS!W42)","v":""}]
[{"$f":"IF(DATOS!O43=\"\",\"\",DATOS!O43)","v":""},{"$f":"IF(DATOS!AD43=\"\",\"\",DATOS!AD43)","v":""},{"$f":"IF(DATOS!W43=\"\",\"\",DATOS!W43)","v":""}]
[{"$f":"IF(DATOS!O44=\"\",\"\",DATOS!O44)","v":""},{"$f":"IF(DATOS!AD44=\"\",\"\",DATOS!AD44)","v":""},{"$f":"IF(DATOS!W44=\"\",\"\",DATOS!W44)","v":""}]
[{"$f":"IF(DATOS!O45=\"\",\"\",DATOS!O45)","v":""},{"$f":"IF(DATOS!AD45=\"\",\"\",DATOS!AD45)","v":""},{"$f":"IF(DATOS!W45=\"\",\"\",DATOS!W45)","v":""}]
[{"$f":"IF(DATOS!O46=\"\",\"\",DATOS!O46)","v":""},{"$f":"IF(DATOS!AD46=\"\",\"\",DATOS!AD46)","v":""},{"$f":"IF(DATOS!W46=\"\",\"\",DATOS!W46)","v":""}]
[{"$f":"IF(DATOS!O47=\"\",\"\",DATOS!O47)","v":""},{"$f":"IF(DATOS!AD47=\"\",\"\",DATOS!AD47)","v":""},{"$f":"IF(DATOS!W47=\"\",\"\",DATOS!W47)","v":""}]
[{"$f":"IF(DATOS!O48=\"\",\"\",DATOS!O48)","v":""},{"$f":"IF(DATOS!AD48=\"\",\"\",DATOS!AD48)","v":""},{"$f":"IF(DATOS!W48=\"\",\"\",DATOS!W48)","v":""}]
[{"$f":"IF(DATOS!O49=\"\",\"\",DATOS!O49)","v":""},{"$f":"IF(DATOS!AD49=\"\",\"\",DATOS!AD49)","v":""},{"$f":"IF(DATOS!W49=\"\",\"\",DATOS!W49)","v":""}]
[{"$f":"IF(DATOS!O50=\"\",\"\",DATOS!O50)","v":""},{"$f":"IF(DATOS!AD50=\"\",\"\",DATOS!AD50)","v":""},{"$f":"IF(DATOS!W50=\"\",\"\",DATOS!W50)","v":""}]
[{"$f":"IF(DATOS!O51=\"\",\"\",DATOS!O51)","v":""},{"$f":"IF(DATOS!AD51=\"\",\"\",DATOS!AD51)","v":""},{"$f":"IF(DATOS!W51=\"\",\"\",DATOS!W51)","v":""}]
[{"$f":"IF(DATOS!O52=\"\",\"\",DATOS!O52)","v":""},{"$f":"IF(DATOS!AD52=\"\",\"\",DATOS!AD52)","v":""},{"$f":"IF(DATOS!W52=\"\",\"\",DATOS!W52)","v":""}]
[{"$f":"IF(DATOS!O53=\"\",\"\",DATOS!O53)","v":""},{"$f":"IF(DATOS!AD53=\"\",\"\",DATOS!AD53)","v":""},{"$f":"IF(DATOS!W53=\"\",\"\",DATOS!W53)","v":""}]
[{"$f":"IF(DATOS!O54=\"\",\"\",DATOS!O54)","v":""},{"$f":"IF(DATOS!AD54=\"\",\"\",DATOS!AD54)","v":""},{"$f":"IF(DATOS!W54=\"\",\"\",DATOS!W54)","v":""}]
[{"$f":"IF(DATOS!O55=\"\",\"\",DATOS!O55)","v":""},{"$f":"IF(DATOS!AD55=\"\",\"\",DATOS!AD55)","v":""},{"$f":"IF(DATOS!W55=\"\",\"\",DATOS!W55)","v":""}]
[{"$f":"IF(DATOS!O56=\"\",\"\",DATOS!O56)","v":""},{"$f":"IF(DATOS!AD56=\"\",\"\",DATOS!AD56)","v":""},{"$f":"IF(DATOS!W56=\"\",\"\",DATOS!W56)","v":""}]
[{"$f":"IF(DATOS!O57=\"\",\"\",DATOS!O57)","v":""},{"$f":"IF(DATOS!AD57=\"\",\"\",DATOS!AD57)","v":""},{"$f":"IF(DATOS!W57=\"\",\"\",DATOS!W57)","v":""}]
[{"$f":"IF(DATOS!O58=\"\",\"\",DATOS!O58)","v":""},{"$f":"IF(DATOS!AD58=\"\",\"\",DATOS!AD58)","v":""},{"$f":"IF(DATOS!W58=\"\",\"\",DATOS!W58)","v":""}]
[{"$f":"IF(DATOS!O59=\"\",\"\",DATOS!O59)","v":""},{"$f":"IF(DATOS!AD59=\"\",\"\",DATOS!AD59)","v":""},{"$f":"IF(DATOS!W59=\"\",\"\",DATOS!W59)","v":""}]
[{"$f":"IF(DATOS!O60=\"\",\"\",DATOS!O60)","v":""},{"$f":"IF(DATOS!AD60=\"\",\"\",DATOS!AD60)","v":""},{"$f":"IF(DATOS!W60=\"\",\"\",DATOS!W60)","v":""}]
[{"$f":"IF(DATOS!O61=\"\",\"\",DATOS!O61)","v":""},{"$f":"IF(DATOS!AD61=\"\",\"\",DATOS!AD61)","v":""},{"$f":"IF(DATOS!W61=\"\",\"\",DATOS!W61)","v":""}]
[{"$f":"IF(DATOS!O62=\"\",\"\",DATOS!O62)","v":""},{"$f":"IF(DATOS!AD62=\"\",\"\",DATOS!AD62)","v":""},{"$f":"IF(DATOS!W62=\"\",\"\",DATOS!W62)","v":""}]
[{"$f":"IF(DATOS!O63=\"\",\"\",DATOS!O63)","v":""},{"$f":"IF(DATOS!AD63=\"\",\"\",DATOS!AD63)","v":""},{"$f":"IF(DATOS!W63=\"\",\"\",DATOS!W63)","v":""}]
[{"$f":"IF(DATOS!O64=\"\",\"\",DATOS!O64)","v":""},{"$f":"IF(DATOS!AD64=\"\",\"\",DATOS!AD64)","v":""},{"$f":"IF(DATOS!W64=\"\",\"\",DATOS!W64)","v":""}]
[{"$f":"IF(DATOS!O65=\"\",\"\",DATOS!O65)","v":""},{"$f":"IF(DATOS!AD65=\"\",\"\",DATOS!AD65)","v":""},{"$f":"IF(DATOS!W65=\"\",\"\",DATOS!W65)","v":""}]
[{"$f":"IF(DATOS!O66=\"\",\"\",DATOS!O66)","v":""},{"$f":"IF(DATOS!AD66=\"\",\"\",DATOS!AD66)","v":""},{"$f":"IF(DATOS!W66=\"\",\"\",DATOS!W66)","v":""}]
[{"$f":"IF(DATOS!O67=\"\",\"\",DATOS!O67)","v":""},{"$f":"IF(DATOS!AD67=\"\",\"\",DATOS!AD67)","v":""},{"$f":"IF(DATOS!W67=\"\",\"\",DATOS!W67)","v":""}]
[{"$f":"IF(DATOS!O68=\"\",\"\",DATOS!O68)","v":""},{"$f":"IF(DATOS!AD68=\"\",\"\",DATOS!AD68)","v":""},{"$f":"IF(DATOS!W68=\"\",\"\",DATOS!W68)","v":""}]
[{"$f":"IF(DATOS!O69=\"\",\"\",DATOS!O69)","v":""},{"$f":"IF(DATOS!AD69=\"\",\"\",DATOS!AD69)","v":""},{"$f":"IF(DATOS!W69=\"\",\"\",DATOS!W69)","v":""}]
[{"$f":"IF(DATOS!O70=\"\",\"\",DATOS!O70)","v":""},{"$f":"IF(DATOS!AD70=\"\",\"\",DATOS!AD70)","v":""},{"$f":"IF(DATOS!W70=\"\",\"\",DATOS!W70)","v":""}]
[{"$f":"IF(DATOS!O71=\"\",\"\",DATOS!O71)","v":""},{"$f":"IF(DATOS!AD71=\"\",\"\",DATOS!AD71)","v":""},{"$f":"IF(DATOS!W71=\"\",\"\",DATOS!W71)","v":""}]
[{"$f":"IF(DATOS!O72=\"\",\"\",DATOS!O72)","v":""},{"$f":"IF(DATOS!AD72=\"\",\"\",DATOS!AD72)","v":""},{"$f":"IF(DATOS!W72=\"\",\"\",DATOS!W72)","v":""}]
[{"$f":"IF(DATOS!O73=\"\",\"\",DATOS!O73)","v":""},{"$f":"IF(DATOS!AD73=\"\",\"\",DATOS!AD73)","v":""},{"$f":"IF(DATOS!W73=\"\",\"\",DATOS!W73)","v":""}]
[{"$f":"IF(DATOS!O74=\"\",\"\",DATOS!O74)","v":""},{"$f":"IF(DATOS!AD74=\"\",\"\",DATOS!AD74)","v":""},{"$f":"IF(DATOS!W74=\"\",\"\",DATOS!W74)","v":""}]
[{"$f":"IF(DATOS!O75=\"\",\"\",DATOS!O75)","v":""},{"$f":"IF(DATOS!AD75=\"\",\"\",DATOS!AD75)","v":""},{"$f":"IF(DATOS!W75=\"\",\"\",DATOS!W75)","v":""}]
[{"$f":"IF(DATOS!O76=\"\",\"\",DATOS!O76)","v":""},{"$f":"IF(DATOS!AD76=\"\",\"\",DATOS!AD76)","v":""},{"$f":"IF(DATOS!W76=\"\",\"\",DATOS!W76)","v":""}]
[{"$f":"IF(DATOS!O77=\"\",\"\",DATOS!O77)","v":""},{"$f":"IF(DATOS!AD77=\"\",\"\",DATOS!AD77)","v":""},{"$f":"IF(DATOS!W77=\"\",\"\",DATOS!W77)","v":""}]
[{"$f":"IF(DATOS!O78=\"\",\"\",DATOS!O78)","v":""},{"$f":"IF(DATOS!AD78=\"\",\"\",DATOS!AD78)","v":""},{"$f":"IF(DATOS!W78=\"\",\"\",DATOS!W78)","v":""}]
[{"$f":"IF(DATOS!O79=\"\",\"\",DATOS!O79)","v":""},{"$f":"IF(DATOS!AD79=\"\",\"\",DATOS!AD79)","v":""},{"$f":"IF(DATOS!W79=\"\",\"\",DATOS!W79)","v":""}]
[{"$f":"IF(DATOS!O80=\"\",\"\",DATOS!O80)","v":""},{"$f":"IF(DATOS!AD80=\"\",\"\",DATOS!AD80)","v":""},{"$f":"IF(DATOS!W80=\"\",\"\",DATOS!W80)","v":""}]
[{"$f":"IF(DATOS!O81=\"\",\"\",DATOS!O81)","v":""},{"$f":"IF(DATOS!AD81=\"\",\"\",DATOS!AD81)","v":""},{"$f":"IF(DATOS!W81=\"\",\"\",DATOS!W81)","v":""}]
[{"$f":"IF(DATOS!O82=\"\",\"\",DATOS!O82)","v":""},{"$f":"IF(DATOS!AD82=\"\",\"\",DATOS!AD82)","v":""},{"$f":"IF(DATOS!W82=\"\",\"\",DATOS!W82)","v":""}]
[{"$f":"IF(DATOS!O83=\"\",\"\",DATOS!O83)","v":""},{"$f":"IF(DATOS!AD83=\"\",\"\",DATOS!AD83)","v":""},{"$f":"IF(DATOS!W83=\"\",\"\",DATOS!W83)","v":""}]
[{"$f":"IF(DATOS!O84=\"\",\"\",DATOS!O84)","v":""},{"$f":"IF(DATOS!AD84=\"\",\"\",DATOS!AD84)","v":""},{"$f":"IF(DATOS!W84=\"\",\"\",DATOS!W84)","v":""}]
[{"$f":"IF(DATOS!O85=\"\",\"\",DATOS!O85)","v":""},{"$f":"IF(DATOS!AD85=\"\",\"\",DATOS!AD85)","v":""},{"$f":"IF(DATOS!W85=\"\",\"\",DATOS!W85)","v":""}]
[{"$f":"IF(DATOS!O86=\"\",\"\",DATOS!O86)","v":""},{"$f":"IF(DATOS!AD86=\"\",\"\",DATOS!AD86)","v":""},{"$f":"IF(DATOS!W86=\"\",\"\",DATOS!W86)","v":""}]
[{"$f":"IF(DATOS!O87=\"\",\"\",DATOS!O87)","v":""},{"$f":"IF(DATOS!AD87=\"\",\"\",DATOS!AD87)","v":""},{"$f":"IF(DATOS!W87=\"\",\"\",DATOS!W87)","v":""}]
[{"$f":"IF(DATOS!O88=\"\",\"\",DATOS!O88)","v":""},{"$f":"IF(DATOS!AD88=\"\",\"\",DATOS!AD88)","v":""},{"$f":"IF(DATOS!W88=\"\",\"\",DATOS!W88)","v":""}]
[{"$f":"IF(DATOS!O89=\"\",\"\",DATOS!O89)","v":""},{"$f":"IF(DATOS!AD89=\"\",\"\",DATOS!AD89)","v":""},{"$f":"IF(DATOS!W89=\"\",\"\",DATOS!W89)","v":""}]
[{"$f":"IF(DATOS!O90=\"\",\"\",DATOS!O90)","v":""},{"$f":"IF(DATOS!AD90=\"\",\"\",DATOS!AD90)","v":""},{"$f":"IF(DATOS!W90=\"\",\"\",DATOS!W90)","v":""}]
[{"$f":"IF(DATOS!O91=\"\",\"\",DATOS!O91)","v":""},{"$f":"IF(DATOS!AD91=\"\",\"\",DATOS!AD91)","v":""},{"$f":"IF(DATOS!W91=\"\",\"\",DATOS!W91)","v":""}]
[{"$f":"IF(DATOS!O92=\"\",\"\",DATOS!O92)","v":""},{"$f":"IF(DATOS!AD92=\"\",\"\",DATOS!AD92)","v":""},{"$f":"IF(DATOS!W92=\"\",\"\",DATOS!W92)","v":""}]
[{"$f":"IF(DATOS!O93=\"\",\"\",DATOS!O93)","v":""},{"$f":"IF(DATOS!AD93=\"\",\"\",DATOS!AD93)","v":""},{"$f":"IF(DATOS!W93=\"\",\"\",DATOS!W93)","v":""}]
[{"$f":"IF(DATOS!O94=\"\",\"\",DATOS!O94)","v":""},{"$f":"IF(DATOS!AD94=\"\",\"\",DATOS!AD94)","v":""},{"$f":"IF(DATOS!W94=\"\",\"\",DATOS!W94)","v":""}]
[{"$f":"IF(DATOS!O95=\"\",\"\",DATOS!O95)","v":""},{"$f":"IF(DATOS!AD95=\"\",\"\",DATOS!AD95)","v":""},{"$f":"IF(DATOS!W95=\"\",\"\",DATOS!W95)","v":""}]
[{"$f":"IF(DATOS!O96=\"\",\"\",DATOS!O96)","v":""},{"$f":"IF(DATOS!AD96=\"\",\"\",DATOS!AD96)","v":""},{"$f":"IF(DATOS!W96=\"\",\"\",DATOS!W96)","v":""}]
[{"$f":"IF(DATOS!O97=\"\",\"\",DATOS!O97)","v":""},{"$f":"IF(DATOS!AD97=\"\",\"\",DATOS!AD97)","v":""},{"$f":"IF(DATOS!W97=\"\",\"\",DATOS!W97)","v":""}]
[{"$f":"IF(DATOS!O98=\"\",\"\",DATOS!O98)","v":""},{"$f":"IF(DATOS!AD98=\"\",\"\",DATOS!AD98)","v":""},{"$f":"IF(DATOS!W98=\"\",\"\",DATOS!W98)","v":""}]
[{"$f":"IF(DATOS!O99=\"\",\"\",DATOS!O99)","v":""},{"$f":"IF(DATOS!AD99=\"\",\"\",DATOS!AD99)","v":""},{"$f":"IF(DATOS!W99=\"\",\"\",DATOS!W99)","v":""}]
[{"$f":"IF(DATOS!O100=\"\",\"\",DATOS!O100)","v":""},{"$f":"IF(DATOS!AD100=\"\",\"\",DATOS!AD100)","v":""},{"$f":"IF(DATOS!W100=\"\",\"\",DATOS!W100)","v":""}]
[{"$f":"IF(DATOS!O101=\"\",\"\",DATOS!O101)","v":""},{"$f":"IF(DATOS!AD101=\"\",\"\",DATOS!AD101)","v":""},{"$f":"IF(DATOS!W101=\"\",\"\",DATOS!W101)","v":""}]
[{"$f":"IF(DATOS!O102=\"\",\"\",DATOS!O102)","v":""},{"$f":"IF(DATOS!AD102=\"\",\"\",DATOS!AD102)","v":""},{"$f":"IF(DATOS!W102=\"\",\"\",DATOS!W102)","v":""}]
[{"$f":"IF(DATOS!O103=\"\",\"\",DATOS!O103)","v":""},{"$f":"IF(DATOS!AD103=\"\",\"\",DATOS!AD103)","v":""},{"$f":"IF(DATOS!W103=\"\",\"\",DATOS!W103)","v":""}]
[{"$f":"IF(DATOS!O104=\"\",\"\",DATOS!O104)","v":""},{"$f":"IF(DATOS!AD104=\"\",\"\",DATOS!AD104)","v":""},{"$f":"IF(DATOS!W104=\"\",\"\",DATOS!W104)","v":""}]

{"sheet":"AGD_MUESTREOS","index":7,"n_rows":0,"n_cols":0,"rows_kept":0,"cut":false,"hidden":true,"merged":[]}

{"sheet":"AGD_PARAMETRO","index":8,"n_rows":0,"n_cols":0,"rows_kept":0,"cut":false,"hidden":true,"merged":[]}

{"sheet":"AGD_MUESTRAS","index":9,"n_rows":0,"n_cols":0,"rows_kept":0,"cut":false,"hidden":true,"merged":[]}

{"sheet":"AGD_MUESTRAS_VARIABLES","index":10,"n_rows":0,"n_cols":0,"rows_kept":0,"cut":false,"hidden":true,"merged":[]}

{"sheet":"AGD_AUTORIAS","index":11,"n_rows":0,"n_cols":0,"rows_kept":0,"cut":false,"hidden":true,"merged":[]}